Body,Body name,Service label,Service divison label,Expenditure category,Detailed expenditure type,Detailed expenditure code,Date paid,Transaction number,Net amount,Capital or revenue,Supplier name
http://statistics.data.gov.uk/doc/local-authority/00DA,Leeds City Council,Central & Corporate Functions,Commercial Services Trading Services,Supplies and Services,Operational Materials,205,06-Apr-2011,1104-00001,5340.00,R,A & A Electrical Distributors Ltd
http://statistics.data.gov.uk/doc/local-authority/00DA,Leeds City Council,City Development,Libraries Arts & Heritage,Supplies and Services,Other Hired And Contracted Services,265,13-Apr-2011,1104-00002,760.00,R,A A Crouch
http://statistics.data.gov.uk/doc/local-authority/00DA,Leeds City Council,Environment & Neighbourhoods,Streetscene Environmental Services,Supplies and Services,Operational Furniture And Equipment,203,07-Apr-2011,1104-00003,3536.00,R,A Appleyard
http://statistics.data.gov.uk/doc/local-authority/00DA,Leeds City Council,Environment & Neighbourhoods,Streetscene Environmental Services,Supplies and Services,Operational Furniture And Equipment,203,07-Apr-2011,1104-00004,1664.00,R,A Appleyard
http://statistics.data.gov.uk/doc/local-authority/00DA,Leeds City Council,Central & Corporate Functions,Commercial Services Trading Services,Supplies and Services,Other Hired And Contracted Services,265,12-Apr-2011,1104-00005,760.00,R,A Bush (Engineering Services) Ltd
http://statistics.data.gov.uk/doc/local-authority/00DA,Leeds City Council,Central & Corporate Functions,Commercial Services Trading Services,Supplies and Services,Other Hired And Contracted Services,265,12-Apr-2011,1104-00006,880.00,R,A Bush (Engineering Services) Ltd
http://statistics.data.gov.uk/doc/local-authority/00DA,Leeds City Council,Central & Corporate Functions,Commercial Services Trading Services,Supplies and Services,Other Hired And Contracted Services,265,27-Apr-2011,1104-00007,3270.00,R,A Bush (Engineering Services) Ltd
http://statistics.data.gov.uk/doc/local-authority/00DA,Leeds City Council,Central & Corporate Functions,Commercial Services Trading Services,Supplies and Services,Other Hired And Contracted Services,265,28-Apr-2011,1104-00008,630.00,R,A Bush (Engineering Services) Ltd
http://statistics.data.gov.uk/doc/local-authority/00DA,Leeds City Council,Adult Social Care,Roseville Enterprises,Employees,Training Costs,071,28-Apr-2011,1104-00009,450.00,R,A D G Engineering Ltd
http://statistics.data.gov.uk/doc/local-authority/00DA,Leeds City Council,Adult Social Care,Roseville Enterprises,Supplies and Services,Operational Furniture And Equipment,203,28-Apr-2011,1104-00010,9090.00,R,A D G Engineering Ltd
http://statistics.data.gov.uk/doc/local-authority/00DA,Leeds City Council,Adult Social Care,Roseville Enterprises,Supplies and Services,Operational Furniture And Equipment,203,28-Apr-2011,1104-00011,1132.50,R,A D G Engineering Ltd
http://statistics.data.gov.uk/doc/local-authority/00DA,East - North East Homes Leeds,East - North East,Technical Services,Supplies and Services,Other Hired And Contracted Services,265,08-Apr-2011,1104-00012,1070.55,R,A D Simpson Construction Ltd
http://statistics.data.gov.uk/doc/local-authority/00DA,East - North East Homes Leeds,East - North East,Technical Services,Supplies and Services,Other Hired And Contracted Services,265,08-Apr-2011,1104-00013,684.00,R,A D Simpson Construction Ltd
http://statistics.data.gov.uk/doc/local-authority/00DA,East - North East Homes Leeds,East - North East,Technical Services,Supplies and Services,Other Hired And Contracted Services,265,08-Apr-2011,1104-00014,1694.35,R,A D Simpson Construction Ltd
http://statistics.data.gov.uk/doc/local-authority/00DA,East - North East Homes Leeds,East - North East,Technical Services,Supplies and Services,Other Hired And Contracted Services,265,08-Apr-2011,1104-00015,578.10,R,A D Simpson Construction Ltd
http://statistics.data.gov.uk/doc/local-authority/00DA,East - North East Homes Leeds,East - North East,Technical Services,Supplies and Services,Other Hired And Contracted Services,265,27-Apr-2011,1104-00016,709.08,R,A D Simpson Construction Ltd
http://statistics.data.gov.uk/doc/local-authority/00DA,East - North East Homes Leeds,East - North East,Technical Services,Supplies and Services,Other Hired And Contracted Services,265,07-Apr-2011,1104-00017,986.05,R,A D Simpson Construction Ltd
http://statistics.data.gov.uk/doc/local-authority/00DA,East - North East Homes Leeds,East - North East,Technical Services,Supplies and Services,Other Hired And Contracted Services,265,27-Apr-2011,1104-00018,705.99,R,A D Simpson Construction Ltd
http://statistics.data.gov.uk/doc/local-authority/00DA,East - North East Homes Leeds,East - North East,Technical Services,Supplies and Services,Other Hired And Contracted Services,265,07-Apr-2011,1104-00019,712.60,R,A D Simpson Construction Ltd
http://statistics.data.gov.uk/doc/local-authority/00DA,East - North East Homes Leeds,East - North East,Technical Services,Supplies and Services,Other Hired And Contracted Services,265,07-Apr-2011,1104-00020,3345.62,R,A D Simpson Construction Ltd
http://statistics.data.gov.uk/doc/local-authority/00DA,East - North East Homes Leeds,East - North East,Technical Services,Supplies and Services,Other Hired And Contracted Services,265,07-Apr-2011,1104-00021,1353.85,R,A D Simpson Construction Ltd
http://statistics.data.gov.uk/doc/local-authority/00DA,East - North East Homes Leeds,East - North East,Technical Services,Supplies and Services,Other Hired And Contracted Services,265,07-Apr-2011,1104-00022,452.90,R,A D Simpson Construction Ltd
http://statistics.data.gov.uk/doc/local-authority/00DA,East - North East Homes Leeds,East - North East,Technical Services,Supplies and Services,Other Hired And Contracted Services,265,08-Apr-2011,1104-00023,1768.70,R,A D Simpson Construction Ltd
http://statistics.data.gov.uk/doc/local-authority/00DA,East - North East Homes Leeds,East - North East,Technical Services,Supplies and Services,Other Hired And Contracted Services,265,27-Apr-2011,1104-00024,2950.55,R,A D Simpson Construction Ltd
http://statistics.data.gov.uk/doc/local-authority/00DA,East - North East Homes Leeds,East - North East,Technical Services,Supplies and Services,Other Hired And Contracted Services,265,08-Apr-2011,1104-00025,437.95,R,A D Simpson Construction Ltd
http://statistics.data.gov.uk/doc/local-authority/00DA,East - North East Homes Leeds,East - North East,Technical Services,Supplies and Services,Other Hired And Contracted Services,265,27-Apr-2011,1104-00026,1042.81,R,A D Simpson Construction Ltd
http://statistics.data.gov.uk/doc/local-authority/00DA,East - North East Homes Leeds,East - North East,Technical Services,Supplies and Services,Other Hired And Contracted Services,265,27-Apr-2011,1104-00027,862.10,R,A D Simpson Construction Ltd
http://statistics.data.gov.uk/doc/local-authority/00DA,East - North East Homes Leeds,East - North East,Technical Services,Employees,Temporary Staff-Basic,009,11-Apr-2011,1104-00028,920.00,R,A D Simpson Construction Ltd
http://statistics.data.gov.uk/doc/local-authority/00DA,East - North East Homes Leeds,East - North East,Technical Services,Employees,Temporary Staff-Basic,009,11-Apr-2011,1104-00029,920.00,R,A D Simpson Construction Ltd
http://statistics.data.gov.uk/doc/local-authority/00DA,East - North East Homes Leeds,East - North East,Technical Services,Employees,Temporary Staff-Basic,009,11-Apr-2011,1104-00030,920.00,R,A D Simpson Construction Ltd
http://statistics.data.gov.uk/doc/local-authority/00DA,East - North East Homes Leeds,East - North East,Technical Services,Employees,Temporary Staff-Basic,009,11-Apr-2011,1104-00031,920.00,R,A D Simpson Construction Ltd
http://statistics.data.gov.uk/doc/local-authority/00DA,East - North East Homes Leeds,East - North East,Technical Services,Employees,Temporary Staff-Basic,009,11-Apr-2011,1104-00032,920.00,R,A D Simpson Construction Ltd
http://statistics.data.gov.uk/doc/local-authority/00DA,East - North East Homes Leeds,East - North East,Technical Services,Employees,Temporary Staff-Basic,009,11-Apr-2011,1104-00033,920.00,R,A D Simpson Construction Ltd
http://statistics.data.gov.uk/doc/local-authority/00DA,East - North East Homes Leeds,East - North East,Technical Services,Employees,Temporary Staff-Basic,009,11-Apr-2011,1104-00034,920.00,R,A D Simpson Construction Ltd
http://statistics.data.gov.uk/doc/local-authority/00DA,East - North East Homes Leeds,East - North East,Technical Services,Supplies and Services,Other Hired And Contracted Services,265,07-Apr-2011,1104-00035,418.40,R,A D Simpson Construction Ltd
http://statistics.data.gov.uk/doc/local-authority/00DA,East - North East Homes Leeds,East - North East,Technical Services,Supplies and Services,Other Hired And Contracted Services,265,07-Apr-2011,1104-00036,848.45,R,A D Simpson Construction Ltd
http://statistics.data.gov.uk/doc/local-authority/00DA,East - North East Homes Leeds,East - North East,Technical Services,Supplies and Services,Other Hired And Contracted Services,265,07-Apr-2011,1104-00037,619.13,R,A D Simpson Construction Ltd
http://statistics.data.gov.uk/doc/local-authority/00DA,East - North East Homes Leeds,East - North East,Technical Services,Supplies and Services,Other Hired And Contracted Services,265,07-Apr-2011,1104-00038,498.50,R,A D Simpson Construction Ltd
http://statistics.data.gov.uk/doc/local-authority/00DA,East - North East Homes Leeds,East - North East,Technical Services,Supplies and Services,Other Hired And Contracted Services,265,27-Apr-2011,1104-00039,3107.04,R,A D Simpson Construction Ltd
http://statistics.data.gov.uk/doc/local-authority/00DA,East - North East Homes Leeds,East - North East,Technical Services,Supplies and Services,Other Hired And Contracted Services,265,27-Apr-2011,1104-00040,1306.15,R,A D Simpson Construction Ltd
http://statistics.data.gov.uk/doc/local-authority/00DA,East - North East Homes Leeds,East - North East,Technical Services,Supplies and Services,Other Hired And Contracted Services,265,20-Apr-2011,1104-00041,1929.35,R,A D Simpson Construction Ltd
http://statistics.data.gov.uk/doc/local-authority/00DA,East - North East Homes Leeds,East - North East,Technical Services,Supplies and Services,Other Hired And Contracted Services,265,20-Apr-2011,1104-00042,695.35,R,A D Simpson Construction Ltd
http://statistics.data.gov.uk/doc/local-authority/00DA,East - North East Homes Leeds,East - North East,Technical Services,Supplies and Services,Other Hired And Contracted Services,265,15-Apr-2011,1104-00043,1334.46,R,A D Simpson Construction Ltd
http://statistics.data.gov.uk/doc/local-authority/00DA,East - North East Homes Leeds,East - North East,Technical Services,Supplies and Services,Other Hired And Contracted Services,265,15-Apr-2011,1104-00044,924.00,R,A D Simpson Construction Ltd
http://statistics.data.gov.uk/doc/local-authority/00DA,East - North East Homes Leeds,East - North East,Technical Services,Supplies and Services,Other Hired And Contracted Services,265,15-Apr-2011,1104-00045,1082.00,R,A D Simpson Construction Ltd
http://statistics.data.gov.uk/doc/local-authority/00DA,East - North East Homes Leeds,East - North East,Technical Services,Supplies and Services,Other Hired And Contracted Services,265,28-Apr-2011,1104-00046,1472.88,R,A D Simpson Construction Ltd
http://statistics.data.gov.uk/doc/local-authority/00DA,East - North East Homes Leeds,East - North East,Technical Services,Supplies and Services,Other Hired And Contracted Services,265,28-Apr-2011,1104-00047,1529.80,R,A D Simpson Construction Ltd
http://statistics.data.gov.uk/doc/local-authority/00DA,East - North East Homes Leeds,East - North East,Technical Services,Supplies and Services,Other Hired And Contracted Services,265,28-Apr-2011,1104-00048,1483.39,R,A D Simpson Construction Ltd
http://statistics.data.gov.uk/doc/local-authority/00DA,East - North East Homes Leeds,East - North East,Technical Services,Supplies and Services,Other Hired And Contracted Services,265,28-Apr-2011,1104-00049,1305.50,R,A D Simpson Construction Ltd
http://statistics.data.gov.uk/doc/local-authority/00DA,East - North East Homes Leeds,East - North East,Technical Services,Supplies and Services,Other Hired And Contracted Services,265,28-Apr-2011,1104-00050,1884.51,R,A D Simpson Construction Ltd
http://statistics.data.gov.uk/doc/local-authority/00DA,Leeds City Council,Childrens Services,Early Years Service,Third Party Payments,Services Rendered By Voluntary Sector,505,15-Apr-2011,1104-00051,17369.28,R,A E Speight
http://statistics.data.gov.uk/doc/local-authority/00DA,Leeds City Council,City Development,Libraries Arts & Heritage,Supplies and Services,Other Hired And Contracted Services,265,28-Apr-2011,1104-00052,500.00,R,A G Jones
http://statistics.data.gov.uk/doc/local-authority/00DA,Leeds City Council,Central & Corporate Functions,Commercial Services Trading Services,Supplies and Services,Operational Materials,205,15-Apr-2011,1104-00053,4630.00,R,A J H  Pump Supply & Repair Ltd
http://statistics.data.gov.uk/doc/local-authority/00DA,Leeds City Council,Central & Corporate Functions,Commercial Services Trading Services,Supplies and Services,Operational Materials,205,21-Apr-2011,1104-00054,853.00,R,A J H  Pump Supply & Repair Ltd
http://statistics.data.gov.uk/doc/local-authority/00DA,Leeds City Council,Central & Corporate Functions,Commercial Services Trading Services,Supplies and Services,Other Hired And Contracted Services,265,21-Apr-2011,1104-00055,5989.62,R,A J H  Pump Supply & Repair Ltd
http://statistics.data.gov.uk/doc/local-authority/00DA,Leeds City Council,Childrens Services,Integrated Youth Support  Service,Employees,Training Costs,071,08-Apr-2011,1104-00056,700.00,R,A J Matthews
http://statistics.data.gov.uk/doc/local-authority/00DA,Leeds City Council,Childrens Services,Children Looked After,Third Party Payments,General External Residential Placements,507,28-Apr-2011,1104-00057,13000.00,R,A Lowrie Care Service Limited
http://statistics.data.gov.uk/doc/local-authority/00DA,Leeds City Council,Central & Corporate Functions,Customer Services,Supplies and Services,Other Hired And Contracted Services,265,05-Apr-2011,1104-00058,446.15,R,A Mohammed
http://statistics.data.gov.uk/doc/local-authority/00DA,Leeds City Council,City Development,Recreation,Supplies and Services,Operational Materials,205,28-Apr-2011,1104-00059,456.00,R,A Newton
http://statistics.data.gov.uk/doc/local-authority/00DA,Leeds City Council,City Development,Recreation,Supplies and Services,Operational Materials,205,01-Apr-2011,1104-00060,563.00,R,A Newton
http://statistics.data.gov.uk/doc/local-authority/00DA,Leeds City Council,City Development,Libraries Arts & Heritage,Supplies and Services,Publication And Promotion,267,07-Apr-2011,1104-00061,462.00,R,A Y Creative Services
http://statistics.data.gov.uk/doc/local-authority/00DA,Leeds City Council,City Development,Libraries Arts & Heritage,Supplies and Services,Publication And Promotion,267,18-Apr-2011,1104-00062,624.00,R,A Y Creative Services
http://statistics.data.gov.uk/doc/local-authority/00DA,Leeds City Council,City Development,Libraries Arts & Heritage,Supplies and Services,Publication And Promotion,267,18-Apr-2011,1104-00063,624.00,R,A Y Creative Services
http://statistics.data.gov.uk/doc/local-authority/00DA,Leeds City Council,City Development,Libraries Arts & Heritage,Supplies and Services,Publication And Promotion,267,21-Apr-2011,1104-00064,1318.75,R,A Y Creative Services
http://statistics.data.gov.uk/doc/local-authority/00DA,Leeds City Council,Environment & Neighbourhoods,Housing Needs,Transport,Public Transport Expenses,310,28-Apr-2011,1104-00065,1520.00,R,A Zoom Taxis
http://statistics.data.gov.uk/doc/local-authority/00DA,Leeds City Council,Environment & Neighbourhoods,Housing Needs,Transport,Public Transport Expenses,310,01-Apr-2011,1104-00066,1525.00,R,A Zoom Taxis
http://statistics.data.gov.uk/doc/local-authority/00DA,Leeds City Council,Central & Corporate Functions,Support And Facilities Trading Services,Supplies and Services,Operational Materials,205,13-Apr-2011,1104-00067,696.50,R,Aalco Leeds
http://statistics.data.gov.uk/doc/local-authority/00DA,Leeds City Council,Adult Social Care,Social Services Support Services,Supplies and Services,Publication And Promotion,267,01-Apr-2011,1104-00068,971.00,R,Ab Co Ltd
http://statistics.data.gov.uk/doc/local-authority/00DA,Leeds City Council,Adult Social Care,Services For Older People - 65 And Over,Third Party Payments,Residential Care Emi,571,13-Apr-2011,1104-00069,1189.60,R,Abbey Lea Residential Care Home
http://statistics.data.gov.uk/doc/local-authority/00DA,Leeds City Council,Adult Social Care,Services For Adults Under 65 Mental/Dis,Third Party Payments,Residential,580,13-Apr-2011,1104-00070,1174.20,R,Abbeydale Care Home
http://statistics.data.gov.uk/doc/local-authority/00DA,Leeds City Council,Childrens Services,Early Years Service,Third Party Payments,Services Rendered By Other Organisations,511,14-Apr-2011,1104-00071,3502.96,R,Abc Daycare
http://statistics.data.gov.uk/doc/local-authority/00DA,Leeds City Council,Childrens Services,Early Years Service,Third Party Payments,Services Rendered By Other Organisations,511,15-Apr-2011,1104-00072,6180.48,R,Abc Nursery At Lufc
http://statistics.data.gov.uk/doc/local-authority/00DA,East - North East Homes Leeds,East - North East,Business Improvement,Supplies and Services,Publicity and Promotion,267,20-Apr-2011,1104-00073,488.00,R,Abc Promotional Gifts Ltd
http://statistics.data.gov.uk/doc/local-authority/00DA,Leeds City Council,Strategic Accounts,Strategic,Precepts,Parish Precepts,210,04-Apr-2011,1104-00074,9000.00,R,Aberford And District Parish Council
http://statistics.data.gov.uk/doc/local-authority/00DA,Leeds City Council,Environment & Neighbourhoods,Belle Isle,Capital,Construction,3,06-Apr-2011,1104-00075,3061.26,C,Able Bathing & Building Contractors Ltd
http://statistics.data.gov.uk/doc/local-authority/00DA,Leeds City Council,Environment & Neighbourhoods,South South East,Capital,Construction,3,28-Apr-2011,1104-00076,3600.00,C,Able Bathing & Building Contractors Ltd
http://statistics.data.gov.uk/doc/local-authority/00DA,Leeds City Council,Environment & Neighbourhoods,South South East,Capital,Construction,3,28-Apr-2011,1104-00077,3600.00,C,Able Bathing & Building Contractors Ltd
http://statistics.data.gov.uk/doc/local-authority/00DA,Leeds City Council,Environment & Neighbourhoods,South South East,Capital,Construction,3,28-Apr-2011,1104-00078,3600.00,C,Able Bathing & Building Contractors Ltd
http://statistics.data.gov.uk/doc/local-authority/00DA,Leeds City Council,Environment & Neighbourhoods,South South East,Capital,Construction,3,28-Apr-2011,1104-00079,3600.00,C,Able Bathing & Building Contractors Ltd
http://statistics.data.gov.uk/doc/local-authority/00DA,Leeds City Council,Environment & Neighbourhoods,South South East,Capital,Construction,3,28-Apr-2011,1104-00080,3600.00,C,Able Bathing & Building Contractors Ltd
http://statistics.data.gov.uk/doc/local-authority/00DA,Leeds City Council,Environment & Neighbourhoods,Environmental Health,Capital,Construction,3,13-Apr-2011,1104-00081,9605.00,C,Able Bathing & Building Contractors Ltd
http://statistics.data.gov.uk/doc/local-authority/00DA,Leeds City Council,Environment & Neighbourhoods,Environmental Health,Capital,Construction,3,08-Apr-2011,1104-00082,4700.00,C,Able Bathing & Building Contractors Ltd
http://statistics.data.gov.uk/doc/local-authority/00DA,Leeds City Council,Environment & Neighbourhoods,Environmental Health,Capital,Construction,3,13-Apr-2011,1104-00083,4400.00,C,Able Bathing & Building Contractors Ltd
http://statistics.data.gov.uk/doc/local-authority/00DA,Leeds City Council,Environment & Neighbourhoods,Environmental Health,Capital,Construction,3,08-Apr-2011,1104-00084,4400.00,C,Able Bathing & Building Contractors Ltd
http://statistics.data.gov.uk/doc/local-authority/00DA,Leeds City Council,Environment & Neighbourhoods,Environmental Health,Capital,Construction,3,13-Apr-2011,1104-00085,4400.00,C,Able Bathing & Building Contractors Ltd
http://statistics.data.gov.uk/doc/local-authority/00DA,Leeds City Council,Environment & Neighbourhoods,Environmental Health,Capital,Construction,3,13-Apr-2011,1104-00086,7905.00,C,Able Bathing & Building Contractors Ltd
http://statistics.data.gov.uk/doc/local-authority/00DA,Leeds City Council,Environment & Neighbourhoods,Environmental Health,Capital,Construction,3,08-Apr-2011,1104-00087,4400.00,C,Able Bathing & Building Contractors Ltd
http://statistics.data.gov.uk/doc/local-authority/00DA,Leeds City Council,Environment & Neighbourhoods,Environmental Health,Capital,Construction,3,15-Apr-2011,1104-00088,4581.50,C,Able Bathing & Building Contractors Ltd
http://statistics.data.gov.uk/doc/local-authority/00DA,Leeds City Council,Environment & Neighbourhoods,Environmental Health,Capital,Construction,3,15-Apr-2011,1104-00089,4620.00,C,Able Bathing & Building Contractors Ltd
http://statistics.data.gov.uk/doc/local-authority/00DA,Leeds City Council,Environment & Neighbourhoods,Environmental Health,Capital,Construction,3,08-Apr-2011,1104-00090,8000.00,C,Able Bathing & Building Contractors Ltd
http://statistics.data.gov.uk/doc/local-authority/00DA,Leeds City Council,Environment & Neighbourhoods,Environmental Health,Capital,Construction,3,13-Apr-2011,1104-00091,3566.00,C,Able Bathing & Building Contractors Ltd
http://statistics.data.gov.uk/doc/local-authority/00DA,Leeds City Council,Environment & Neighbourhoods,Environmental Health,Capital,Construction,3,08-Apr-2011,1104-00092,1090.00,C,Able Bathing & Building Contractors Ltd
http://statistics.data.gov.uk/doc/local-authority/00DA,Leeds City Council,Environment & Neighbourhoods,Environmental Health,Capital,Construction,3,28-Apr-2011,1104-00093,4700.00,C,Able Bathing & Building Contractors Ltd
http://statistics.data.gov.uk/doc/local-authority/00DA,Leeds City Council,Environment & Neighbourhoods,Environmental Health,Capital,Construction,3,13-Apr-2011,1104-00094,4400.00,C,Able Bathing & Building Contractors Ltd
http://statistics.data.gov.uk/doc/local-authority/00DA,Leeds City Council,Environment & Neighbourhoods,Environmental Health,Capital,Construction,3,15-Apr-2011,1104-00095,4970.00,C,Able Bathing & Building Contractors Ltd
http://statistics.data.gov.uk/doc/local-authority/00DA,Leeds City Council,Environment & Neighbourhoods,Environmental Health,Capital,Construction,3,01-Apr-2011,1104-00096,4400.00,C,Able Bathing & Building Contractors Ltd
http://statistics.data.gov.uk/doc/local-authority/00DA,Leeds City Council,City Development,Libraries Arts & Heritage,Supplies and Services,Operational Materials,205,13-Apr-2011,1104-00097,1255.00,R,Absolute Museum & Gallery Products Ltd
http://statistics.data.gov.uk/doc/local-authority/00DA,Education Leeds,Education Leeds,Education Leeds,Supplies and Services,Other Hired And Contracted Services,265,01-Apr-2011,1104-00098,808.00,R,Academic Appointments Ltd
http://statistics.data.gov.uk/doc/local-authority/00DA,Education Leeds,Education Leeds,Education Leeds,Supplies and Services,Other Hired And Contracted Services,265,08-Apr-2011,1104-00099,1010.00,R,Academic Appointments Ltd
http://statistics.data.gov.uk/doc/local-authority/00DA,Education Leeds,Education Leeds,Education Leeds,Supplies and Services,Other Hired And Contracted Services,265,07-Apr-2011,1104-00100,3536.00,R,Academic Appointments Ltd
http://statistics.data.gov.uk/doc/local-authority/00DA,Education Leeds,Education Leeds,Education Leeds,Supplies and Services,Other Hired And Contracted Services,265,15-Apr-2011,1104-00101,1010.00,R,Academic Appointments Ltd
http://statistics.data.gov.uk/doc/local-authority/00DA,Education Leeds,Education Leeds,Education Leeds,Supplies and Services,Other Hired And Contracted Services,265,15-Apr-2011,1104-00102,3530.00,R,Academic Appointments Ltd
http://statistics.data.gov.uk/doc/local-authority/00DA,Education Leeds,Education Leeds,Education Leeds,Supplies and Services,Other Hired And Contracted Services,265,21-Apr-2011,1104-00103,1010.00,R,Academic Appointments Ltd
http://statistics.data.gov.uk/doc/local-authority/00DA,Education Leeds,Education Leeds,Education Leeds,Supplies and Services,Other Hired And Contracted Services,265,21-Apr-2011,1104-00104,2930.00,R,Academic Appointments Ltd
http://statistics.data.gov.uk/doc/local-authority/00DA,Education Leeds,Education Leeds,Education Leeds,Supplies and Services,Other Hired And Contracted Services,265,28-Apr-2011,1104-00105,1010.00,R,Academic Appointments Ltd
http://statistics.data.gov.uk/doc/local-authority/00DA,Education Leeds,Education Leeds,Education Leeds,Supplies and Services,Other Hired And Contracted Services,265,27-Apr-2011,1104-00106,2728.00,R,Academic Appointments Ltd
http://statistics.data.gov.uk/doc/local-authority/00DA,Education Leeds,Education Leeds,Education Leeds,Supplies and Services,Other Hired And Contracted Services,265,28-Apr-2011,1104-00107,808.00,R,Academic Appointments Ltd
http://statistics.data.gov.uk/doc/local-authority/00DA,Education Leeds,Education Leeds,Education Leeds,Supplies and Services,Other Hired And Contracted Services,265,28-Apr-2011,1104-00108,2728.00,R,Academic Appointments Ltd
http://statistics.data.gov.uk/doc/local-authority/00DA,Leeds City Council,Environment & Neighbourhoods,Environmental Health,Capital,Construction,3,14-Apr-2011,1104-00109,2376.00,C,Accent Homes Ltd
http://statistics.data.gov.uk/doc/local-authority/00DA,Leeds City Council,Central & Corporate Functions,Executive Support,Supplies and Services,Memberships,226,27-Apr-2011,1104-00110,4050.00,R,Access Intelligence Media And
http://statistics.data.gov.uk/doc/local-authority/00DA,East - North East Homes Leeds,East - North East,Housing Services,Supplies and Services,Equipment And Materials,207,01-Apr-2011,1104-00111,561.00,R,Access Locksmiths (Leeds) Limited
http://statistics.data.gov.uk/doc/local-authority/00DA,East - North East Homes Leeds,East - North East,Technical Services,Premises,General Maintenance,104,15-Apr-2011,1104-00112,963.60,R,Access Locksmiths (Leeds) Limited
http://statistics.data.gov.uk/doc/local-authority/00DA,East - North East Homes Leeds,East - North East,Technical Services,Premises,General Maintenance,104,21-Apr-2011,1104-00113,4304.08,R,Access Locksmiths (Leeds) Limited
http://statistics.data.gov.uk/doc/local-authority/00DA,East - North East Homes Leeds,East - North East,Technical Services,Premises,H.R.A. - Special Maintenance,106,21-Apr-2011,1104-00114,457.20,R,Access Locksmiths (Leeds) Limited
http://statistics.data.gov.uk/doc/local-authority/00DA,East - North East Homes Leeds,East - North East,Technical Services,Premises,General Maintenance,104,28-Apr-2011,1104-00115,899.36,R,Access Locksmiths (Leeds) Limited
http://statistics.data.gov.uk/doc/local-authority/00DA,East - North East Homes Leeds,East - North East,Technical Services,Premises,General Maintenance,104,08-Apr-2011,1104-00116,480.00,R,Access Maintenance Solutions Ltd
http://statistics.data.gov.uk/doc/local-authority/00DA,West - North West Homes Leeds,West - North West,Property And Maintenance,Premises,General Maintenance,104,08-Apr-2011,1104-00117,540.00,R,Access Maintenance Solutions Ltd
http://statistics.data.gov.uk/doc/local-authority/00DA,West - North West Homes Leeds,West - North West,Property And Maintenance,Premises,General Maintenance,104,21-Apr-2011,1104-00118,425.00,R,Access Maintenance Solutions Ltd
http://statistics.data.gov.uk/doc/local-authority/00DA,Leeds City Council,City Development,Recreation,Employees,Agency Staff,008,08-Apr-2011,1104-00119,808.01,R,Acclaimed Security Services
http://statistics.data.gov.uk/doc/local-authority/00DA,Leeds City Council,City Development,Recreation,Supplies and Services,Security Services(Non Infrastructure),262,08-Apr-2011,1104-00120,462.48,R,Acclaimed Security Services
http://statistics.data.gov.uk/doc/local-authority/00DA,Leeds City Council,City Development,Recreation,Employees,Agency Staff,008,08-Apr-2011,1104-00121,808.01,R,Acclaimed Security Services
http://statistics.data.gov.uk/doc/local-authority/00DA,Leeds City Council,City Development,Recreation,Supplies and Services,Security Services(Non Infrastructure),262,08-Apr-2011,1104-00122,457.56,R,Acclaimed Security Services
http://statistics.data.gov.uk/doc/local-authority/00DA,Leeds City Council,City Development,Recreation,Employees,Agency Staff,008,06-Apr-2011,1104-00123,657.36,R,Acclaimed Security Services
http://statistics.data.gov.uk/doc/local-authority/00DA,Leeds City Council,City Development,Recreation,Employees,Agency Staff,008,15-Apr-2011,1104-00124,803.44,R,Acclaimed Security Services
http://statistics.data.gov.uk/doc/local-authority/00DA,Leeds City Council,City Development,Recreation,Supplies and Services,Security Services(Non Infrastructure),262,15-Apr-2011,1104-00125,447.72,R,Acclaimed Security Services
http://statistics.data.gov.uk/doc/local-authority/00DA,Leeds City Council,City Development,Recreation,Employees,Agency Staff,008,20-Apr-2011,1104-00126,438.24,R,Acclaimed Security Services
http://statistics.data.gov.uk/doc/local-authority/00DA,Leeds City Council,City Development,Recreation,Employees,Agency Staff,008,28-Apr-2011,1104-00127,438.24,R,Acclaimed Security Services
http://statistics.data.gov.uk/doc/local-authority/00DA,Leeds City Council,City Development,Recreation,Employees,Agency Staff,008,13-Apr-2011,1104-00128,-511.28,R,Acclaimed Security Services
http://statistics.data.gov.uk/doc/local-authority/00DA,Leeds City Council,City Development,Recreation,Employees,Agency Staff,008,13-Apr-2011,1104-00129,511.28,R,Acclaimed Security Services
http://statistics.data.gov.uk/doc/local-authority/00DA,Leeds City Council,Insurance,Insurance,Supplies and Services,Insurance Claims,248,07-Apr-2011,1104-00130,2000.00,R,Accountant General Of The Senior Court
http://statistics.data.gov.uk/doc/local-authority/00DA,Leeds City Council,Insurance,Insurance,Supplies and Services,Insurance Claims,248,28-Apr-2011,1104-00131,3500.00,R,Accountant General Of The Senior Court
http://statistics.data.gov.uk/doc/local-authority/00DA,Leeds City Council,Childrens Services,Integrated Youth Support  Service,Capital,Furniture And Equipment,5,28-Apr-2011,1104-00132,673.97,C,Accurate
http://statistics.data.gov.uk/doc/local-authority/00DA,Leeds City Council,Childrens Services,Early Years Service,Capital,Construction,3,28-Apr-2011,1104-00133,3500.00,C,Ace Engineers (Morley) Ltd
http://statistics.data.gov.uk/doc/local-authority/00DA,Education Leeds,Education Leeds,Education Leeds,Supplies and Services,Bought in Professional Services,277,27-Apr-2011,1104-00134,2475.00,R,Ackton Pastures Junior & Infants School
http://statistics.data.gov.uk/doc/local-authority/00DA,Leeds City Council,Adult Social Care,Services For Older People - 65 And Over,Third Party Payments,Nursing Home,570,13-Apr-2011,1104-00135,1202.88,R,Ackworth House
http://statistics.data.gov.uk/doc/local-authority/00DA,Leeds City Council,Central & Corporate Functions,Commercial Services Trading Services,Supplies and Services,Other Hired And Contracted Services,265,06-Apr-2011,1104-00136,680.00,R,Acm
http://statistics.data.gov.uk/doc/local-authority/00DA,Leeds City Council,City Development,Recreation,Supplies and Services,Operational Furniture And Equipment,203,15-Apr-2011,1104-00137,1320.00,R,Acm
http://statistics.data.gov.uk/doc/local-authority/00DA,Leeds City Council,Central & Corporate Functions,Commercial Services Trading Services,Supplies and Services,Operational Furniture And Equipment,203,12-Apr-2011,1104-00138,1531.00,R,Acme
http://statistics.data.gov.uk/doc/local-authority/00DA,Leeds City Council,City Development,Libraries Arts & Heritage,Supplies and Services,Other Hired And Contracted Services,265,12-Apr-2011,1104-00139,4750.00,R,Acorn Event Solutions Ltd
http://statistics.data.gov.uk/doc/local-authority/00DA,Leeds City Council,City Development,Libraries Arts & Heritage,Supplies and Services,Other Hired And Contracted Services,265,15-Apr-2011,1104-00140,540.00,R,Acorn Event Solutions Ltd
http://statistics.data.gov.uk/doc/local-authority/00DA,Leeds City Council,City Development,Libraries Arts & Heritage,Supplies and Services,Operational Furniture And Equipment,203,15-Apr-2011,1104-00141,1570.00,R,Acorn Event Solutions Ltd
http://statistics.data.gov.uk/doc/local-authority/00DA,Leeds City Council,Childrens Services,Early Years Service,Third Party Payments,Services Rendered By Other Organisations,511,15-Apr-2011,1104-00142,8236.68,R,Acorns Nursery
http://statistics.data.gov.uk/doc/local-authority/00DA,Leeds City Council,Childrens Services,Early Years Service,Third Party Payments,Services Rendered By Other Organisations,511,15-Apr-2011,1104-00143,10307.38,R,Acre Wood Childrens Nursery
http://statistics.data.gov.uk/doc/local-authority/00DA,Leeds City Council,Childrens Services,Children Looked After,Third Party Payments,Services Rendered By Other Organisations,511,15-Apr-2011,1104-00144,150017.25,R,Action For Children
http://statistics.data.gov.uk/doc/local-authority/00DA,Leeds City Council,Childrens Services,Other Childrens And Families Services,Third Party Payments,Payments To Voluntary Organisations,561,04-Apr-2011,1104-00145,278205.00,R,Action For Children
http://statistics.data.gov.uk/doc/local-authority/00DA,Leeds City Council,Childrens Services,Other Childrens And Families Services,Third Party Payments,Adoptions - Allowances,560,14-Apr-2011,1104-00146,-1892.01,R,Action For Children
http://statistics.data.gov.uk/doc/local-authority/00DA,Leeds City Council,Childrens Services,Other Childrens And Families Services,Third Party Payments,Adoptions - Allowances,560,07-Apr-2011,1104-00147,20640.00,R,Action For Children
http://statistics.data.gov.uk/doc/local-authority/00DA,Leeds City Council,Childrens Services,Children Looked After,Third Party Payments,Independent Fostering Agencies,509,06-Apr-2011,1104-00148,4400.00,R,Action For Children
http://statistics.data.gov.uk/doc/local-authority/00DA,Leeds City Council,Childrens Services,Children Looked After,Third Party Payments,Independent Fostering Agencies,509,07-Apr-2011,1104-00149,2000.04,R,Action For Children
http://statistics.data.gov.uk/doc/local-authority/00DA,Leeds City Council,Childrens Services,Children Looked After,Third Party Payments,Independent Fostering Agencies,509,14-Apr-2011,1104-00150,5199.99,R,Action For Children
http://statistics.data.gov.uk/doc/local-authority/00DA,Leeds City Council,Childrens Services,Children Looked After,Third Party Payments,Independent Fostering Agencies,509,14-Apr-2011,1104-00151,4790.00,R,Action For Children
http://statistics.data.gov.uk/doc/local-authority/00DA,Leeds City Council,Adult Social Care,Services For Older People - 65 And Over,Third Party Payments,Payments To Voluntary Organisations,561,01-Apr-2011,1104-00152,3238.00,R,Action For Gipton Elderly
http://statistics.data.gov.uk/doc/local-authority/00DA,Leeds City Council,Adult Social Care,Services For Older People - 65 And Over,Third Party Payments,Payments To Voluntary Organisations,561,01-Apr-2011,1104-00153,17767.50,R,Action For Gipton Elderly
http://statistics.data.gov.uk/doc/local-authority/00DA,Leeds City Council,Childrens Services,Integrated Youth Support  Service,Supplies and Services,Clothing & Uniforms,241,27-Apr-2011,1104-00154,1356.67,R,Activ8 Sporting Solutions Ltd
http://statistics.data.gov.uk/doc/local-authority/00DA,Leeds City Council,Adult Social Care,Assessment And Care Management,Supplies and Services,Waste Disposal Charges,236,08-Apr-2011,1104-00155,2570.20,R,Active Cleaning Solutions Ltd
http://statistics.data.gov.uk/doc/local-authority/00DA,West - North West Homes Leeds,West - North West,Property And Maintenance,Premises,General Maintenance,104,13-Apr-2011,1104-00156,1580.00,R,Active Cleaning Solutions Ltd
http://statistics.data.gov.uk/doc/local-authority/00DA,Leeds City Council,Childrens Services,Early Years Service,Third Party Payments,Services Rendered By Other Organisations,511,15-Apr-2011,1104-00157,7236.53,R,Active Kids Day Nursery
http://statistics.data.gov.uk/doc/local-authority/00DA,Leeds City Council,Other Education Services Managed By E.L.,Active Accounts,Supplies and Services,Office Furniture & Equipment,201,07-Apr-2011,1104-00158,950.00,R,Active Mobility Centre Ltd
http://statistics.data.gov.uk/doc/local-authority/00DA,Leeds City Council,City Development,Recreation,Supplies and Services,Bought In Professional Services,277,11-Apr-2011,1104-00159,4730.37,R,Ad Golf Management Ltd
http://statistics.data.gov.uk/doc/local-authority/00DA,Leeds City Council,City Development,Recreation,Supplies and Services,Bought In Professional Services,277,07-Apr-2011,1104-00160,4187.03,R,Ad Golf Management Ltd
http://statistics.data.gov.uk/doc/local-authority/00DA,Leeds City Council,Adult Social Care,Assessment And Care Management,Support Services,Legal Disbursements,411,14-Apr-2011,1104-00161,525.00,R,Adam Fullwood
http://statistics.data.gov.uk/doc/local-authority/00DA,Leeds City Council,Childrens Services,Director Of Childrens Services,Supplies and Services,Memberships,226,01-Apr-2011,1104-00162,3135.00,R,Adcs
http://statistics.data.gov.uk/doc/local-authority/00DA,Leeds City Council,Childrens Services,Early Years Service,Third Party Payments,Services Rendered By Voluntary Sector,505,15-Apr-2011,1104-00163,9424.14,R,Adel Pre School
http://statistics.data.gov.uk/doc/local-authority/00DA,Leeds City Council,Environment & Neighbourhoods,Environmental Health,Capital,Other Costs,7,27-Apr-2011,1104-00164,790.00,C,Admas Limited
http://statistics.data.gov.uk/doc/local-authority/00DA,Leeds City Council,Childrens Services,Other Childrens And Families Services,Third Party Payments,Adoptions - Allowances,560,07-Apr-2011,1104-00165,554.00,R,Adoption Matters Northwest
http://statistics.data.gov.uk/doc/local-authority/00DA,Leeds City Council,Environment & Neighbourhoods,Safer Leeds Drugs Team,Third Party Payments,Services Rendered By Voluntary Sector,505,13-Apr-2011,1104-00166,19766.67,R,Ads
http://statistics.data.gov.uk/doc/local-authority/00DA,Leeds City Council,Central & Corporate Functions,Corporate Property Management,Premises,Maintenance Of Buildings,101,12-Apr-2011,1104-00167,610.19,R,Adt Fire And Security
http://statistics.data.gov.uk/doc/local-authority/00DA,Leeds City Council,Childrens Services,Children - Commissioning And Social Work,Support Services,Legal Disbursements,411,13-Apr-2011,1104-00168,3120.00,R,Advanced Child Care Assessments Ltd
http://statistics.data.gov.uk/doc/local-authority/00DA,Leeds City Council,Childrens Services,Children - Commissioning And Social Work,Support Services,Legal Disbursements,411,28-Apr-2011,1104-00169,3000.00,R,Advanced Child Care Assessments Ltd
http://statistics.data.gov.uk/doc/local-authority/00DA,Leeds City Council as Accountable Body,Jcs For People With Learning Disabilitie,Jcs For People With Learning Disabilitie,Third Party Payments,Residential,580,13-Apr-2011,1104-00170,20722.96,R,Advitam Ltd
http://statistics.data.gov.uk/doc/local-authority/00DA,Leeds City Council,Adult Social Care,Services For Older People - 65 And Over,Third Party Payments,Payments To Voluntary Organisations,561,15-Apr-2011,1104-00171,4524.64,R,Advocacy For Mental Health And Dementia
http://statistics.data.gov.uk/doc/local-authority/00DA,Leeds City Council,Adult Social Care,Other Adult Services,Supplies and Services,Recurring & Major Grantss Projects,229,06-Apr-2011,1104-00172,7803.00,R,Advocacy Support Limited
http://statistics.data.gov.uk/doc/local-authority/00DA,Leeds City Council,Adult Social Care,Other Adult Services,Supplies and Services,Recurring & Major Grantss Projects,229,06-Apr-2011,1104-00173,9884.00,R,Advonet
http://statistics.data.gov.uk/doc/local-authority/00DA,Leeds City Council,Insurance,Insurance,Supplies and Services,Other Hired And Contracted Services,265,07-Apr-2011,1104-00174,2036.00,R,Aegis Legal Ltd
http://statistics.data.gov.uk/doc/local-authority/00DA,Leeds City Council as Accountable Body,Jcs For People With Learning Disabilitie,Jcs For People With Learning Disabilitie,Third Party Payments,Home Care,568,08-Apr-2011,1104-00175,6193.32,R,Affinity Trust
http://statistics.data.gov.uk/doc/local-authority/00DA,Leeds City Council as Accountable Body,Jcs For People With Learning Disabilitie,Jcs For People With Learning Disabilitie,Third Party Payments,Home Care,568,08-Apr-2011,1104-00176,3848.08,R,Affinity Trust
http://statistics.data.gov.uk/doc/local-authority/00DA,Leeds City Council as Accountable Body,Jcs For People With Learning Disabilitie,Jcs For People With Learning Disabilitie,Third Party Payments,Home Care,568,08-Apr-2011,1104-00177,3848.08,R,Affinity Trust
http://statistics.data.gov.uk/doc/local-authority/00DA,Leeds City Council,Adult Social Care,Services For Older People Under 65 P/Dis,Third Party Payments,Home Care,568,07-Apr-2011,1104-00178,1744.96,R,Affinity Trust
http://statistics.data.gov.uk/doc/local-authority/00DA,Leeds City Council as Accountable Body,Jcs For People With Learning Disabilitie,Jcs For People With Learning Disabilitie,Third Party Payments,Day Centre,564,07-Apr-2011,1104-00179,2333.00,R,Affinity Trust
http://statistics.data.gov.uk/doc/local-authority/00DA,Leeds City Council,Adult Social Care,Services For Adults Under 65 Mental/Dis,Third Party Payments,Home Care,568,01-Apr-2011,1104-00180,760.52,R,Affinity Trust
http://statistics.data.gov.uk/doc/local-authority/00DA,Leeds City Council,Adult Social Care,Services For Older People Under 65 P/Dis,Third Party Payments,Home Care,568,07-Apr-2011,1104-00181,946.62,R,Affinity Trust
http://statistics.data.gov.uk/doc/local-authority/00DA,Leeds City Council,Adult Social Care,Services For Older People Under 65 P/Dis,Third Party Payments,Home Care,568,07-Apr-2011,1104-00182,777.84,R,Affinity Trust
http://statistics.data.gov.uk/doc/local-authority/00DA,Leeds City Council,Adult Social Care,Services For Older People Under 65 P/Dis,Third Party Payments,Home Care,568,07-Apr-2011,1104-00183,1375.80,R,Affinity Trust
http://statistics.data.gov.uk/doc/local-authority/00DA,Leeds City Council as Accountable Body,Jcs For People With Learning Disabilitie,Jcs For People With Learning Disabilitie,Third Party Payments,Home Care,568,07-Apr-2011,1104-00184,689.62,R,Affinity Trust
http://statistics.data.gov.uk/doc/local-authority/00DA,Leeds City Council as Accountable Body,Jcs For People With Learning Disabilitie,Jcs For People With Learning Disabilitie,Third Party Payments,Day Centre,564,07-Apr-2011,1104-00185,456.64,R,Affinity Trust
http://statistics.data.gov.uk/doc/local-authority/00DA,Leeds City Council as Accountable Body,Jcs For People With Learning Disabilitie,Jcs For People With Learning Disabilitie,Third Party Payments,Home Care,568,07-Apr-2011,1104-00186,901.00,R,Affinity Trust
http://statistics.data.gov.uk/doc/local-authority/00DA,Leeds City Council as Accountable Body,Jcs For People With Learning Disabilitie,Jcs For People With Learning Disabilitie,Third Party Payments,Home Care,568,07-Apr-2011,1104-00187,672.80,R,Affinity Trust
http://statistics.data.gov.uk/doc/local-authority/00DA,Leeds City Council as Accountable Body,Jcs For People With Learning Disabilitie,Jcs For People With Learning Disabilitie,Third Party Payments,Home Care,568,08-Apr-2011,1104-00188,564.30,R,Affinity Trust
http://statistics.data.gov.uk/doc/local-authority/00DA,Leeds City Council as Accountable Body,Jcs For People With Learning Disabilitie,Jcs For People With Learning Disabilitie,Third Party Payments,Day Centre,564,08-Apr-2011,1104-00189,1316.70,R,Affinity Trust
http://statistics.data.gov.uk/doc/local-authority/00DA,Leeds City Council as Accountable Body,Jcs For People With Learning Disabilitie,Jcs For People With Learning Disabilitie,Third Party Payments,Day Centre,564,08-Apr-2011,1104-00190,4222.04,R,Affinity Trust
http://statistics.data.gov.uk/doc/local-authority/00DA,Leeds City Council as Accountable Body,Jcs For People With Learning Disabilitie,Jcs For People With Learning Disabilitie,Third Party Payments,Day Centre,564,08-Apr-2011,1104-00191,1822.80,R,Affinity Trust
http://statistics.data.gov.uk/doc/local-authority/00DA,Leeds City Council as Accountable Body,Jcs For People With Learning Disabilitie,Jcs For People With Learning Disabilitie,Third Party Payments,Day Centre,564,20-Apr-2011,1104-00192,3928.80,R,Affinity Trust
http://statistics.data.gov.uk/doc/local-authority/00DA,Leeds City Council as Accountable Body,Jcs For People With Learning Disabilitie,Jcs For People With Learning Disabilitie,Third Party Payments,Day Centre,564,08-Apr-2011,1104-00193,1508.40,R,Affinity Trust
http://statistics.data.gov.uk/doc/local-authority/00DA,Leeds City Council as Accountable Body,Jcs For People With Learning Disabilitie,Jcs For People With Learning Disabilitie,Third Party Payments,Home Care,568,08-Apr-2011,1104-00194,5521.60,R,Affinity Trust
http://statistics.data.gov.uk/doc/local-authority/00DA,Leeds City Council as Accountable Body,Jcs For People With Learning Disabilitie,Jcs For People With Learning Disabilitie,Third Party Payments,Residential,580,08-Apr-2011,1104-00195,1109.40,R,Affinity Trust
http://statistics.data.gov.uk/doc/local-authority/00DA,Leeds City Council as Accountable Body,Jcs For People With Learning Disabilitie,Jcs For People With Learning Disabilitie,Third Party Payments,Home Care,568,08-Apr-2011,1104-00196,1005.60,R,Affinity Trust
http://statistics.data.gov.uk/doc/local-authority/00DA,Leeds City Council,Adult Social Care,Services For Older People - 65 And Over,Third Party Payments,Residential,580,19-Apr-2011,1104-00197,658.35,R,Affinity Trust
http://statistics.data.gov.uk/doc/local-authority/00DA,Leeds City Council as Accountable Body,Jcs For People With Learning Disabilitie,Jcs For People With Learning Disabilitie,Third Party Payments,Home Care,568,08-Apr-2011,1104-00198,1491.64,R,Affinity Trust
http://statistics.data.gov.uk/doc/local-authority/00DA,Leeds City Council as Accountable Body,Jcs For People With Learning Disabilitie,Jcs For People With Learning Disabilitie,Third Party Payments,Day Centre,564,08-Apr-2011,1104-00199,893.48,R,Affinity Trust
http://statistics.data.gov.uk/doc/local-authority/00DA,Leeds City Council as Accountable Body,Jcs For People With Learning Disabilitie,Jcs For People With Learning Disabilitie,Third Party Payments,Day Centre,564,08-Apr-2011,1104-00200,3016.80,R,Affinity Trust
http://statistics.data.gov.uk/doc/local-authority/00DA,Leeds City Council as Accountable Body,Jcs For People With Learning Disabilitie,Jcs For People With Learning Disabilitie,Third Party Payments,Home Care,568,21-Apr-2011,1104-00201,7741.65,R,Affinity Trust
http://statistics.data.gov.uk/doc/local-authority/00DA,Leeds City Council as Accountable Body,Jcs For People With Learning Disabilitie,Jcs For People With Learning Disabilitie,Third Party Payments,Home Care,568,21-Apr-2011,1104-00202,4810.10,R,Affinity Trust
http://statistics.data.gov.uk/doc/local-authority/00DA,Leeds City Council as Accountable Body,Jcs For People With Learning Disabilitie,Jcs For People With Learning Disabilitie,Third Party Payments,Home Care,568,21-Apr-2011,1104-00203,4810.10,R,Affinity Trust
http://statistics.data.gov.uk/doc/local-authority/00DA,Leeds City Council,Adult Social Care,Services For Older People - 65 And Over,Third Party Payments,Residential,580,28-Apr-2011,1104-00204,504.60,R,Affinity Trust
http://statistics.data.gov.uk/doc/local-authority/00DA,Leeds City Council as Accountable Body,Jcs For People With Learning Disabilitie,Jcs For People With Learning Disabilitie,Third Party Payments,Home Care,568,07-Apr-2011,1104-00205,11181.75,R,Affinity Trust North Divisional Office
http://statistics.data.gov.uk/doc/local-authority/00DA,Leeds City Council as Accountable Body,Jcs For People With Learning Disabilitie,Jcs For People With Learning Disabilitie,Third Party Payments,Home Care,568,07-Apr-2011,1104-00206,12409.02,R,Affinity Trust North Divisional Office
http://statistics.data.gov.uk/doc/local-authority/00DA,Leeds City Council as Accountable Body,Jcs For People With Learning Disabilitie,Jcs For People With Learning Disabilitie,Third Party Payments,Home Care,568,07-Apr-2011,1104-00207,12409.02,R,Affinity Trust North Divisional Office
http://statistics.data.gov.uk/doc/local-authority/00DA,Leeds City Council,Adult Social Care,Services For Older People - 65 And Over,Third Party Payments,Residential,580,06-Apr-2011,1104-00208,504.60,R,Affinity Trust North Divisional Office
http://statistics.data.gov.uk/doc/local-authority/00DA,Leeds City Council as Accountable Body,Jcs For People With Learning Disabilitie,Jcs For People With Learning Disabilitie,Third Party Payments,Home Care,568,06-Apr-2011,1104-00209,428.00,R,Affinity Trust North Divisional Office
http://statistics.data.gov.uk/doc/local-authority/00DA,Leeds City Council as Accountable Body,Jcs For People With Learning Disabilitie,Jcs For People With Learning Disabilitie,Third Party Payments,Home Care,568,14-Apr-2011,1104-00210,806.10,R,Affinity Trust North Divisional Office
http://statistics.data.gov.uk/doc/local-authority/00DA,Leeds City Council as Accountable Body,Jcs For People With Learning Disabilitie,Jcs For People With Learning Disabilitie,Third Party Payments,Day Centre,564,14-Apr-2011,1104-00211,3897.60,R,Affinity Trust North Divisional Office
http://statistics.data.gov.uk/doc/local-authority/00DA,Leeds City Council as Accountable Body,Jcs For People With Learning Disabilitie,Jcs For People With Learning Disabilitie,Third Party Payments,Home Care,568,14-Apr-2011,1104-00212,1843.60,R,Affinity Trust North Divisional Office
http://statistics.data.gov.uk/doc/local-authority/00DA,Leeds City Council as Accountable Body,Jcs For People With Learning Disabilitie,Jcs For People With Learning Disabilitie,Third Party Payments,Home Care,568,14-Apr-2011,1104-00213,5144.32,R,Affinity Trust North Divisional Office
http://statistics.data.gov.uk/doc/local-authority/00DA,Leeds City Council as Accountable Body,Jcs For People With Learning Disabilitie,Jcs For People With Learning Disabilitie,Third Party Payments,Day Centre,564,14-Apr-2011,1104-00214,2956.80,R,Affinity Trust North Divisional Office
http://statistics.data.gov.uk/doc/local-authority/00DA,Leeds City Council as Accountable Body,Jcs For People With Learning Disabilitie,Jcs For People With Learning Disabilitie,Third Party Payments,Home Care,568,08-Apr-2011,1104-00215,1005.60,R,Affinity Trust North Divisional Office
http://statistics.data.gov.uk/doc/local-authority/00DA,Leeds City Council,Childrens Services,Other Childrens And Families Services,Third Party Payments,Adoptions - Allowances,560,06-Apr-2011,1104-00216,800.00,R,After Adoption
http://statistics.data.gov.uk/doc/local-authority/00DA,Leeds City Council,Childrens Services,Other Childrens And Families Services,Third Party Payments,Adoptions - Allowances,560,21-Apr-2011,1104-00217,20000.00,R,After Adoption
http://statistics.data.gov.uk/doc/local-authority/00DA,Leeds City Council,Childrens Services,Other Childrens And Families Services,Third Party Payments,Payments To Voluntary Organisations,561,15-Apr-2011,1104-00218,17500.00,R,After Adoption Yorkshire
http://statistics.data.gov.uk/doc/local-authority/00DA,Leeds City Council,Adult Social Care,Social Services Support Services,Employees,Professional Subscriptions,089,27-Apr-2011,1104-00219,2872.00,R,Age Uk
http://statistics.data.gov.uk/doc/local-authority/00DA,Leeds City Council,Environment & Neighbourhoods,Learning,Supplies and Services,College Contracts,276,14-Apr-2011,1104-00220,9112.50,R,Age Uk Leeds
http://statistics.data.gov.uk/doc/local-authority/00DA,Leeds City Council,Adult Social Care,Services For Older People - 65 And Over,Third Party Payments,Payments To Voluntary Organisations,561,01-Apr-2011,1104-00221,22314.00,R,Age Uk Leeds
http://statistics.data.gov.uk/doc/local-authority/00DA,Leeds City Council,Environment & Neighbourhoods,Housing Needs,Third Party Payments,Supporting Ppl - Block Gross Chargeable,514,26-Apr-2011,1104-00222,3831.21,R,Age Uk Leeds
http://statistics.data.gov.uk/doc/local-authority/00DA,Leeds City Council,City Development,Highways,Capital,Construction,3,14-Apr-2011,1104-00223,56677.00,C,Aggregate Industries Uk Ltd
http://statistics.data.gov.uk/doc/local-authority/00DA,Leeds City Council,City Development,Highways,Supplies and Services,Other Hired And Contracted Services,265,14-Apr-2011,1104-00224,129270.00,R,Aggregate Industries Uk Ltd
http://statistics.data.gov.uk/doc/local-authority/00DA,Leeds City Council,Adult Social Care,Services For Older People Under 65 P/Dis,Third Party Payments,Residential,580,13-Apr-2011,1104-00225,5626.84,R,Agricola House
http://statistics.data.gov.uk/doc/local-authority/00DA,Leeds City Council,Adult Social Care,Other Generic Services,Supplies and Services,Operational Furniture And Equipment,203,27-Apr-2011,1104-00226,2038.00,R,Aidapt Bathrooms Ltd
http://statistics.data.gov.uk/doc/local-authority/00DA,Leeds City Council as Accountable Body,Leeds Community Equip Store Pooled Budgt,Leeds Community Equip Store Pooled Budgt,Supplies and Services,Other Equipment,203,12-Apr-2011,1104-00227,3512.95,R,Aidapt Bathrooms Ltd
http://statistics.data.gov.uk/doc/local-authority/00DA,Leeds City Council as Accountable Body,Leeds Community Equip Store Pooled Budgt,Leeds Community Equip Store Pooled Budgt,Supplies and Services,Other Equipment,203,12-Apr-2011,1104-00228,1963.80,R,Aidapt Bathrooms Ltd
http://statistics.data.gov.uk/doc/local-authority/00DA,Leeds City Council as Accountable Body,Leeds Community Equip Store Pooled Budgt,Leeds Community Equip Store Pooled Budgt,Supplies and Services,Other Equipment,203,15-Apr-2011,1104-00229,795.00,R,Aidapt Bathrooms Ltd
http://statistics.data.gov.uk/doc/local-authority/00DA,Leeds City Council as Accountable Body,Leeds Community Equip Store Pooled Budgt,Leeds Community Equip Store Pooled Budgt,Supplies and Services,Other Equipment,203,20-Apr-2011,1104-00230,1297.50,R,Aidapt Bathrooms Ltd
http://statistics.data.gov.uk/doc/local-authority/00DA,Leeds City Council as Accountable Body,Leeds Community Equip Store Pooled Budgt,Leeds Community Equip Store Pooled Budgt,Supplies and Services,Other Equipment,203,20-Apr-2011,1104-00231,490.50,R,Aidapt Bathrooms Ltd
http://statistics.data.gov.uk/doc/local-authority/00DA,Leeds City Council,Adult Social Care,Other Generic Services,Supplies and Services,Operational Furniture And Equipment,203,21-Apr-2011,1104-00232,490.00,R,Aidapt Bathrooms Ltd
http://statistics.data.gov.uk/doc/local-authority/00DA,Leeds City Council as Accountable Body,Jcs For People With Learning Disabilitie,Jcs For People With Learning Disabilitie,Third Party Payments,Residential,580,13-Apr-2011,1104-00233,3085.48,R,Aire House
http://statistics.data.gov.uk/doc/local-authority/00DA,Leeds City Council,Environment & Neighbourhoods,Regeneration,Supplies and Services,Non-Recurring Grants,227,18-Apr-2011,1104-00234,10298.00,R,Aire Valley Homes Leeds
http://statistics.data.gov.uk/doc/local-authority/00DA,Leeds City Council,Environment & Neighbourhoods,East North East,Capital,Construction,3,21-Apr-2011,1104-00235,750.00,C,Aire Valley Landscaping Services Ltd
http://statistics.data.gov.uk/doc/local-authority/00DA,East - North East Homes Leeds,East - North East,Business Improvement,Premises,Other,114,13-Apr-2011,1104-00236,3500.00,R,Aire Valley Landscaping Services Ltd
http://statistics.data.gov.uk/doc/local-authority/00DA,East - North East Homes Leeds,East - North East,Business Improvement,Premises,Other,114,13-Apr-2011,1104-00237,2700.00,R,Aire Valley Landscaping Services Ltd
http://statistics.data.gov.uk/doc/local-authority/00DA,West - North West Homes Leeds,West - North West,Customer And Tenancy,Premises,General Maintenance,104,28-Apr-2011,1104-00238,1690.00,R,Aire Valley Landscaping Services Ltd
http://statistics.data.gov.uk/doc/local-authority/00DA,West - North West Homes Leeds,West - North West,Property And Maintenance,Premises,H.R.A. - Special Maintenance,106,13-Apr-2011,1104-00239,-1895.00,R,Aire Valley Landscaping Services Ltd
http://statistics.data.gov.uk/doc/local-authority/00DA,West - North West Homes Leeds,West - North West,Property And Maintenance,Premises,H.R.A. - Special Maintenance,106,12-Apr-2011,1104-00240,1275.00,R,Aire Valley Tree Services Ltd
http://statistics.data.gov.uk/doc/local-authority/00DA,West - North West Homes Leeds,West - North West,Property And Maintenance,Premises,H.R.A. - Special Maintenance,106,19-Apr-2011,1104-00241,1500.00,R,Aire Valley Tree Services Ltd
http://statistics.data.gov.uk/doc/local-authority/00DA,West - North West Homes Leeds,West - North West,Customer And Tenancy,Premises,General Maintenance,104,06-Apr-2011,1104-00242,2600.00,R,Aire Valley Tree Services Ltd
http://statistics.data.gov.uk/doc/local-authority/00DA,West - North West Homes Leeds,West - North West,Customer And Tenancy,Premises,General Maintenance,104,18-Apr-2011,1104-00243,2625.00,R,Aire Valley Tree Services Ltd
http://statistics.data.gov.uk/doc/local-authority/00DA,East - North East Homes Leeds,East - North East,Housing Services,Premises,Horticulture Non Defined Work,112,07-Apr-2011,1104-00244,425.00,R,Aire Valley Tree Services Ltd
http://statistics.data.gov.uk/doc/local-authority/00DA,East - North East Homes Leeds,East - North East,Housing Services,Premises,Horticulture Non Defined Work,112,01-Apr-2011,1104-00245,750.00,R,Aire Valley Tree Services Ltd
http://statistics.data.gov.uk/doc/local-authority/00DA,West - North West Homes Leeds,West - North West,Customer And Tenancy,Premises,General Maintenance,104,08-Apr-2011,1104-00246,2725.00,R,Aire Valley Tree Services Ltd
http://statistics.data.gov.uk/doc/local-authority/00DA,East - North East Homes Leeds,East - North East,Housing Services,Premises,Horticulture Non Defined Work,112,01-Apr-2011,1104-00247,475.00,R,Aire Valley Tree Services Ltd
http://statistics.data.gov.uk/doc/local-authority/00DA,East - North East Homes Leeds,East - North East,Housing Services,Premises,Horticulture Non Defined Work,112,01-Apr-2011,1104-00248,525.00,R,Aire Valley Tree Services Ltd
http://statistics.data.gov.uk/doc/local-authority/00DA,West - North West Homes Leeds,West - North West,Customer And Tenancy,Premises,General Maintenance,104,28-Apr-2011,1104-00249,2600.00,R,Aire Valley Tree Services Ltd
http://statistics.data.gov.uk/doc/local-authority/00DA,Leeds City Council,Environment & Neighbourhoods,West North West,Capital,Construction,3,28-Apr-2011,1104-00250,11300.00,C,Aire Valley Tree Services Ltd
http://statistics.data.gov.uk/doc/local-authority/00DA,Leeds City Council,Adult Social Care,Services For Older People - 65 And Over,Third Party Payments,Residential Care Emi,571,13-Apr-2011,1104-00251,14553.44,R,Aire View Residential Home
http://statistics.data.gov.uk/doc/local-authority/00DA,Leeds City Council,Adult Social Care,Services For Older People - 65 And Over,Third Party Payments,Nursing Care Emi,574,13-Apr-2011,1104-00252,1342.80,R,Aire View Residential Home
http://statistics.data.gov.uk/doc/local-authority/00DA,Leeds City Council,Adult Social Care,Services For Older People - 65 And Over,Third Party Payments,Residential,580,13-Apr-2011,1104-00253,16346.30,R,Aire View Residential Home
http://statistics.data.gov.uk/doc/local-authority/00DA,Leeds City Council,Adult Social Care,Services For Older People - 65 And Over,Third Party Payments,Payments To Voluntary Organisations,561,01-Apr-2011,1104-00254,16560.00,R,Aireborough Voluntary Services
http://statistics.data.gov.uk/doc/local-authority/00DA,Leeds City Council,Adult Social Care,Services For Older People - 65 And Over,Third Party Payments,Residential,580,13-Apr-2011,1104-00255,25634.24,R,Airedale (Goldsborough)
http://statistics.data.gov.uk/doc/local-authority/00DA,Leeds City Council,City Development,Economic Development,Supplies and Services,Advertising,211,01-Apr-2011,1104-00256,420.00,R,Airport Partners Ltd
http://statistics.data.gov.uk/doc/local-authority/00DA,Leeds City Council,Adult Social Care,Services For Older People - 65 And Over,Third Party Payments,Home Care,568,04-Apr-2011,1104-00257,6124.42,R,Aj Social Care
http://statistics.data.gov.uk/doc/local-authority/00DA,Leeds City Council,Adult Social Care,Services For Older People Under 65 P/Dis,Third Party Payments,Home Care,568,04-Apr-2011,1104-00258,1075.20,R,Aj Social Care
http://statistics.data.gov.uk/doc/local-authority/00DA,Leeds City Council,Adult Social Care,Services For Older People - 65 And Over,Third Party Payments,Home Care,568,28-Apr-2011,1104-00259,13348.44,R,Aj Social Care
http://statistics.data.gov.uk/doc/local-authority/00DA,Leeds City Council,Adult Social Care,Services For Older People Under 65 P/Dis,Third Party Payments,Home Care,568,28-Apr-2011,1104-00260,1853.31,R,Aj Social Care
http://statistics.data.gov.uk/doc/local-authority/00DA,East - North East Homes Leeds,East - North East,Technical Services,Supplies and Services,Other Materials,205,01-Apr-2011,1104-00261,1372.96,R,Ajm Fixings & Power Tools Ltd
http://statistics.data.gov.uk/doc/local-authority/00DA,East - North East Homes Leeds,East - North East,Technical Services,Supplies and Services,Other Materials,205,13-Apr-2011,1104-00262,601.50,R,Ajm Fixings & Power Tools Ltd
http://statistics.data.gov.uk/doc/local-authority/00DA,East - North East Homes Leeds,East - North East,Technical Services,Supplies and Services,Other Materials,205,13-Apr-2011,1104-00263,491.79,R,Ajm Fixings & Power Tools Ltd
http://statistics.data.gov.uk/doc/local-authority/00DA,East - North East Homes Leeds,East - North East,Technical Services,Supplies and Services,Other Materials,205,15-Apr-2011,1104-00264,670.98,R,Ajm Fixings & Power Tools Ltd
http://statistics.data.gov.uk/doc/local-authority/00DA,Leeds City Council,Adult Social Care,Social Services Support Services,Employees,Study Books & Equipment,072,01-Apr-2011,1104-00265,7570.00,R,Akd Training Solutions Ltd
http://statistics.data.gov.uk/doc/local-authority/00DA,Leeds City Council,City Development,Libraries Arts & Heritage,Transport,Plant Hire - By Directorate,305,06-Apr-2011,1104-00266,1093.29,R,Albury Asset Rentals Ltd
http://statistics.data.gov.uk/doc/local-authority/00DA,Leeds City Council,Adult Social Care,Services For Older People - 65 And Over,Third Party Payments,Residential Care Emi,571,13-Apr-2011,1104-00267,5840.08,R,Alexander Residential Home
http://statistics.data.gov.uk/doc/local-authority/00DA,Leeds City Council,Adult Social Care,Services For Older People - 65 And Over,Third Party Payments,Residential,580,13-Apr-2011,1104-00268,23823.69,R,Alexander Residential Home
http://statistics.data.gov.uk/doc/local-authority/00DA,Leeds City Council,Adult Social Care,Services For Older People Under 65 P/Dis,Third Party Payments,Residential,580,13-Apr-2011,1104-00269,1162.72,R,Alexander Residential Home
http://statistics.data.gov.uk/doc/local-authority/00DA,Leeds City Council as Accountable Body,Jcs For People With Learning Disabilitie,Jcs For People With Learning Disabilitie,Third Party Payments,Residential,580,13-Apr-2011,1104-00270,1238.52,R,Alexander Residential Home
http://statistics.data.gov.uk/doc/local-authority/00DA,Leeds City Council,Adult Social Care,Services For Older People - 65 And Over,Third Party Payments,Residential Care Emi,571,13-Apr-2011,1104-00271,1256.20,R,Alexandra Court
http://statistics.data.gov.uk/doc/local-authority/00DA,Leeds City Council,Adult Social Care,Services For Older People - 65 And Over,Third Party Payments,Residential,580,13-Apr-2011,1104-00272,4832.08,R,Alexandra Court
http://statistics.data.gov.uk/doc/local-authority/00DA,Leeds City Council,Environment & Neighbourhoods,Health & Environmental Action,Supplies and Services,Other Hired And Contracted Services,265,07-Apr-2011,1104-00273,667.00,R,Alfies Boarding Kennels
http://statistics.data.gov.uk/doc/local-authority/00DA,Leeds City Council,Environment & Neighbourhoods,Health & Environmental Action,Supplies and Services,Other Hired And Contracted Services,265,28-Apr-2011,1104-00274,667.00,R,Alfies Boarding Kennels
http://statistics.data.gov.uk/doc/local-authority/00DA,Leeds City Council,Central & Corporate Functions,Corporate Property Management,Premises,Maintenance Of Buildings,101,05-Apr-2011,1104-00275,430.50,R,Alfred Bagnall & Sons (Leeds) Ltd
http://statistics.data.gov.uk/doc/local-authority/00DA,Leeds City Council,Central & Corporate Functions,Customer Services,Supplies and Services,Other Hired And Contracted Services,265,18-Apr-2011,1104-00276,746.50,R,Alfred Bagnall & Sons (Leeds) Ltd
http://statistics.data.gov.uk/doc/local-authority/00DA,Leeds City Council,Central & Corporate Functions,Customer Services,Supplies and Services,Other Hired And Contracted Services,265,15-Apr-2011,1104-00277,1555.10,R,Alfred Bagnall & Sons (Leeds) Ltd
http://statistics.data.gov.uk/doc/local-authority/00DA,Leeds City Council,Childrens Services,Youth Justice,Premises,Maintenance Of Buildings,101,01-Apr-2011,1104-00278,985.55,R,Alfred Bagnall & Sons (Leeds) Ltd
http://statistics.data.gov.uk/doc/local-authority/00DA,Leeds City Council,Central & Corporate Functions,Corporate Property Management,Premises,Maintenance Of Buildings,101,28-Apr-2011,1104-00279,17541.38,R,Alfred Bagnall & Sons (Leeds) Ltd
http://statistics.data.gov.uk/doc/local-authority/00DA,Leeds City Council,Central & Corporate Functions,Corporate Property Management,Premises,Maintenance Of Buildings,101,28-Apr-2011,1104-00280,1658.02,R,Alfred Bagnall & Sons (Leeds) Ltd
http://statistics.data.gov.uk/doc/local-authority/00DA,Leeds City Council,City Development,Economic Development,Supplies and Services,City Centre Enhancement,295,28-Apr-2011,1104-00281,2877.69,R,Alfred Bagnall & Sons (Leeds) Ltd
http://statistics.data.gov.uk/doc/local-authority/00DA,West - North West Homes Leeds,West - North West,Customer And Tenancy,Premises,General Maintenance,104,28-Apr-2011,1104-00282,7021.00,R,Alfred Bagnall & Sons (Leeds) Ltd
http://statistics.data.gov.uk/doc/local-authority/00DA,Leeds City Council,City Development,Asset Management Services,Premises,Maintenance Of Buildings,101,06-Apr-2011,1104-00283,5910.46,R,Alfred Bagnall & Sons (Leeds) Ltd
http://statistics.data.gov.uk/doc/local-authority/00DA,Leeds City Council,Central & Corporate Functions,Corporate Property Management,Premises,Maintenance Of Buildings,101,06-Apr-2011,1104-00284,3520.41,R,Alfred Bagnall & Sons (Leeds) Ltd
http://statistics.data.gov.uk/doc/local-authority/00DA,Leeds City Council,Adult Social Care,Services For Older People - 65 And Over,Third Party Payments,Residential,580,13-Apr-2011,1104-00285,1120.96,R,Allendale Residential Home
http://statistics.data.gov.uk/doc/local-authority/00DA,Leeds City Council,Environment & Neighbourhoods,Regeneration,Capital,Other Costs,7,13-Apr-2011,1104-00286,2500.00,C,Allerton Bywater Colliery Memorial Fund
http://statistics.data.gov.uk/doc/local-authority/00DA,Leeds City Council,Strategic Accounts,Strategic,Supplies and Services,Non-Recurring Grants,227,15-Apr-2011,1104-00287,11000.00,R,Allerton Bywater Community Partnership
http://statistics.data.gov.uk/doc/local-authority/00DA,Leeds City Council,Strategic Accounts,Strategic,Precepts,Parish Precepts,210,04-Apr-2011,1104-00288,27000.00,R,Allerton Bywater Parish Council
http://statistics.data.gov.uk/doc/local-authority/00DA,Leeds City Council,City Development,Recreation,Premises,Cleaning Maintenance & Toiletries,127,27-Apr-2011,1104-00289,554.01,R,Alliance Disposables Ltd
http://statistics.data.gov.uk/doc/local-authority/00DA,Leeds City Council as Accountable Body,Jcs For People With Learning Disabilitie,Jcs For People With Learning Disabilitie,Third Party Payments,Home Care,568,18-Apr-2011,1104-00290,1918.09,R,Allied Healthcare Group Ltd
http://statistics.data.gov.uk/doc/local-authority/00DA,Leeds City Council,Adult Social Care,Services For Older People - 65 And Over,Third Party Payments,Home Care,568,01-Apr-2011,1104-00291,1295.77,R,Allied Healthcare Group Ltd
http://statistics.data.gov.uk/doc/local-authority/00DA,Leeds City Council,Adult Social Care,Other Generic Services,Third Party Payments,Home Care,568,07-Apr-2011,1104-00292,20177.91,R,Allied Healthcare Group Ltd
http://statistics.data.gov.uk/doc/local-authority/00DA,Leeds City Council,Adult Social Care,Other Generic Services,Third Party Payments,Home Care,568,07-Apr-2011,1104-00293,2165.17,R,Allied Healthcare Group Ltd
http://statistics.data.gov.uk/doc/local-authority/00DA,Leeds City Council as Accountable Body,Jcs For People With Learning Disabilitie,Jcs For People With Learning Disabilitie,Third Party Payments,Home Care,568,01-Apr-2011,1104-00294,1110.88,R,Allied Healthcare Group Ltd
http://statistics.data.gov.uk/doc/local-authority/00DA,Leeds City Council,Adult Social Care,Services For Older People Under 65 P/Dis,Third Party Payments,Home Care,568,01-Apr-2011,1104-00295,1632.00,R,Allied Healthcare Group Ltd
http://statistics.data.gov.uk/doc/local-authority/00DA,Leeds City Council,Adult Social Care,Services For Older People - 65 And Over,Third Party Payments,Home Care,568,01-Apr-2011,1104-00296,520.20,R,Allied Healthcare Group Ltd
http://statistics.data.gov.uk/doc/local-authority/00DA,Leeds City Council,Adult Social Care,Services For Older People - 65 And Over,Third Party Payments,Home Care,568,01-Apr-2011,1104-00297,510.00,R,Allied Healthcare Group Ltd
http://statistics.data.gov.uk/doc/local-authority/00DA,Leeds City Council,Adult Social Care,Services For Older People Under 65 P/Dis,Third Party Payments,Home Care,568,01-Apr-2011,1104-00298,484.50,R,Allied Healthcare Group Ltd
http://statistics.data.gov.uk/doc/local-authority/00DA,Leeds City Council,Adult Social Care,Services For Older People - 65 And Over,Third Party Payments,Home Care,568,01-Apr-2011,1104-00299,701.25,R,Allied Healthcare Group Ltd
http://statistics.data.gov.uk/doc/local-authority/00DA,Leeds City Council,Adult Social Care,Services For Older People - 65 And Over,Third Party Payments,Home Care,568,01-Apr-2011,1104-00300,520.20,R,Allied Healthcare Group Ltd
http://statistics.data.gov.uk/doc/local-authority/00DA,Leeds City Council,Adult Social Care,Services For Older People Under 65 P/Dis,Third Party Payments,Home Care,568,01-Apr-2011,1104-00301,571.20,R,Allied Healthcare Group Ltd
http://statistics.data.gov.uk/doc/local-authority/00DA,Leeds City Council,Adult Social Care,Services For Older People Under 65 P/Dis,Third Party Payments,Home Care,568,01-Apr-2011,1104-00302,6289.90,R,Allied Healthcare Group Ltd
http://statistics.data.gov.uk/doc/local-authority/00DA,Leeds City Council,Adult Social Care,Services For Older People Under 65 P/Dis,Third Party Payments,Home Care,568,01-Apr-2011,1104-00303,795.60,R,Allied Healthcare Group Ltd
http://statistics.data.gov.uk/doc/local-authority/00DA,Leeds City Council,Adult Social Care,Services For Older People Under 65 P/Dis,Third Party Payments,Home Care,568,01-Apr-2011,1104-00304,851.70,R,Allied Healthcare Group Ltd
http://statistics.data.gov.uk/doc/local-authority/00DA,Leeds City Council,Adult Social Care,Services For Older People - 65 And Over,Third Party Payments,Home Care,568,01-Apr-2011,1104-00305,566.10,R,Allied Healthcare Group Ltd
http://statistics.data.gov.uk/doc/local-authority/00DA,Leeds City Council,Adult Social Care,Services For Older People - 65 And Over,Third Party Payments,Home Care,568,01-Apr-2011,1104-00306,637.50,R,Allied Healthcare Group Ltd
http://statistics.data.gov.uk/doc/local-authority/00DA,Leeds City Council,Adult Social Care,Services For Older People - 65 And Over,Third Party Payments,Home Care,568,13-Apr-2011,1104-00307,19544.47,R,Allied Healthcare Group Ltd
http://statistics.data.gov.uk/doc/local-authority/00DA,Leeds City Council,Adult Social Care,Services For Older People Under 65 P/Dis,Third Party Payments,Home Care,568,13-Apr-2011,1104-00308,4175.45,R,Allied Healthcare Group Ltd
http://statistics.data.gov.uk/doc/local-authority/00DA,Leeds City Council,Adult Social Care,Services For Older People - 65 And Over,Third Party Payments,Home Care,568,13-Apr-2011,1104-00309,13797.07,R,Allied Healthcare Group Ltd
http://statistics.data.gov.uk/doc/local-authority/00DA,Leeds City Council,Adult Social Care,Services For Older People Under 65 P/Dis,Third Party Payments,Home Care,568,13-Apr-2011,1104-00310,3428.71,R,Allied Healthcare Group Ltd
http://statistics.data.gov.uk/doc/local-authority/00DA,Leeds City Council,Adult Social Care,Services For Older People - 65 And Over,Third Party Payments,Home Care,568,13-Apr-2011,1104-00311,11478.13,R,Allied Healthcare Group Ltd
http://statistics.data.gov.uk/doc/local-authority/00DA,Leeds City Council,Adult Social Care,Services For Older People - 65 And Over,Third Party Payments,Home Care,568,13-Apr-2011,1104-00312,15735.14,R,Allied Healthcare Group Ltd
http://statistics.data.gov.uk/doc/local-authority/00DA,Leeds City Council,Adult Social Care,Services For Older People Under 65 P/Dis,Third Party Payments,Home Care,568,13-Apr-2011,1104-00313,1172.79,R,Allied Healthcare Group Ltd
http://statistics.data.gov.uk/doc/local-authority/00DA,Leeds City Council,Adult Social Care,Services For Older People - 65 And Over,Third Party Payments,Home Care,568,13-Apr-2011,1104-00314,11907.54,R,Allied Healthcare Group Ltd
http://statistics.data.gov.uk/doc/local-authority/00DA,Leeds City Council,Adult Social Care,Services For Older People - 65 And Over,Third Party Payments,Home Care,568,08-Apr-2011,1104-00315,1288.07,R,Allied Healthcare Group Ltd
http://statistics.data.gov.uk/doc/local-authority/00DA,Leeds City Council,Adult Social Care,Services For Older People - 65 And Over,Third Party Payments,Home Care,568,19-Apr-2011,1104-00316,1291.92,R,Allied Healthcare Group Ltd
http://statistics.data.gov.uk/doc/local-authority/00DA,Leeds City Council,Adult Social Care,Services For Older People Under 65 P/Dis,Third Party Payments,Home Care,568,19-Apr-2011,1104-00317,450.03,R,Allied Healthcare Group Ltd
http://statistics.data.gov.uk/doc/local-authority/00DA,Leeds City Council,Adult Social Care,Services For Older People - 65 And Over,Third Party Payments,Home Care,568,27-Apr-2011,1104-00318,1291.92,R,Allied Healthcare Group Ltd
http://statistics.data.gov.uk/doc/local-authority/00DA,Leeds City Council,Adult Social Care,Social Services Support Services,Supplies and Services,Other Hired And Contracted Services,265,21-Apr-2011,1104-00319,708.30,R,Allied Healthcare Group Ltd
http://statistics.data.gov.uk/doc/local-authority/00DA,Leeds City Council as Accountable Body,Jcs For People With Learning Disabilitie,Jcs For People With Learning Disabilitie,Third Party Payments,Home Care,568,21-Apr-2011,1104-00320,1167.90,R,Allied Healthcare Group Ltd
http://statistics.data.gov.uk/doc/local-authority/00DA,Leeds City Council as Accountable Body,Jcs For People With Learning Disabilitie,Jcs For People With Learning Disabilitie,Third Party Payments,Home Care,568,21-Apr-2011,1104-00321,1193.67,R,Allied Healthcare Group Ltd
http://statistics.data.gov.uk/doc/local-authority/00DA,Leeds City Council as Accountable Body,Jcs For People With Learning Disabilitie,Jcs For People With Learning Disabilitie,Third Party Payments,Home Care,568,21-Apr-2011,1104-00322,551.57,R,Allied Healthcare Group Ltd
http://statistics.data.gov.uk/doc/local-authority/00DA,Leeds City Council,Adult Social Care,Services For Older People - 65 And Over,Third Party Payments,Home Care,568,28-Apr-2011,1104-00323,1295.76,R,Allied Healthcare Group Ltd
http://statistics.data.gov.uk/doc/local-authority/00DA,Leeds City Council as Accountable Body,Jcs For People With Learning Disabilitie,Jcs For People With Learning Disabilitie,Third Party Payments,Home Care,568,28-Apr-2011,1104-00324,591.23,R,Allied Healthcare Group Ltd
http://statistics.data.gov.uk/doc/local-authority/00DA,Leeds City Council,Adult Social Care,Services For Older People Under 65 P/Dis,Third Party Payments,Home Care,568,28-Apr-2011,1104-00325,1524.90,R,Allied Healthcare Group Ltd
http://statistics.data.gov.uk/doc/local-authority/00DA,Leeds City Council,Adult Social Care,Services For Older People - 65 And Over,Third Party Payments,Home Care,568,28-Apr-2011,1104-00326,515.10,R,Allied Healthcare Group Ltd
http://statistics.data.gov.uk/doc/local-authority/00DA,Leeds City Council,Adult Social Care,Services For Older People - 65 And Over,Third Party Payments,Home Care,568,28-Apr-2011,1104-00327,515.10,R,Allied Healthcare Group Ltd
http://statistics.data.gov.uk/doc/local-authority/00DA,Leeds City Council,Adult Social Care,Services For Older People Under 65 P/Dis,Third Party Payments,Home Care,568,28-Apr-2011,1104-00328,464.10,R,Allied Healthcare Group Ltd
http://statistics.data.gov.uk/doc/local-authority/00DA,Leeds City Council,Adult Social Care,Services For Older People - 65 And Over,Third Party Payments,Home Care,568,28-Apr-2011,1104-00329,525.30,R,Allied Healthcare Group Ltd
http://statistics.data.gov.uk/doc/local-authority/00DA,Leeds City Council,Adult Social Care,Services For Older People Under 65 P/Dis,Third Party Payments,Home Care,568,28-Apr-2011,1104-00330,566.10,R,Allied Healthcare Group Ltd
http://statistics.data.gov.uk/doc/local-authority/00DA,Leeds City Council,Adult Social Care,Services For Older People Under 65 P/Dis,Third Party Payments,Home Care,568,28-Apr-2011,1104-00331,6247.82,R,Allied Healthcare Group Ltd
http://statistics.data.gov.uk/doc/local-authority/00DA,Leeds City Council,Adult Social Care,Services For Older People Under 65 P/Dis,Third Party Payments,Home Care,568,28-Apr-2011,1104-00332,622.20,R,Allied Healthcare Group Ltd
http://statistics.data.gov.uk/doc/local-authority/00DA,Leeds City Council,Adult Social Care,Services For Older People Under 65 P/Dis,Third Party Payments,Home Care,568,28-Apr-2011,1104-00333,846.00,R,Allied Healthcare Group Ltd
http://statistics.data.gov.uk/doc/local-authority/00DA,Leeds City Council,Adult Social Care,Services For Older People - 65 And Over,Third Party Payments,Home Care,568,28-Apr-2011,1104-00334,571.20,R,Allied Healthcare Group Ltd
http://statistics.data.gov.uk/doc/local-authority/00DA,Leeds City Council,Adult Social Care,Services For Older People - 65 And Over,Third Party Payments,Home Care,568,28-Apr-2011,1104-00335,642.60,R,Allied Healthcare Group Ltd
http://statistics.data.gov.uk/doc/local-authority/00DA,Leeds City Council,Adult Social Care,Services For Older People - 65 And Over,Third Party Payments,Home Care,568,28-Apr-2011,1104-00336,23188.10,R,Allied Healthcare Group Ltd
http://statistics.data.gov.uk/doc/local-authority/00DA,Leeds City Council,Adult Social Care,Services For Older People Under 65 P/Dis,Third Party Payments,Home Care,568,28-Apr-2011,1104-00337,1759.27,R,Allied Healthcare Group Ltd
http://statistics.data.gov.uk/doc/local-authority/00DA,Leeds City Council,Adult Social Care,Services For Older People - 65 And Over,Third Party Payments,Home Care,568,28-Apr-2011,1104-00338,13279.16,R,Allied Healthcare Group Ltd
http://statistics.data.gov.uk/doc/local-authority/00DA,Leeds City Council,Adult Social Care,Services For Older People Under 65 P/Dis,Third Party Payments,Home Care,568,28-Apr-2011,1104-00339,3549.48,R,Allied Healthcare Group Ltd
http://statistics.data.gov.uk/doc/local-authority/00DA,Leeds City Council,Adult Social Care,Services For Adults Under 65 Mental/Dis,Third Party Payments,Home Care,568,28-Apr-2011,1104-00340,10525.89,R,Allied Healthcare Group Ltd
http://statistics.data.gov.uk/doc/local-authority/00DA,Leeds City Council,Adult Social Care,Services For Older People - 65 And Over,Third Party Payments,Home Care,568,28-Apr-2011,1104-00341,15896.60,R,Allied Healthcare Group Ltd
http://statistics.data.gov.uk/doc/local-authority/00DA,Leeds City Council,Adult Social Care,Services For Older People Under 65 P/Dis,Third Party Payments,Home Care,568,28-Apr-2011,1104-00342,750.46,R,Allied Healthcare Group Ltd
http://statistics.data.gov.uk/doc/local-authority/00DA,Leeds City Council,Adult Social Care,Services For Older People - 65 And Over,Third Party Payments,Home Care,568,28-Apr-2011,1104-00343,15316.83,R,Allied Healthcare Group Ltd
http://statistics.data.gov.uk/doc/local-authority/00DA,Leeds City Council,Childrens Services,Children - Commissioning And Social Work,Support Services,Legal Disbursements,411,04-Apr-2011,1104-00344,510.00,R,Alpha Biolabs
http://statistics.data.gov.uk/doc/local-authority/00DA,Leeds City Council,Childrens Services,Children - Commissioning And Social Work,Support Services,Legal Disbursements,411,13-Apr-2011,1104-00345,510.00,R,Alpha Biolabs
http://statistics.data.gov.uk/doc/local-authority/00DA,Leeds City Council,Childrens Services,Children - Commissioning And Social Work,Support Services,Legal Disbursements,411,13-Apr-2011,1104-00346,510.00,R,Alpha Biolabs
http://statistics.data.gov.uk/doc/local-authority/00DA,Leeds City Council,City Development,Libraries Arts & Heritage,Supplies and Services,Courses For Non-Employees,281,01-Apr-2011,1104-00347,601.00,R,Alternative Display Company Limited
http://statistics.data.gov.uk/doc/local-authority/00DA,Leeds City Council,Environment & Neighbourhoods,Health & Environmental Action,Premises,Maintenance Of Buildings,101,15-Apr-2011,1104-00348,2200.00,R,Alternative Drainage Company Ltd
http://statistics.data.gov.uk/doc/local-authority/00DA,Leeds City Council,Central & Corporate Functions,Commercial Services Trading Services,Supplies and Services,Other Hired And Contracted Services,265,07-Apr-2011,1104-00349,9094.50,R,Alternative Windows (Leeds) Ltd
http://statistics.data.gov.uk/doc/local-authority/00DA,Leeds City Council,Central & Corporate Functions,Commercial Services Trading Services,Supplies and Services,Other Hired And Contracted Services,265,07-Apr-2011,1104-00350,583.00,R,Alternative Windows (Leeds) Ltd
http://statistics.data.gov.uk/doc/local-authority/00DA,Leeds City Council,Environment & Neighbourhoods,South South East,Capital,Construction,3,05-Apr-2011,1104-00351,400.00,C,Alternative Windows (Leeds) Ltd
http://statistics.data.gov.uk/doc/local-authority/00DA,Leeds City Council,Central & Corporate Functions,Commercial Services Trading Services,Supplies and Services,Other Hired And Contracted Services,265,01-Apr-2011,1104-00352,4986.00,R,Alternative Windows (Leeds) Ltd
http://statistics.data.gov.uk/doc/local-authority/00DA,Leeds City Council,Environment & Neighbourhoods,South South East,Capital,Construction,3,07-Apr-2011,1104-00353,-6522.89,C,Alternative Windows (Leeds) Ltd
http://statistics.data.gov.uk/doc/local-authority/00DA,Leeds City Council,Environment & Neighbourhoods,Belle Isle,Capital,Construction,3,07-Apr-2011,1104-00354,52766.54,C,Alternative Windows (Leeds) Ltd
http://statistics.data.gov.uk/doc/local-authority/00DA,Leeds City Council,Environment & Neighbourhoods,South South East,Capital,Construction,3,07-Apr-2011,1104-00355,97950.99,C,Alternative Windows (Leeds) Ltd
http://statistics.data.gov.uk/doc/local-authority/00DA,Leeds City Council,Environment & Neighbourhoods,West North West,Capital,Construction,3,06-Apr-2011,1104-00356,111196.73,C,Alternative Windows (Leeds) Ltd
http://statistics.data.gov.uk/doc/local-authority/00DA,Leeds City Council,Environment & Neighbourhoods,West North West,Capital,Construction,3,07-Apr-2011,1104-00357,1851.28,C,Alternative Windows (Leeds) Ltd
http://statistics.data.gov.uk/doc/local-authority/00DA,Leeds City Council,Central & Corporate Functions,Commercial Services Trading Services,Supplies and Services,Operational Materials,205,01-Apr-2011,1104-00358,876.00,R,Alvin Morris Ltd
http://statistics.data.gov.uk/doc/local-authority/00DA,Leeds City Council,Central & Corporate Functions,Commercial Services Trading Services,Supplies and Services,Operational Materials,205,18-Apr-2011,1104-00359,2105.38,R,Alvin Morris Ltd
http://statistics.data.gov.uk/doc/local-authority/00DA,Leeds City Council,Central & Corporate Functions,Commercial Services Trading Services,Supplies and Services,Operational Materials,205,18-Apr-2011,1104-00360,450.18,R,Alvin Morris Ltd
http://statistics.data.gov.uk/doc/local-authority/00DA,Leeds City Council,Central & Corporate Functions,Commercial Services Trading Services,Supplies and Services,Operational Materials,205,27-Apr-2011,1104-00361,851.45,R,Alvin Morris Ltd
http://statistics.data.gov.uk/doc/local-authority/00DA,Leeds City Council,Central & Corporate Functions,Commercial Services Trading Services,Supplies and Services,Operational Materials,205,27-Apr-2011,1104-00362,507.05,R,Alvin Morris Ltd
http://statistics.data.gov.uk/doc/local-authority/00DA,Leeds City Council,Strategic Accounts,Strategic,Precepts,Parish Precepts,210,04-Apr-2011,1104-00363,36720.00,R,Alwoodley Parish Council
http://statistics.data.gov.uk/doc/local-authority/00DA,Leeds City Council,Environment & Neighbourhoods,Regeneration,Capital,Construction,3,04-Apr-2011,1104-00364,5355.81,C,Alwoodley Park Methodist Church
http://statistics.data.gov.uk/doc/local-authority/00DA,Leeds City Council,Adult Social Care,Other Generic Services,Third Party Payments,Payments To Voluntary Organisations,561,06-Apr-2011,1104-00365,24500.00,R,Alzheimers Disease Society
http://statistics.data.gov.uk/doc/local-authority/00DA,Leeds City Council,Adult Social Care,Services For Older People - 65 And Over,Third Party Payments,Payments To Voluntary Organisations,561,01-Apr-2011,1104-00366,66384.00,R,Alzheimers Disease Society
http://statistics.data.gov.uk/doc/local-authority/00DA,Leeds City Council,Adult Social Care,Services For Older People - 65 And Over,Third Party Payments,Nursing Care Emi,574,14-Apr-2011,1104-00367,1127.64,R,Amarna House Care Centre
http://statistics.data.gov.uk/doc/local-authority/00DA,Leeds City Council,City Development,Libraries Arts & Heritage,Supplies and Services,Other Hired And Contracted Services,265,06-Apr-2011,1104-00368,480.00,R,Amazing Tent Company Limited
http://statistics.data.gov.uk/doc/local-authority/00DA,Leeds City Council,City Development,Libraries Arts & Heritage,Supplies and Services,Books & Publications,206,18-Mar-2011,1104-00369,937.98,R,Amazon  Mktplce Eu-Uk
http://statistics.data.gov.uk/doc/local-authority/00DA,Leeds City Council,Childrens Services,Children Looked After,Third Party Payments,General External Residential Placements,507,15-Apr-2011,1104-00370,16554.00,R,Amberleigh Care Ltd
http://statistics.data.gov.uk/doc/local-authority/00DA,Leeds City Council,City Development,Libraries Arts & Heritage,Supplies and Services,Other Hired And Contracted Services,265,15-Apr-2011,1104-00371,896.66,R,Ambius
http://statistics.data.gov.uk/doc/local-authority/00DA,Leeds City Council,Adult Social Care,Services For Older People - 65 And Over,Third Party Payments,Residential,580,13-Apr-2011,1104-00372,2190.36,R,Amelia House
http://statistics.data.gov.uk/doc/local-authority/00DA,Education Leeds,Education Leeds,Education Leeds,Supplies and Services,Other Hired And Contracted Services,265,21-Apr-2011,1104-00373,454.50,R,Ammie Flexen
http://statistics.data.gov.uk/doc/local-authority/00DA,Leeds City Council,Childrens Services,Integrated Youth Support  Service,Employees,Central Training,079,08-Apr-2011,1104-00374,420.00,R,Amr Security Services Ltd
http://statistics.data.gov.uk/doc/local-authority/00DA,Leeds City Council,Childrens Services,Integrated Youth Support  Service,Employees,Central Training,079,08-Apr-2011,1104-00375,630.00,R,Amr Security Services Ltd
http://statistics.data.gov.uk/doc/local-authority/00DA,Leeds City Council,City Development,Economic Development,Supplies and Services,City Centre Enhancement,295,20-Apr-2011,1104-00376,4450.00,R,Amr Security Services Ltd
http://statistics.data.gov.uk/doc/local-authority/00DA,Leeds City Council,Childrens Services,Integrated Youth Support  Service,Employees,Central Training,079,08-Apr-2011,1104-00377,630.00,R,Amr Security Services Ltd
http://statistics.data.gov.uk/doc/local-authority/00DA,Leeds City Council,Childrens Services,Integrated Youth Support  Service,Employees,Central Training,079,08-Apr-2011,1104-00378,595.00,R,Amr Security Services Ltd
http://statistics.data.gov.uk/doc/local-authority/00DA,Leeds City Council,City Development,Libraries Arts & Heritage,Supplies and Services,Other Hired And Contracted Services,265,21-Apr-2011,1104-00379,800.00,R,Amrofacilities Ltd
http://statistics.data.gov.uk/doc/local-authority/00DA,Leeds City Council,Adult Social Care,Services For Older People - 65 And Over,Third Party Payments,Payments To Voluntary Organisations,561,01-Apr-2011,1104-00380,9167.48,R,Anchor
http://statistics.data.gov.uk/doc/local-authority/00DA,Leeds City Council,Adult Social Care,Services For Older People - 65 And Over,Third Party Payments,Home Care,568,13-Apr-2011,1104-00381,9611.44,R,Anchor
http://statistics.data.gov.uk/doc/local-authority/00DA,Leeds City Council,Adult Social Care,Services For Older People Under 65 P/Dis,Third Party Payments,Home Care,568,13-Apr-2011,1104-00382,704.90,R,Anchor
http://statistics.data.gov.uk/doc/local-authority/00DA,Leeds City Council,Adult Social Care,Services For Older People - 65 And Over,Third Party Payments,Home Care,568,13-Apr-2011,1104-00383,2343.79,R,Anchor
http://statistics.data.gov.uk/doc/local-authority/00DA,Leeds City Council,Adult Social Care,Services For Older People Under 65 P/Dis,Third Party Payments,Home Care,568,13-Apr-2011,1104-00384,1366.34,R,Anchor
http://statistics.data.gov.uk/doc/local-authority/00DA,Leeds City Council,Adult Social Care,Services For Older People - 65 And Over,Third Party Payments,Home Care,568,26-Apr-2011,1104-00385,30798.31,R,Anchor
http://statistics.data.gov.uk/doc/local-authority/00DA,Leeds City Council,Adult Social Care,Services For Older People Under 65 P/Dis,Third Party Payments,Home Care,568,26-Apr-2011,1104-00386,4793.68,R,Anchor
http://statistics.data.gov.uk/doc/local-authority/00DA,Leeds City Council,Adult Social Care,Services For Older People - 65 And Over,Third Party Payments,Home Care,568,13-Apr-2011,1104-00387,528.49,R,Anchor
http://statistics.data.gov.uk/doc/local-authority/00DA,Leeds City Council,Adult Social Care,Services For Older People - 65 And Over,Third Party Payments,Home Care,568,13-Apr-2011,1104-00388,15663.96,R,Anchor
http://statistics.data.gov.uk/doc/local-authority/00DA,Leeds City Council,Adult Social Care,Services For Older People Under 65 P/Dis,Third Party Payments,Home Care,568,13-Apr-2011,1104-00389,1230.94,R,Anchor
http://statistics.data.gov.uk/doc/local-authority/00DA,Leeds City Council,Adult Social Care,Services For Older People - 65 And Over,Third Party Payments,Home Care,568,13-Apr-2011,1104-00390,24056.70,R,Anchor
http://statistics.data.gov.uk/doc/local-authority/00DA,Leeds City Council,Adult Social Care,Services For Older People Under 65 P/Dis,Third Party Payments,Home Care,568,13-Apr-2011,1104-00391,2101.71,R,Anchor
http://statistics.data.gov.uk/doc/local-authority/00DA,Leeds City Council,Adult Social Care,Services For Older People - 65 And Over,Third Party Payments,Home Care,568,13-Apr-2011,1104-00392,2968.31,R,Anchor
http://statistics.data.gov.uk/doc/local-authority/00DA,Leeds City Council,Adult Social Care,Services For Older People - 65 And Over,Third Party Payments,Home Care,568,13-Apr-2011,1104-00393,863.63,R,Anchor
http://statistics.data.gov.uk/doc/local-authority/00DA,Leeds City Council,Adult Social Care,Services For Older People Under 65 P/Dis,Third Party Payments,Home Care,568,13-Apr-2011,1104-00394,527.33,R,Anchor
http://statistics.data.gov.uk/doc/local-authority/00DA,Leeds City Council as Accountable Body,Jcs For People With Learning Disabilitie,Jcs For People With Learning Disabilitie,Third Party Payments,Home Care,568,12-Apr-2011,1104-00395,1320.10,R,Anchor
http://statistics.data.gov.uk/doc/local-authority/00DA,Leeds City Council as Accountable Body,Jcs For People With Learning Disabilitie,Jcs For People With Learning Disabilitie,Third Party Payments,Residential,580,21-Apr-2011,1104-00396,588.96,R,Anchor Trust
http://statistics.data.gov.uk/doc/local-authority/00DA,Leeds City Council,Adult Social Care,Services For Older People - 65 And Over,Third Party Payments,Payments To Voluntary Organisations,561,21-Apr-2011,1104-00397,-9167.48,R,Anchor Trust
http://statistics.data.gov.uk/doc/local-authority/00DA,Leeds City Council,Adult Social Care,Services For Older People - 65 And Over,Third Party Payments,Payments To Voluntary Organisations,561,21-Apr-2011,1104-00398,9167.48,R,Anchor Trust
http://statistics.data.gov.uk/doc/local-authority/00DA,Leeds City Council,Environment & Neighbourhoods,Housing Needs,Third Party Payments,Supporting People - Block Subsidy,513,26-Apr-2011,1104-00399,458.72,R,Anchor Trust
http://statistics.data.gov.uk/doc/local-authority/00DA,Leeds City Council,Environment & Neighbourhoods,Housing Needs,Third Party Payments,Supporting People - Block Subsidy,513,26-Apr-2011,1104-00400,9713.90,R,Anchor Trust
http://statistics.data.gov.uk/doc/local-authority/00DA,Leeds City Council,Adult Social Care,Services For Older People - 65 And Over,Third Party Payments,Nursing Home,570,13-Apr-2011,1104-00401,27704.27,R,Anchor Trust
http://statistics.data.gov.uk/doc/local-authority/00DA,Leeds City Council,Adult Social Care,Services For Adults Under 65 Mental/Dis,Third Party Payments,Nursing Home,570,13-Apr-2011,1104-00402,1758.08,R,Anchor Trust
http://statistics.data.gov.uk/doc/local-authority/00DA,Leeds City Council,Adult Social Care,Services For Older People Under 65 P/Dis,Third Party Payments,Nursing Home,570,13-Apr-2011,1104-00403,1410.48,R,Anchor Trust
http://statistics.data.gov.uk/doc/local-authority/00DA,Leeds City Council,Adult Social Care,Services For Older People - 65 And Over,Third Party Payments,Residential Care Emi,571,13-Apr-2011,1104-00404,1160.55,R,Anchor Trust
http://statistics.data.gov.uk/doc/local-authority/00DA,Leeds City Council,Adult Social Care,Services For Older People - 65 And Over,Third Party Payments,Residential Care Emi,571,13-Apr-2011,1104-00405,1650.04,R,Anchor Trust
http://statistics.data.gov.uk/doc/local-authority/00DA,Leeds City Council,Adult Social Care,Services For Older People - 65 And Over,Third Party Payments,Residential Care Emi,571,13-Apr-2011,1104-00406,3629.04,R,Anchor Trust
http://statistics.data.gov.uk/doc/local-authority/00DA,Leeds City Council,Adult Social Care,Services For Older People - 65 And Over,Third Party Payments,Nursing Care Emi,574,13-Apr-2011,1104-00407,1204.92,R,Anchor Trust
http://statistics.data.gov.uk/doc/local-authority/00DA,Leeds City Council,Adult Social Care,Services For Older People - 65 And Over,Third Party Payments,Residential,580,13-Apr-2011,1104-00408,923.78,R,Anchor Trust
http://statistics.data.gov.uk/doc/local-authority/00DA,Leeds City Council,Adult Social Care,Services For Older People - 65 And Over,Third Party Payments,Residential,580,13-Apr-2011,1104-00409,1928.64,R,Anchor Trust
http://statistics.data.gov.uk/doc/local-authority/00DA,Leeds City Council,Adult Social Care,Services For Adults Under 65 Mental/Dis,Third Party Payments,Residential,580,13-Apr-2011,1104-00410,1120.24,R,Anchor Trust
http://statistics.data.gov.uk/doc/local-authority/00DA,Leeds City Council,Environment & Neighbourhoods,Housing Needs,Third Party Payments,Supporting People - Block Subsidy,513,26-Apr-2011,1104-00411,503.13,R,Anchor Trust
http://statistics.data.gov.uk/doc/local-authority/00DA,Leeds City Council,Adult Social Care,Services For Older People - 65 And Over,Third Party Payments,Residential Care Emi,571,13-Apr-2011,1104-00412,5586.53,R,Anchor Trust Simon Marks Court
http://statistics.data.gov.uk/doc/local-authority/00DA,Leeds City Council,Adult Social Care,Services For Older People - 65 And Over,Third Party Payments,Residential,580,13-Apr-2011,1104-00413,11867.84,R,Anchor Trust Simon Marks Court
http://statistics.data.gov.uk/doc/local-authority/00DA,Leeds City Council,Other Education Services Managed By E.L.,Aided Schools,Capital,Construction,3,15-Apr-2011,1104-00414,3302.50,C,Anchorfast Products Limited
http://statistics.data.gov.uk/doc/local-authority/00DA,East - North East Homes Leeds,East - North East,Technical Services,Premises,H.R.A. - Repairs A To P,107,15-Apr-2011,1104-00415,9084.00,R,Anderson Marriott & Co Ltd
http://statistics.data.gov.uk/doc/local-authority/00DA,East - North East Homes Leeds,East - North East,Technical Services,Premises,H.R.A. - Repairs A To P,107,18-Apr-2011,1104-00416,11808.62,R,Anderson Marriott & Co Ltd
http://statistics.data.gov.uk/doc/local-authority/00DA,East - North East Homes Leeds,East - North East,Technical Services,Premises,H.R.A. - Repairs A To P,107,18-Apr-2011,1104-00417,7936.00,R,Anderson Marriott & Co Ltd
http://statistics.data.gov.uk/doc/local-authority/00DA,East - North East Homes Leeds,East - North East,Business Improvement,Premises,Other,114,18-Apr-2011,1104-00418,492.00,R,Anderson Marriott & Co Ltd
http://statistics.data.gov.uk/doc/local-authority/00DA,Aire Valley Homes Leeds,Aire Valley Homes Leeds,Aire Valley Homes Leeds,Supplies and Services,Information Technology (Computers),214,18-Apr-2011,1104-00419,2275.00,R,Andrew Elliott
http://statistics.data.gov.uk/doc/local-authority/00DA,Aire Valley Homes Leeds,Aire Valley Homes Leeds,Aire Valley Homes Leeds,Supplies and Services,Information Technology (Computers),214,27-Apr-2011,1104-00420,3475.00,R,Andrew Elliott
http://statistics.data.gov.uk/doc/local-authority/00DA,Leeds City Council,City Development,Libraries Arts & Heritage,Supplies and Services,Other Hired And Contracted Services,265,07-Apr-2011,1104-00421,1080.00,R,Andrew Mcmillan
http://statistics.data.gov.uk/doc/local-authority/00DA,West - North West Homes Leeds,West - North West,Property And Maintenance,Premises,H.R.A. - Special Maintenance,106,05-Apr-2011,1104-00422,1146.60,R,Andrew Miller Builders
http://statistics.data.gov.uk/doc/local-authority/00DA,West - North West Homes Leeds,West - North West,Property And Maintenance,Premises,General Maintenance,104,05-Apr-2011,1104-00423,638.10,R,Andrew Miller Builders
http://statistics.data.gov.uk/doc/local-authority/00DA,Leeds City Council,Adult Social Care,Adult Social Care,Capital,Internal Fees,6,07-Apr-2011,1104-00424,2045.00,C,Andrews Sykes Hire Ltd
http://statistics.data.gov.uk/doc/local-authority/00DA,Leeds City Council,City Development,Recreation,Supplies and Services,Operational Furniture And Equipment,203,21-Apr-2011,1104-00425,1204.00,R,Andy Thornton
http://statistics.data.gov.uk/doc/local-authority/00DA,Leeds City Council,Adult Social Care,Services For Older People - 65 And Over,Third Party Payments,Home Care,568,08-Apr-2011,1104-00426,906.50,R,Angels Home Care Services
http://statistics.data.gov.uk/doc/local-authority/00DA,Leeds City Council,Adult Social Care,Services For Older People Under 65 P/Dis,Third Party Payments,Home Care,568,15-Apr-2011,1104-00427,1368.50,R,Angels Home Care Services
http://statistics.data.gov.uk/doc/local-authority/00DA,Leeds City Council,Adult Social Care,Services For Older People - 65 And Over,Third Party Payments,Home Care,568,15-Apr-2011,1104-00428,653.52,R,Angels Home Care Services
http://statistics.data.gov.uk/doc/local-authority/00DA,Leeds City Council,Adult Social Care,Services For Older People - 65 And Over,Third Party Payments,Home Care,568,15-Apr-2011,1104-00429,577.50,R,Angels Home Care Services
http://statistics.data.gov.uk/doc/local-authority/00DA,Leeds City Council,Adult Social Care,Services For Older People - 65 And Over,Third Party Payments,Home Care,568,15-Apr-2011,1104-00430,441.00,R,Angels Home Care Services
http://statistics.data.gov.uk/doc/local-authority/00DA,Leeds City Council,Adult Social Care,Services For Older People Under 65 P/Dis,Third Party Payments,Home Care,568,15-Apr-2011,1104-00431,1529.50,R,Angels Home Care Services
http://statistics.data.gov.uk/doc/local-authority/00DA,Leeds City Council,Adult Social Care,Services For Older People - 65 And Over,Third Party Payments,Home Care,568,15-Apr-2011,1104-00432,441.00,R,Angels Home Care Services
http://statistics.data.gov.uk/doc/local-authority/00DA,Leeds City Council,Adult Social Care,Services For Older People - 65 And Over,Third Party Payments,Home Care,568,13-Apr-2011,1104-00433,448.00,R,Angels Home Care Services
http://statistics.data.gov.uk/doc/local-authority/00DA,Leeds City Council,Adult Social Care,Services For Older People Under 65 P/Dis,Third Party Payments,Home Care,568,13-Apr-2011,1104-00434,3151.00,R,Angels Home Care Services
http://statistics.data.gov.uk/doc/local-authority/00DA,Leeds City Council,Adult Social Care,Services For Older People - 65 And Over,Third Party Payments,Home Care,568,15-Apr-2011,1104-00435,1938.50,R,Angels Home Care Services
http://statistics.data.gov.uk/doc/local-authority/00DA,Leeds City Council,Adult Social Care,Services For Older People - 65 And Over,Third Party Payments,Home Care,568,15-Apr-2011,1104-00436,3920.00,R,Angels Home Care Services
http://statistics.data.gov.uk/doc/local-authority/00DA,Leeds City Council,Adult Social Care,Services For Older People - 65 And Over,Third Party Payments,Payments To Voluntary Organisations,561,06-Apr-2011,1104-00437,11938.95,R,Angels Housekeeping Cic Ltd
http://statistics.data.gov.uk/doc/local-authority/00DA,Leeds City Council,Environment & Neighbourhoods,Regeneration,Supplies and Services,Non-Recurring Grants,227,01-Apr-2011,1104-00438,5162.00,R,Angels Housekeeping Cic Ltd
http://statistics.data.gov.uk/doc/local-authority/00DA,Leeds City Council,Environment & Neighbourhoods,Regeneration,Supplies and Services,Non-Recurring Grants,227,18-Apr-2011,1104-00439,8669.00,R,Angels Housekeeping Cic Ltd
http://statistics.data.gov.uk/doc/local-authority/00DA,Leeds City Council,Childrens Services,Early Years Service,Third Party Payments,Services Rendered By Other Organisations,511,15-Apr-2011,1104-00440,14863.89,R,Angels Nursery
http://statistics.data.gov.uk/doc/local-authority/00DA,Leeds City Council,City Development,Libraries Arts & Heritage,Income,Admissions Booking Fees & Ticket Sales,933,26-Apr-2011,1104-00441,518.00,R,Angus And Ross Theatre Company
http://statistics.data.gov.uk/doc/local-authority/00DA,Leeds City Council,City Development,Economic Development,Supplies and Services,Publication And Promotion,267,06-Apr-2011,1104-00442,1117.58,R,Anita Morris Associates Ltd
http://statistics.data.gov.uk/doc/local-authority/00DA,Leeds City Council,City Development,Economic Development,Supplies and Services,Publication And Promotion,267,14-Apr-2011,1104-00443,1117.58,R,Anita Morris Associates Ltd
http://statistics.data.gov.uk/doc/local-authority/00DA,Leeds City Council,City Development,Economic Development,Supplies and Services,Publication And Promotion,267,06-Apr-2011,1104-00444,1080.00,R,Anita Morris Associates Ltd
http://statistics.data.gov.uk/doc/local-authority/00DA,Leeds City Council,Central & Corporate Functions,Corporate Governance,Supplies and Services,Other Hired And Contracted Services,265,12-Apr-2011,1104-00445,3300.13,R,Anslow Communications Ltd
http://statistics.data.gov.uk/doc/local-authority/00DA,Leeds City Council,Central & Corporate Functions,Corporate Governance,Supplies and Services,Other Hired And Contracted Services,265,21-Apr-2011,1104-00446,2035.10,R,Anslow Communications Ltd
http://statistics.data.gov.uk/doc/local-authority/00DA,Leeds City Council,Central & Corporate Functions,Corporate Governance,Supplies and Services,Other Hired And Contracted Services,265,07-Apr-2011,1104-00447,2736.91,R,Anslow Communications Ltd
http://statistics.data.gov.uk/doc/local-authority/00DA,Leeds City Council,Central & Corporate Functions,Information Technology,Supplies and Services,Office Consumables,210,13-Apr-2011,1104-00448,586.25,R,Antalis Mcnaughton Limited
http://statistics.data.gov.uk/doc/local-authority/00DA,Leeds City Council,Central & Corporate Functions,Support And Facilities Trading Services,Supplies and Services,Operational Materials,205,01-Apr-2011,1104-00449,469.00,R,Antalis Mcnaughton Limited
http://statistics.data.gov.uk/doc/local-authority/00DA,Leeds City Council,City Development,Highways,Supplies and Services,Office Consumables,210,13-Apr-2011,1104-00450,1078.70,R,Antalis Mcnaughton Limited
http://statistics.data.gov.uk/doc/local-authority/00DA,Leeds City Council,Central & Corporate Functions,Support And Facilities Trading Services,Supplies and Services,Operational Materials,205,15-Apr-2011,1104-00451,469.00,R,Antalis Mcnaughton Limited
http://statistics.data.gov.uk/doc/local-authority/00DA,Leeds City Council,Adult Social Care,Social Services Support Services,Supplies and Services,Office Consumables,210,09-Mar-2011,1104-00452,558.68,R,Antalis Uk Ltd
http://statistics.data.gov.uk/doc/local-authority/00DA,Leeds City Council,Central & Corporate Functions,Revenues,Supplies and Services,Office Consumables,210,30-Mar-2011,1104-00453,586.25,R,Antalis Uk Ltd
http://statistics.data.gov.uk/doc/local-authority/00DA,Leeds City Council,City Development,Libraries Arts & Heritage,Supplies and Services,Other Hired And Contracted Services,265,01-Apr-2011,1104-00454,840.00,R,Anything Audio
http://statistics.data.gov.uk/doc/local-authority/00DA,Leeds City Council,City Development,Libraries Arts & Heritage,Supplies and Services,Other Hired And Contracted Services,265,12-Apr-2011,1104-00455,2277.50,R,Anything Audio
http://statistics.data.gov.uk/doc/local-authority/00DA,Leeds City Council,Adult Social Care,Social Services Support Services,Supplies and Services,Other Hired And Contracted Services,265,15-Apr-2011,1104-00456,1361.25,R,Aon Ltd
http://statistics.data.gov.uk/doc/local-authority/00DA,Leeds City Council,Central & Corporate Functions,Commercial Services Trading Services,Supplies and Services,Food & Drink,231,21-Apr-2011,1104-00457,2120.72,R,Apetito Ltd
http://statistics.data.gov.uk/doc/local-authority/00DA,Leeds City Council,Central & Corporate Functions,Commercial Services Trading Services,Supplies and Services,Food & Drink,231,21-Apr-2011,1104-00458,730.61,R,Apetito Ltd
http://statistics.data.gov.uk/doc/local-authority/00DA,Leeds City Council,Central & Corporate Functions,Commercial Services Trading Services,Supplies and Services,Food & Drink,231,21-Apr-2011,1104-00459,967.68,R,Apetito Ltd
http://statistics.data.gov.uk/doc/local-authority/00DA,Leeds City Council,Central & Corporate Functions,Commercial Services Trading Services,Supplies and Services,Food & Drink,231,21-Apr-2011,1104-00460,1697.50,R,Apetito Ltd
http://statistics.data.gov.uk/doc/local-authority/00DA,Leeds City Council,Central & Corporate Functions,Commercial Services Trading Services,Supplies and Services,Food & Drink,231,21-Apr-2011,1104-00461,1560.80,R,Apetito Ltd
http://statistics.data.gov.uk/doc/local-authority/00DA,Leeds City Council,Central & Corporate Functions,Commercial Services Trading Services,Supplies and Services,Food & Drink,231,21-Apr-2011,1104-00462,1553.55,R,Apetito Ltd
http://statistics.data.gov.uk/doc/local-authority/00DA,Leeds City Council,Central & Corporate Functions,Commercial Services Trading Services,Supplies and Services,Food & Drink,231,21-Apr-2011,1104-00463,755.12,R,Apetito Ltd
http://statistics.data.gov.uk/doc/local-authority/00DA,Leeds City Council,Central & Corporate Functions,Commercial Services Trading Services,Supplies and Services,Food & Drink,231,21-Apr-2011,1104-00464,2361.24,R,Apetito Ltd
http://statistics.data.gov.uk/doc/local-authority/00DA,Leeds City Council,Central & Corporate Functions,Commercial Services Trading Services,Supplies and Services,Food & Drink,231,21-Apr-2011,1104-00465,925.54,R,Apetito Ltd
http://statistics.data.gov.uk/doc/local-authority/00DA,Leeds City Council,Central & Corporate Functions,Commercial Services Trading Services,Supplies and Services,Food & Drink,231,21-Apr-2011,1104-00466,797.04,R,Apetito Ltd
http://statistics.data.gov.uk/doc/local-authority/00DA,Leeds City Council,Central & Corporate Functions,Commercial Services Trading Services,Supplies and Services,Food & Drink,231,21-Apr-2011,1104-00467,2121.14,R,Apetito Ltd
http://statistics.data.gov.uk/doc/local-authority/00DA,Leeds City Council,Central & Corporate Functions,Commercial Services Trading Services,Supplies and Services,Food & Drink,231,21-Apr-2011,1104-00468,1397.92,R,Apetito Ltd
http://statistics.data.gov.uk/doc/local-authority/00DA,Leeds City Council,Central & Corporate Functions,Commercial Services Trading Services,Supplies and Services,Food & Drink,231,28-Apr-2011,1104-00469,2156.56,R,Apetito Ltd
http://statistics.data.gov.uk/doc/local-authority/00DA,Leeds City Council,Central & Corporate Functions,Commercial Services Trading Services,Supplies and Services,Food & Drink,231,28-Apr-2011,1104-00470,600.66,R,Apetito Ltd
http://statistics.data.gov.uk/doc/local-authority/00DA,Leeds City Council,Central & Corporate Functions,Commercial Services Trading Services,Supplies and Services,Food & Drink,231,28-Apr-2011,1104-00471,777.70,R,Apetito Ltd
http://statistics.data.gov.uk/doc/local-authority/00DA,Leeds City Council,Central & Corporate Functions,Commercial Services Trading Services,Supplies and Services,Food & Drink,231,28-Apr-2011,1104-00472,2252.99,R,Apetito Ltd
http://statistics.data.gov.uk/doc/local-authority/00DA,Leeds City Council,Central & Corporate Functions,Commercial Services Trading Services,Supplies and Services,Food & Drink,231,28-Apr-2011,1104-00473,2032.83,R,Apetito Ltd
http://statistics.data.gov.uk/doc/local-authority/00DA,Leeds City Council,Central & Corporate Functions,Commercial Services Trading Services,Supplies and Services,Food & Drink,231,28-Apr-2011,1104-00474,944.52,R,Apetito Ltd
http://statistics.data.gov.uk/doc/local-authority/00DA,Leeds City Council,Central & Corporate Functions,Commercial Services Trading Services,Supplies and Services,Food & Drink,231,21-Apr-2011,1104-00475,-18118.00,R,Apetito Ltd
http://statistics.data.gov.uk/doc/local-authority/00DA,Leeds City Council,Environment & Neighbourhoods,Housing Needs,Supplies and Services,Other Hired And Contracted Services,265,28-Apr-2011,1104-00476,474.67,R,Apex Homes
http://statistics.data.gov.uk/doc/local-authority/00DA,Leeds City Council,City Development,Economic Development,Supplies and Services,Consultancy Services,259,15-Apr-2011,1104-00477,1883.50,R,Appeal Pr Ltd
http://statistics.data.gov.uk/doc/local-authority/00DA,Leeds City Council,City Development,Economic Development,Supplies and Services,Consultancy Services,259,28-Apr-2011,1104-00478,1883.50,R,Appeal Pr Ltd
http://statistics.data.gov.uk/doc/local-authority/00DA,Leeds City Council as Accountable Body,Jcs For People With Learning Disabilitie,Jcs For People With Learning Disabilitie,Third Party Payments,Residential,580,13-Apr-2011,1104-00479,10373.56,R,Applewalk Homes
http://statistics.data.gov.uk/doc/local-authority/00DA,Leeds City Council,Central & Corporate Functions,Commercial Services Trading Services,Supplies and Services,Computer Software & Equipment,214,06-Apr-2011,1104-00480,786.00,R,Appstation
http://statistics.data.gov.uk/doc/local-authority/00DA,Leeds City Council,Central & Corporate Functions,Commercial Services Trading Services,Supplies and Services,Other Hired And Contracted Services,265,15-Apr-2011,1104-00481,1266.09,R,Aquatrust Water & Ventilation Ltd
http://statistics.data.gov.uk/doc/local-authority/00DA,Leeds City Council as Accountable Body,Jcs For People With Learning Disabilitie,Jcs For People With Learning Disabilitie,Third Party Payments,Home Care,568,06-Apr-2011,1104-00482,1550.69,R,Arabella Health Staffing Ltd
http://statistics.data.gov.uk/doc/local-authority/00DA,Leeds City Council as Accountable Body,Jcs For People With Learning Disabilitie,Jcs For People With Learning Disabilitie,Third Party Payments,Home Care,568,06-Apr-2011,1104-00483,429.79,R,Arabella Health Staffing Ltd
http://statistics.data.gov.uk/doc/local-authority/00DA,Leeds City Council as Accountable Body,Jcs For People With Learning Disabilitie,Jcs For People With Learning Disabilitie,Third Party Payments,Home Care,568,06-Apr-2011,1104-00484,605.66,R,Arabella Health Staffing Ltd
http://statistics.data.gov.uk/doc/local-authority/00DA,Leeds City Council as Accountable Body,Jcs For People With Learning Disabilitie,Jcs For People With Learning Disabilitie,Third Party Payments,Home Care,568,06-Apr-2011,1104-00485,525.48,R,Arabella Health Staffing Ltd
http://statistics.data.gov.uk/doc/local-authority/00DA,Leeds City Council as Accountable Body,Jcs For People With Learning Disabilitie,Jcs For People With Learning Disabilitie,Third Party Payments,Home Care,568,06-Apr-2011,1104-00486,1774.38,R,Arabella Health Staffing Ltd
http://statistics.data.gov.uk/doc/local-authority/00DA,Leeds City Council as Accountable Body,Jcs For People With Learning Disabilitie,Jcs For People With Learning Disabilitie,Third Party Payments,Home Care,568,01-Apr-2011,1104-00487,428.71,R,Arabella Health Staffing Ltd
http://statistics.data.gov.uk/doc/local-authority/00DA,Leeds City Council as Accountable Body,Jcs For People With Learning Disabilitie,Jcs For People With Learning Disabilitie,Third Party Payments,Home Care,568,01-Apr-2011,1104-00488,799.47,R,Arabella Health Staffing Ltd
http://statistics.data.gov.uk/doc/local-authority/00DA,Leeds City Council as Accountable Body,Jcs For People With Learning Disabilitie,Jcs For People With Learning Disabilitie,Third Party Payments,Home Care,568,01-Apr-2011,1104-00489,743.88,R,Arabella Health Staffing Ltd
http://statistics.data.gov.uk/doc/local-authority/00DA,Leeds City Council as Accountable Body,Jcs For People With Learning Disabilitie,Jcs For People With Learning Disabilitie,Third Party Payments,Home Care,568,01-Apr-2011,1104-00490,525.48,R,Arabella Health Staffing Ltd
http://statistics.data.gov.uk/doc/local-authority/00DA,Leeds City Council as Accountable Body,Jcs For People With Learning Disabilitie,Jcs For People With Learning Disabilitie,Third Party Payments,Home Care,568,01-Apr-2011,1104-00491,1935.48,R,Arabella Health Staffing Ltd
http://statistics.data.gov.uk/doc/local-authority/00DA,Leeds City Council as Accountable Body,Jcs For People With Learning Disabilitie,Jcs For People With Learning Disabilitie,Third Party Payments,Home Care,568,08-Apr-2011,1104-00492,1308.68,R,Arabella Health Staffing Ltd
http://statistics.data.gov.uk/doc/local-authority/00DA,Leeds City Council as Accountable Body,Jcs For People With Learning Disabilitie,Jcs For People With Learning Disabilitie,Third Party Payments,Home Care,568,08-Apr-2011,1104-00493,1924.30,R,Arabella Health Staffing Ltd
http://statistics.data.gov.uk/doc/local-authority/00DA,Leeds City Council as Accountable Body,Jcs For People With Learning Disabilitie,Jcs For People With Learning Disabilitie,Third Party Payments,Home Care,568,14-Apr-2011,1104-00494,1083.53,R,Arabella Health Staffing Ltd
http://statistics.data.gov.uk/doc/local-authority/00DA,Leeds City Council as Accountable Body,Jcs For People With Learning Disabilitie,Jcs For People With Learning Disabilitie,Third Party Payments,Home Care,568,14-Apr-2011,1104-00495,920.15,R,Arabella Health Staffing Ltd
http://statistics.data.gov.uk/doc/local-authority/00DA,Leeds City Council as Accountable Body,Jcs For People With Learning Disabilitie,Jcs For People With Learning Disabilitie,Third Party Payments,Home Care,568,14-Apr-2011,1104-00496,759.08,R,Arabella Health Staffing Ltd
http://statistics.data.gov.uk/doc/local-authority/00DA,Leeds City Council as Accountable Body,Jcs For People With Learning Disabilitie,Jcs For People With Learning Disabilitie,Third Party Payments,Home Care,568,14-Apr-2011,1104-00497,525.48,R,Arabella Health Staffing Ltd
http://statistics.data.gov.uk/doc/local-authority/00DA,Leeds City Council as Accountable Body,Jcs For People With Learning Disabilitie,Jcs For People With Learning Disabilitie,Third Party Payments,Home Care,568,14-Apr-2011,1104-00498,895.81,R,Arabella Health Staffing Ltd
http://statistics.data.gov.uk/doc/local-authority/00DA,Leeds City Council as Accountable Body,Jcs For People With Learning Disabilitie,Jcs For People With Learning Disabilitie,Third Party Payments,Home Care,568,27-Apr-2011,1104-00499,743.88,R,Arabella Health Staffing Ltd
http://statistics.data.gov.uk/doc/local-authority/00DA,Leeds City Council as Accountable Body,Jcs For People With Learning Disabilitie,Jcs For People With Learning Disabilitie,Third Party Payments,Home Care,568,21-Apr-2011,1104-00500,1475.39,R,Arabella Health Staffing Ltd
http://statistics.data.gov.uk/doc/local-authority/00DA,Leeds City Council as Accountable Body,Jcs For People With Learning Disabilitie,Jcs For People With Learning Disabilitie,Third Party Payments,Home Care,568,21-Apr-2011,1104-00501,662.35,R,Arabella Health Staffing Ltd
http://statistics.data.gov.uk/doc/local-authority/00DA,Leeds City Council as Accountable Body,Jcs For People With Learning Disabilitie,Jcs For People With Learning Disabilitie,Third Party Payments,Home Care,568,21-Apr-2011,1104-00502,750.64,R,Arabella Health Staffing Ltd
http://statistics.data.gov.uk/doc/local-authority/00DA,Leeds City Council as Accountable Body,Jcs For People With Learning Disabilitie,Jcs For People With Learning Disabilitie,Third Party Payments,Home Care,568,21-Apr-2011,1104-00503,547.84,R,Arabella Health Staffing Ltd
http://statistics.data.gov.uk/doc/local-authority/00DA,Leeds City Council as Accountable Body,Jcs For People With Learning Disabilitie,Jcs For People With Learning Disabilitie,Third Party Payments,Home Care,568,27-Apr-2011,1104-00504,930.15,R,Arabella Health Staffing Ltd
http://statistics.data.gov.uk/doc/local-authority/00DA,Leeds City Council as Accountable Body,Jcs For People With Learning Disabilitie,Jcs For People With Learning Disabilitie,Third Party Payments,Home Care,568,27-Apr-2011,1104-00505,703.28,R,Arabella Health Staffing Ltd
http://statistics.data.gov.uk/doc/local-authority/00DA,Leeds City Council as Accountable Body,Jcs For People With Learning Disabilitie,Jcs For People With Learning Disabilitie,Third Party Payments,Home Care,568,27-Apr-2011,1104-00506,547.84,R,Arabella Health Staffing Ltd
http://statistics.data.gov.uk/doc/local-authority/00DA,Leeds City Council as Accountable Body,Jcs For People With Learning Disabilitie,Jcs For People With Learning Disabilitie,Third Party Payments,Home Care,568,28-Apr-2011,1104-00507,1295.29,R,Arabella Health Staffing Ltd
http://statistics.data.gov.uk/doc/local-authority/00DA,Leeds City Council,Environment & Neighbourhoods,Hra,Supplies and Services,Conference Meetings,253,07-Apr-2011,1104-00508,1200.00,R,Archana Choksi
http://statistics.data.gov.uk/doc/local-authority/00DA,Leeds City Council,Environment & Neighbourhoods,Regeneration,Supplies and Services,Non-Recurring Grants,227,18-Apr-2011,1104-00509,579.00,R,Archway
http://statistics.data.gov.uk/doc/local-authority/00DA,Leeds City Council,Environment & Neighbourhoods,Regeneration,Supplies and Services,Non-Recurring Grants,227,01-Apr-2011,1104-00510,5127.00,R,Archway
http://statistics.data.gov.uk/doc/local-authority/00DA,Leeds City Council,Environment & Neighbourhoods,Regeneration,Supplies and Services,Non-Recurring Grants,227,07-Apr-2011,1104-00511,613.00,R,Archway
http://statistics.data.gov.uk/doc/local-authority/00DA,Leeds City Council,Environment & Neighbourhoods,Regeneration,Supplies and Services,Non-Recurring Grants,227,21-Apr-2011,1104-00512,41176.00,R,Archway
http://statistics.data.gov.uk/doc/local-authority/00DA,Leeds City Council,Environment & Neighbourhoods,Regeneration,Supplies and Services,Non-Recurring Grants,227,01-Apr-2011,1104-00513,28102.00,R,Archway
http://statistics.data.gov.uk/doc/local-authority/00DA,West - North West Homes Leeds,West - North West,Corporate Services,Supplies and Services,Clothing & Uniforms,241,15-Apr-2011,1104-00514,426.18,R,Arco Ltd
http://statistics.data.gov.uk/doc/local-authority/00DA,East - North East Homes Leeds,East - North East,Technical Services,Supplies and Services,Other Materials,205,08-Apr-2011,1104-00515,583.98,R,Arco Ltd
http://statistics.data.gov.uk/doc/local-authority/00DA,Leeds City Council,Central & Corporate Functions,Commercial Services Trading Services,Supplies and Services,Operational Materials,205,12-Apr-2011,1104-00516,610.90,R,Arco Ltd
http://statistics.data.gov.uk/doc/local-authority/00DA,East - North East Homes Leeds,East - North East,Technical Services,Supplies and Services,Other Materials,205,12-Apr-2011,1104-00517,686.52,R,Arco Ltd
http://statistics.data.gov.uk/doc/local-authority/00DA,East - North East Homes Leeds,East - North East,Technical Services,Supplies and Services,Other Materials,205,14-Apr-2011,1104-00518,1203.04,R,Arco Ltd
http://statistics.data.gov.uk/doc/local-authority/00DA,East - North East Homes Leeds,East - North East,Technical Services,Supplies and Services,Other Materials,205,15-Apr-2011,1104-00519,767.96,R,Arco Ltd
http://statistics.data.gov.uk/doc/local-authority/00DA,Leeds City Council,Adult Social Care,Roseville Enterprises,Supplies and Services,Clothing & Uniforms,241,19-Apr-2011,1104-00520,527.80,R,Arco Ltd
http://statistics.data.gov.uk/doc/local-authority/00DA,Leeds City Council,City Development,Libraries Arts & Heritage,Supplies and Services,Clothing & Uniforms,241,21-Apr-2011,1104-00521,480.30,R,Arco Ltd
http://statistics.data.gov.uk/doc/local-authority/00DA,West - North West Homes Leeds,West - North West,Customer And Tenancy,Premises,General Maintenance,104,28-Apr-2011,1104-00522,810.72,R,Arco Ltd
http://statistics.data.gov.uk/doc/local-authority/00DA,Leeds City Council,City Development,Highways,Supplies and Services,Operational Materials,205,28-Apr-2011,1104-00523,420.48,R,Arco Ltd
http://statistics.data.gov.uk/doc/local-authority/00DA,West - North West Homes Leeds,West - North West,Customer And Tenancy,Premises,General Maintenance,104,28-Apr-2011,1104-00524,1116.00,R,Arco Ltd
http://statistics.data.gov.uk/doc/local-authority/00DA,Leeds City Council,Environment & Neighbourhoods,Streetscene Environmental Services,Supplies and Services,Clothing & Uniforms,241,05-Apr-2011,1104-00525,565.60,R,Arden Winch And Company Limited
http://statistics.data.gov.uk/doc/local-authority/00DA,Leeds City Council,Environment & Neighbourhoods,Streetscene Environmental Services,Supplies and Services,Clothing & Uniforms,241,05-Apr-2011,1104-00526,824.20,R,Arden Winch And Company Limited
http://statistics.data.gov.uk/doc/local-authority/00DA,Leeds City Council,Environment & Neighbourhoods,Streetscene Environmental Services,Supplies and Services,Clothing & Uniforms,241,05-Apr-2011,1104-00527,900.00,R,Arden Winch And Company Limited
http://statistics.data.gov.uk/doc/local-authority/00DA,Leeds City Council,Environment & Neighbourhoods,Streetscene Environmental Services,Supplies and Services,Clothing & Uniforms,241,05-Apr-2011,1104-00528,420.00,R,Arden Winch And Company Limited
http://statistics.data.gov.uk/doc/local-authority/00DA,Aire Valley Homes Leeds,Aire Valley Homes Leeds,Aire Valley Homes Leeds,Supplies and Services,Other Hired And Contracted Services,265,28-Apr-2011,1104-00529,3000.00,R,Arena Partnership Limited
http://statistics.data.gov.uk/doc/local-authority/00DA,Leeds City Council,Childrens Services,Youth Justice,Transfer Payments,Payments to Residents,622,22-Mar-2011,1104-00530,729.46,R,Argos Bus Solution
http://statistics.data.gov.uk/doc/local-authority/00DA,Leeds City Council,Childrens Services,Integrated Youth Support  Service,Supplies and Services,Teaching Materials,202,01-Apr-2011,1104-00531,725.37,R,Argos Distributors Ltd
http://statistics.data.gov.uk/doc/local-authority/00DA,Leeds City Council,Childrens Services,Integrated Youth Support  Service,Supplies and Services,Teaching Materials,202,05-Apr-2011,1104-00532,988.95,R,Argos Distributors Ltd
http://statistics.data.gov.uk/doc/local-authority/00DA,Leeds City Council,Childrens Services,Integrated Youth Support  Service,Supplies and Services,Teaching Materials,202,05-Apr-2011,1104-00533,1193.63,R,Argos Distributors Ltd
http://statistics.data.gov.uk/doc/local-authority/00DA,Leeds City Council,Childrens Services,Integrated Youth Support  Service,Supplies and Services,Teaching Materials,202,21-Apr-2011,1104-00534,1219.94,R,Argos Distributors Ltd
http://statistics.data.gov.uk/doc/local-authority/00DA,Leeds City Council,Childrens Services,Integrated Youth Support  Service,Capital,Furniture And Equipment,5,21-Apr-2011,1104-00535,499.95,C,Argos Distributors Ltd
http://statistics.data.gov.uk/doc/local-authority/00DA,Leeds City Council,Childrens Services,Early Years Service,Capital,Furniture And Equipment,5,28-Apr-2011,1104-00536,419.87,C,Argos Distributors Ltd
http://statistics.data.gov.uk/doc/local-authority/00DA,Leeds City Council,Childrens Services,Integrated Youth Support  Service,Supplies and Services,Operational Furniture & Equipment,203,15-Mar-2011,1104-00537,685.82,R,Argos Retail Group
http://statistics.data.gov.uk/doc/local-authority/00DA,Leeds City Council,Childrens Services,Integrated Youth Support  Service,Supplies and Services,Operational Furniture & Equipment,203,15-Mar-2011,1104-00538,1145.98,R,Argos Retail Group
http://statistics.data.gov.uk/doc/local-authority/00DA,Leeds City Council,Childrens Services,Integrated Youth Support  Service,Supplies and Services,Operational Furniture & Equipment,203,15-Mar-2011,1104-00539,554.33,R,Argos Retail Group
http://statistics.data.gov.uk/doc/local-authority/00DA,Leeds City Council,Childrens Services,Integrated Youth Support  Service,Supplies and Services,Operational Furniture & Equipment,203,15-Mar-2011,1104-00540,768.91,R,Argos Retail Group
http://statistics.data.gov.uk/doc/local-authority/00DA,Leeds City Council,Childrens Services,Director Of Childrens Services,Supplies and Services,Operational Furniture & Equipment,203,24-Mar-2011,1104-00541,618.86,R,Argos Retail Group
http://statistics.data.gov.uk/doc/local-authority/00DA,Leeds City Council,Environment & Neighbourhoods,Health & Environmental Action,Supplies and Services,Other Hired And Contracted Services,265,15-Apr-2011,1104-00542,768.05,R,Ari Environmental Services Ltd
http://statistics.data.gov.uk/doc/local-authority/00DA,Leeds City Council,Environment & Neighbourhoods,Health & Environmental Action,Supplies and Services,Other Hired And Contracted Services,265,27-Apr-2011,1104-00543,689.25,R,Ari Environmental Services Ltd
http://statistics.data.gov.uk/doc/local-authority/00DA,Leeds City Council,Environment & Neighbourhoods,Health & Environmental Action,Supplies and Services,Other Hired And Contracted Services,265,28-Apr-2011,1104-00544,1239.70,R,Ari Environmental Services Ltd
http://statistics.data.gov.uk/doc/local-authority/00DA,Leeds City Council,Environment & Neighbourhoods,Health & Environmental Action,Supplies and Services,Other Hired And Contracted Services,265,21-Apr-2011,1104-00545,964.95,R,Ari Environmental Services Ltd
http://statistics.data.gov.uk/doc/local-authority/00DA,Leeds City Council,Environment & Neighbourhoods,Health & Environmental Action,Supplies and Services,Other Hired And Contracted Services,265,27-Apr-2011,1104-00546,443.55,R,Ari Environmental Services Ltd
http://statistics.data.gov.uk/doc/local-authority/00DA,Leeds City Council,Environment & Neighbourhoods,Health & Environmental Action,Supplies and Services,Other Hired And Contracted Services,265,27-Apr-2011,1104-00547,857.10,R,Ari Environmental Services Ltd
http://statistics.data.gov.uk/doc/local-authority/00DA,West - North West Homes Leeds,West - North West,Corporate Services,Supplies and Services,Project Management Group,260,20-Apr-2011,1104-00548,11404.00,R,Ariba
http://statistics.data.gov.uk/doc/local-authority/00DA,Leeds City Council as Accountable Body,Leeds Community Equip Store Pooled Budgt,Leeds Community Equip Store Pooled Budgt,Supplies and Services,Other Equipment,203,21-Apr-2011,1104-00549,1554.00,R,Arjo Limited
http://statistics.data.gov.uk/doc/local-authority/00DA,Leeds City Council,Adult Social Care,Services For Older People - 65 And Over,Third Party Payments,Payments To Voluntary Organisations,561,01-Apr-2011,1104-00550,22646.00,R,Armley Helping Hands
http://statistics.data.gov.uk/doc/local-authority/00DA,Leeds City Council,Central & Corporate Functions,Commercial Services Trading Services,Supplies and Services,Other Hired And Contracted Services,265,12-Apr-2011,1104-00551,640.00,R,Armstrong Priestley Ltd
http://statistics.data.gov.uk/doc/local-authority/00DA,Leeds City Council,Other Education Services Managed By E.L.,Primary Schools,Capital,Construction,3,21-Apr-2011,1104-00552,26265.48,C,Armstrong Priestley Ltd
http://statistics.data.gov.uk/doc/local-authority/00DA,Leeds City Council,Central & Corporate Functions,Commercial Services Trading Services,Transport,External Hire -Occasional,304,20-Apr-2011,1104-00553,1148.89,R,Arnold Clark Finance Ltd
http://statistics.data.gov.uk/doc/local-authority/00DA,Leeds City Council,Central & Corporate Functions,Commercial Services Trading Services,Transport,External Hire -Occasional,304,28-Apr-2011,1104-00554,1529.52,R,Arnold Clark Finance Ltd
http://statistics.data.gov.uk/doc/local-authority/00DA,Leeds City Council,Central & Corporate Functions,Commercial Services Trading Services,Supplies and Services,Operational Materials,205,05-Apr-2011,1104-00555,460.48,R,Arnold Laver & Co Ltd
http://statistics.data.gov.uk/doc/local-authority/00DA,Leeds City Council,City Development,Highways,Supplies and Services,Operational Materials,205,21-Apr-2011,1104-00556,904.72,R,Arnold Laver & Co Ltd
http://statistics.data.gov.uk/doc/local-authority/00DA,East - North East Homes Leeds,East - North East,Technical Services,Supplies and Services,Other Materials,205,08-Apr-2011,1104-00557,633.52,R,Arnold Laver & Co Ltd
http://statistics.data.gov.uk/doc/local-authority/00DA,East - North East Homes Leeds,East - North East,Technical Services,Supplies and Services,Other Materials,205,20-Apr-2011,1104-00558,1217.84,R,Arnold Laver & Co Ltd
http://statistics.data.gov.uk/doc/local-authority/00DA,East - North East Homes Leeds,East - North East,Technical Services,Supplies and Services,Other Hired And Contracted Services,265,11-Apr-2011,1104-00559,3850.00,R,Arr Spend Management Solutions
http://statistics.data.gov.uk/doc/local-authority/00DA,East - North East Homes Leeds,East - North East,Technical Services,Supplies and Services,Other Hired And Contracted Services,265,26-Apr-2011,1104-00560,3300.00,R,Arr Spend Management Solutions
http://statistics.data.gov.uk/doc/local-authority/00DA,East - North East Homes Leeds,East - North East,Technical Services,Supplies and Services,Other Hired And Contracted Services,265,28-Apr-2011,1104-00561,1650.00,R,Arr Spend Management Solutions
http://statistics.data.gov.uk/doc/local-authority/00DA,Leeds City Council,Adult Social Care,Services For Older People - 65 And Over,Third Party Payments,Nursing Home,570,14-Apr-2011,1104-00562,1367.92,R,Arrigadeen Nursing Home
http://statistics.data.gov.uk/doc/local-authority/00DA,Leeds City Council,Strategic Accounts,Strategic,Precepts,Parish Precepts,210,04-Apr-2011,1104-00563,2000.00,R,Arthington Parish Council
http://statistics.data.gov.uk/doc/local-authority/00DA,Leeds City Council,Adult Social Care,Services For Adults Under 65 Learn/Dis,Supplies and Services,Non-Recurring Grants,227,08-Apr-2011,1104-00564,5000.00,R,Articulate Advocacy
http://statistics.data.gov.uk/doc/local-authority/00DA,Leeds City Council,City Development,Libraries Arts & Heritage,Supplies and Services,Other Hired And Contracted Services,265,28-Apr-2011,1104-00565,564.60,R,Artist Needs Ltd
http://statistics.data.gov.uk/doc/local-authority/00DA,Leeds City Council,Adult Social Care,Services For Adults Under 65 Mental/Dis,Supplies and Services,Recurring & Major Grantss Projects,229,01-Apr-2011,1104-00566,2235.50,R,Artlink West Yorkshire
http://statistics.data.gov.uk/doc/local-authority/00DA,Leeds City Council,Central & Corporate Functions,Corporate Governance,Transport,Fuel (Non LCC Supplies),321,07-Apr-2011,1104-00567,528.57,R,Arval Phh Business Solutions Ltd
http://statistics.data.gov.uk/doc/local-authority/00DA,Leeds City Council,Other Education Services Managed By E.L.,Active Accounts,Transport,Fuel (Non LCC Supplies),321,07-Apr-2011,1104-00568,2547.53,R,Arval Phh Business Solutions Ltd
http://statistics.data.gov.uk/doc/local-authority/00DA,Leeds City Council,City Development,Highways,Transport,Fuel (Non LCC Supplies),321,07-Apr-2011,1104-00569,552.90,R,Arval Phh Business Solutions Ltd
http://statistics.data.gov.uk/doc/local-authority/00DA,Leeds City Council,City Development,Recreation,Employees,Training Costs,071,08-Apr-2011,1104-00570,10000.00,R,Asa North East Region
http://statistics.data.gov.uk/doc/local-authority/00DA,Leeds City Council,City Development,Recreation,Supplies and Services,Other Hired And Contracted Services,265,08-Apr-2011,1104-00571,5000.00,R,Asa North East Region
http://statistics.data.gov.uk/doc/local-authority/00DA,Leeds City Council,Environment & Neighbourhoods,West North West,Capital,Construction,3,19-Apr-2011,1104-00572,7200.00,C,Asbestos Consultants
http://statistics.data.gov.uk/doc/local-authority/00DA,Leeds City Council,Central & Corporate Functions,Commercial Services Trading Services,Supplies and Services,Other Hired And Contracted Services,265,15-Apr-2011,1104-00573,427.50,R,Asbestos Sample Analysis Limited
http://statistics.data.gov.uk/doc/local-authority/00DA,Leeds City Council,Central & Corporate Functions,Commercial Services Trading Services,Supplies and Services,Other Hired And Contracted Services,265,08-Apr-2011,1104-00574,502.50,R,Asbestos Sample Analysis Limited
http://statistics.data.gov.uk/doc/local-authority/00DA,Leeds City Council,Central & Corporate Functions,Commercial Services Trading Services,Supplies and Services,Other Hired And Contracted Services,265,15-Apr-2011,1104-00575,660.00,R,Asbestos Sample Analysis Limited
http://statistics.data.gov.uk/doc/local-authority/00DA,Leeds City Council,Central & Corporate Functions,Commercial Services Trading Services,Supplies and Services,Other Hired And Contracted Services,265,21-Apr-2011,1104-00576,495.00,R,Asbestos Sample Analysis Limited
http://statistics.data.gov.uk/doc/local-authority/00DA,Leeds City Council,Central & Corporate Functions,Commercial Services Trading Services,Supplies and Services,Other Hired And Contracted Services,265,21-Apr-2011,1104-00577,645.00,R,Asbestos Sample Analysis Limited
http://statistics.data.gov.uk/doc/local-authority/00DA,Leeds City Council,Central & Corporate Functions,Support And Facilities Trading Services,Supplies and Services,Operational Materials,205,12-Apr-2011,1104-00578,2736.00,R,Asd Metal Services
http://statistics.data.gov.uk/doc/local-authority/00DA,Leeds City Council,Childrens Services,Integrated Youth Support  Service,Supplies and Services,Other Hired And Contracted Services,265,21-Apr-2011,1104-00579,1160.00,R,Asha Neighbourhood Project
http://statistics.data.gov.uk/doc/local-authority/00DA,Leeds City Council,Adult Social Care,Services For Older People - 65 And Over,Third Party Payments,Residential,580,13-Apr-2011,1104-00580,10077.56,R,Ashcroft House Residential Home
http://statistics.data.gov.uk/doc/local-authority/00DA,Leeds City Council,Adult Social Care,Services For Older People - 65 And Over,Third Party Payments,Nursing Home,570,13-Apr-2011,1104-00581,1228.68,R,Ashcroft Nursing Home
http://statistics.data.gov.uk/doc/local-authority/00DA,Leeds City Council,Adult Social Care,Services For Older People - 65 And Over,Third Party Payments,Nursing Home,570,13-Apr-2011,1104-00582,3809.00,R,Ashcroft Nursing Home
http://statistics.data.gov.uk/doc/local-authority/00DA,Leeds City Council,Adult Social Care,Services For Older People - 65 And Over,Third Party Payments,Residential Care Emi,571,13-Apr-2011,1104-00583,802.80,R,Ashcroft Nursing Home
http://statistics.data.gov.uk/doc/local-authority/00DA,Leeds City Council,Adult Social Care,Services For Older People - 65 And Over,Third Party Payments,Residential Care Emi,571,13-Apr-2011,1104-00584,693.16,R,Ashfield Court
http://statistics.data.gov.uk/doc/local-authority/00DA,Leeds City Council,Adult Social Care,Services For Older People - 65 And Over,Third Party Payments,Residential,580,13-Apr-2011,1104-00585,605.08,R,Ashfield Court
http://statistics.data.gov.uk/doc/local-authority/00DA,Leeds City Council,Adult Social Care,Services For Older People - 65 And Over,Third Party Payments,Nursing Home,570,13-Apr-2011,1104-00586,27379.94,R,Ashfield Nursing Home
http://statistics.data.gov.uk/doc/local-authority/00DA,Leeds City Council,Adult Social Care,Services For Older People - 65 And Over,Third Party Payments,Residential,580,13-Apr-2011,1104-00587,2739.76,R,Ashfield Nursing Home
http://statistics.data.gov.uk/doc/local-authority/00DA,Leeds City Council,Adult Social Care,Services For Adults Under 65 Mental/Dis,Third Party Payments,Residential,580,13-Apr-2011,1104-00588,2318.40,R,Ashfield Nursing Home
http://statistics.data.gov.uk/doc/local-authority/00DA,Education Leeds,Education Leeds,Education Leeds,Supplies and Services,Bought in Professional Services,277,28-Apr-2011,1104-00589,4000.00,R,Ashington Learning Partnership
http://statistics.data.gov.uk/doc/local-authority/00DA,Leeds City Council,Adult Social Care,Services For Older People - 65 And Over,Third Party Payments,Nursing Home,570,13-Apr-2011,1104-00590,1504.00,R,Ashley Care Ltd
http://statistics.data.gov.uk/doc/local-authority/00DA,Leeds City Council,City Development,Recreation,Transport,Hire Of Movable Plant & Machinery,315,05-Apr-2011,1104-00591,422.90,R,Ashtead Plant Hire Company Ltd
http://statistics.data.gov.uk/doc/local-authority/00DA,Leeds City Council,City Development,Highways,Transport,Plant Hire - By Directorate,305,05-Apr-2011,1104-00592,660.00,R,Ashtead Plant Hire Company Ltd
http://statistics.data.gov.uk/doc/local-authority/00DA,Leeds City Council,City Development,Highways,Transport,Plant Hire - By Directorate,305,05-Apr-2011,1104-00593,660.00,R,Ashtead Plant Hire Company Ltd
http://statistics.data.gov.uk/doc/local-authority/00DA,Leeds City Council,City Development,Highways,Transport,Plant Hire - By Directorate,305,05-Apr-2011,1104-00594,660.00,R,Ashtead Plant Hire Company Ltd
http://statistics.data.gov.uk/doc/local-authority/00DA,Leeds City Council,City Development,Highways,Transport,Plant Hire - By Directorate,305,05-Apr-2011,1104-00595,660.00,R,Ashtead Plant Hire Company Ltd
http://statistics.data.gov.uk/doc/local-authority/00DA,Leeds City Council,Central & Corporate Functions,Commercial Services Trading Services,Supplies and Services,Other Hired And Contracted Services,265,05-Apr-2011,1104-00596,631.76,R,Ashtead Plant Hire Company Ltd
http://statistics.data.gov.uk/doc/local-authority/00DA,Leeds City Council,Central & Corporate Functions,Commercial Services Trading Services,Supplies and Services,Other Hired And Contracted Services,265,07-Apr-2011,1104-00597,728.56,R,Ashtead Plant Hire Company Ltd
http://statistics.data.gov.uk/doc/local-authority/00DA,Leeds City Council,Adult Social Care,Services For Older People - 65 And Over,Third Party Payments,Residential Care Emi,571,13-Apr-2011,1104-00598,871.28,R,Ashville Care Home
http://statistics.data.gov.uk/doc/local-authority/00DA,Leeds City Council,Central & Corporate Functions,Commercial Services Trading Services,Supplies and Services,Other Hired And Contracted Services,265,27-Apr-2011,1104-00599,2771.68,R,Ashwell Engineering Services Ltd
http://statistics.data.gov.uk/doc/local-authority/00DA,Leeds City Council,Adult Social Care,Services For Older People - 65 And Over,Third Party Payments,Residential,580,14-Apr-2011,1104-00600,1139.72,R,Ashworth Grange
http://statistics.data.gov.uk/doc/local-authority/00DA,Leeds City Council,Environment & Neighbourhoods,Housing Needs,Supplies and Services,Other Hired And Contracted Services,265,28-Apr-2011,1104-00601,600.00,R,Ask Harehills Lane
http://statistics.data.gov.uk/doc/local-authority/00DA,Leeds City Council,City Development,Libraries Arts & Heritage,Supplies and Services,Books & Audio-Visual Materials,206,20-Apr-2011,1104-00602,465.12,R,Askews & Holts
http://statistics.data.gov.uk/doc/local-authority/00DA,West - North West Homes Leeds,West - North West,Corporate Services,Employees,General Training,079,28-Apr-2011,1104-00603,4470.00,R,Askham Bryan College
http://statistics.data.gov.uk/doc/local-authority/00DA,Education Leeds,Education Leeds,Education Leeds,Premises,Buildings,101,15-Apr-2011,1104-00604,1133.46,R,Aspect Building Solutions
http://statistics.data.gov.uk/doc/local-authority/00DA,Education Leeds,Education Leeds,Education Leeds,Premises,Buildings,101,20-Apr-2011,1104-00605,434.31,R,Aspect Building Solutions
http://statistics.data.gov.uk/doc/local-authority/00DA,Education Leeds,Education Leeds,Education Leeds,Premises,Buildings,101,28-Apr-2011,1104-00606,532.50,R,Aspect Building Solutions
http://statistics.data.gov.uk/doc/local-authority/00DA,Leeds City Council,City Development,Highways,Transport,Plant Hire - By Directorate,305,01-Apr-2011,1104-00607,480.00,R,Asphalt Pavers
http://statistics.data.gov.uk/doc/local-authority/00DA,Leeds City Council,City Development,Highways,Transport,Plant Hire - By Directorate,305,15-Apr-2011,1104-00608,2200.00,R,Asphalt Pavers
http://statistics.data.gov.uk/doc/local-authority/00DA,Leeds City Council,City Development,Highways,Transport,Plant Hire - By Directorate,305,15-Apr-2011,1104-00609,790.00,R,Asphalt Pavers
http://statistics.data.gov.uk/doc/local-authority/00DA,Leeds City Council,City Development,Highways,Transport,Plant Hire - By Directorate,305,15-Apr-2011,1104-00610,1300.00,R,Asphalt Pavers
http://statistics.data.gov.uk/doc/local-authority/00DA,Leeds City Council,City Development,Highways,Transport,Plant Hire - By Directorate,305,15-Apr-2011,1104-00611,790.00,R,Asphalt Pavers
http://statistics.data.gov.uk/doc/local-authority/00DA,Leeds City Council,City Development,Highways,Transport,Plant Hire - By Directorate,305,15-Apr-2011,1104-00612,790.00,R,Asphalt Pavers
http://statistics.data.gov.uk/doc/local-authority/00DA,Leeds City Council,City Development,Highways,Transport,Plant Hire - By Directorate,305,15-Apr-2011,1104-00613,2761.00,R,Asphalt Pavers
http://statistics.data.gov.uk/doc/local-authority/00DA,Leeds City Council,City Development,Highways,Transport,Plant Hire - By Directorate,305,15-Apr-2011,1104-00614,510.00,R,Asphalt Pavers
http://statistics.data.gov.uk/doc/local-authority/00DA,Leeds City Council,City Development,Highways,Transport,Plant Hire - By Directorate,305,15-Apr-2011,1104-00615,1064.00,R,Asphalt Pavers
http://statistics.data.gov.uk/doc/local-authority/00DA,Leeds City Council,City Development,Highways,Transport,Plant Hire - By Directorate,305,06-Apr-2011,1104-00616,1300.00,R,Asphalt Pavers
http://statistics.data.gov.uk/doc/local-authority/00DA,Leeds City Council,City Development,Highways,Transport,Plant Hire - By Directorate,305,12-Apr-2011,1104-00617,1670.00,R,Asphalt Pavers
http://statistics.data.gov.uk/doc/local-authority/00DA,Leeds City Council,City Development,Highways,Transport,Plant Hire - By Directorate,305,06-Apr-2011,1104-00618,790.00,R,Asphalt Pavers
http://statistics.data.gov.uk/doc/local-authority/00DA,Leeds City Council,City Development,Highways,Transport,Plant Hire - By Directorate,305,06-Apr-2011,1104-00619,2173.75,R,Asphalt Pavers
http://statistics.data.gov.uk/doc/local-authority/00DA,Leeds City Council,City Development,Highways,Transport,Plant Hire - By Directorate,305,06-Apr-2011,1104-00620,790.00,R,Asphalt Pavers
http://statistics.data.gov.uk/doc/local-authority/00DA,Leeds City Council,City Development,Highways,Transport,Plant Hire - By Directorate,305,06-Apr-2011,1104-00621,2132.00,R,Asphalt Pavers
http://statistics.data.gov.uk/doc/local-authority/00DA,Leeds City Council,City Development,Highways,Transport,Plant Hire - By Directorate,305,06-Apr-2011,1104-00622,924.00,R,Asphalt Pavers
http://statistics.data.gov.uk/doc/local-authority/00DA,Leeds City Council,City Development,Highways,Transport,Plant Hire - By Directorate,305,01-Apr-2011,1104-00623,4299.00,R,Asphalt Pavers
http://statistics.data.gov.uk/doc/local-authority/00DA,Leeds City Council,City Development,Highways,Transport,Plant Hire - By Directorate,305,06-Apr-2011,1104-00624,1775.00,R,Asphalt Pavers
http://statistics.data.gov.uk/doc/local-authority/00DA,Leeds City Council,City Development,Highways,Transport,Plant Hire - By Directorate,305,01-Apr-2011,1104-00625,-480.00,R,Asphalt Pavers
http://statistics.data.gov.uk/doc/local-authority/00DA,Leeds City Council,City Development,Highways,Transport,Plant Hire - By Directorate,305,01-Apr-2011,1104-00626,454.00,R,Asphalt Pavers
http://statistics.data.gov.uk/doc/local-authority/00DA,Leeds City Council,City Development,Highways,Transport,Plant Hire - By Directorate,305,07-Apr-2011,1104-00627,1531.00,R,Asphalt Pavers
http://statistics.data.gov.uk/doc/local-authority/00DA,Leeds City Council,City Development,Highways,Transport,Plant Hire - By Directorate,305,07-Apr-2011,1104-00628,3292.00,R,Asphalt Pavers
http://statistics.data.gov.uk/doc/local-authority/00DA,Leeds City Council,City Development,Highways,Transport,Plant Hire - By Directorate,305,07-Apr-2011,1104-00629,670.00,R,Asphalt Pavers
http://statistics.data.gov.uk/doc/local-authority/00DA,Leeds City Council,City Development,Highways,Transport,Plant Hire - By Directorate,305,07-Apr-2011,1104-00630,2130.00,R,Asphalt Pavers
http://statistics.data.gov.uk/doc/local-authority/00DA,Leeds City Council,City Development,Highways,Transport,Plant Hire - By Directorate,305,07-Apr-2011,1104-00631,1160.00,R,Asphalt Pavers
http://statistics.data.gov.uk/doc/local-authority/00DA,Leeds City Council,City Development,Highways,Transport,Plant Hire - By Directorate,305,07-Apr-2011,1104-00632,1160.00,R,Asphalt Pavers
http://statistics.data.gov.uk/doc/local-authority/00DA,Leeds City Council,City Development,Highways,Transport,Plant Hire - By Directorate,305,12-Apr-2011,1104-00633,741.00,R,Asphalt Pavers
http://statistics.data.gov.uk/doc/local-authority/00DA,Leeds City Council,City Development,Highways,Transport,Plant Hire - By Directorate,305,12-Apr-2011,1104-00634,632.00,R,Asphalt Pavers
http://statistics.data.gov.uk/doc/local-authority/00DA,Leeds City Council,City Development,Highways,Transport,Plant Hire - By Directorate,305,21-Apr-2011,1104-00635,3383.00,R,Asphalt Pavers
http://statistics.data.gov.uk/doc/local-authority/00DA,Leeds City Council,City Development,Highways,Transport,Plant Hire - By Directorate,305,21-Apr-2011,1104-00636,650.00,R,Asphalt Pavers
http://statistics.data.gov.uk/doc/local-authority/00DA,Leeds City Council,City Development,Highways,Transport,Plant Hire - By Directorate,305,21-Apr-2011,1104-00637,2411.00,R,Asphalt Pavers
http://statistics.data.gov.uk/doc/local-authority/00DA,Leeds City Council,City Development,Highways,Transport,Plant Hire - By Directorate,305,07-Apr-2011,1104-00638,917.50,R,Asphalt Pavers
http://statistics.data.gov.uk/doc/local-authority/00DA,Leeds City Council,City Development,Highways,Transport,Plant Hire - By Directorate,305,21-Apr-2011,1104-00639,3474.00,R,Asphalt Pavers
http://statistics.data.gov.uk/doc/local-authority/00DA,Leeds City Council,City Development,Highways,Transport,Plant Hire - By Directorate,305,21-Apr-2011,1104-00640,895.00,R,Asphalt Pavers
http://statistics.data.gov.uk/doc/local-authority/00DA,Leeds City Council,City Development,Highways,Transport,Plant Hire - By Directorate,305,21-Apr-2011,1104-00641,3292.00,R,Asphalt Pavers
http://statistics.data.gov.uk/doc/local-authority/00DA,Leeds City Council,City Development,Highways,Transport,Plant Hire - By Directorate,305,21-Apr-2011,1104-00642,2830.00,R,Asphalt Pavers
http://statistics.data.gov.uk/doc/local-authority/00DA,Leeds City Council,City Development,Highways,Transport,Plant Hire - By Directorate,305,21-Apr-2011,1104-00643,635.00,R,Asphalt Pavers
http://statistics.data.gov.uk/doc/local-authority/00DA,Leeds City Council,City Development,Highways,Transport,Plant Hire - By Directorate,305,21-Apr-2011,1104-00644,790.00,R,Asphalt Pavers
http://statistics.data.gov.uk/doc/local-authority/00DA,Leeds City Council,City Development,Highways,Transport,Plant Hire - By Directorate,305,28-Apr-2011,1104-00645,2041.00,R,Asphalt Pavers
http://statistics.data.gov.uk/doc/local-authority/00DA,Leeds City Council,City Development,Highways,Transport,Plant Hire - By Directorate,305,28-Apr-2011,1104-00646,3383.00,R,Asphalt Pavers
http://statistics.data.gov.uk/doc/local-authority/00DA,Leeds City Council,City Development,Highways,Transport,Plant Hire - By Directorate,305,28-Apr-2011,1104-00647,1531.00,R,Asphalt Pavers
http://statistics.data.gov.uk/doc/local-authority/00DA,Leeds City Council,City Development,Highways,Transport,Plant Hire - By Directorate,305,28-Apr-2011,1104-00648,1064.00,R,Asphalt Pavers
http://statistics.data.gov.uk/doc/local-authority/00DA,Leeds City Council,Other Education Services Managed By E.L.,Active Accounts,Supplies and Services,Other Hired And Contracted Services,265,06-Apr-2011,1104-00649,3392.00,R,Aspire Creative Llp
http://statistics.data.gov.uk/doc/local-authority/00DA,Leeds City Council,Childrens Services,Children Looked After,Capital,Construction,3,07-Apr-2011,1104-00650,10035.00,C,Asprey Bros Ltd
http://statistics.data.gov.uk/doc/local-authority/00DA,Leeds City Council,Childrens Services,Early Years Service,Third Party Payments,Services Rendered By Other Organisations,511,01-Apr-2011,1104-00651,6000.00,R,Asquith Court Nursery
http://statistics.data.gov.uk/doc/local-authority/00DA,Leeds City Council,Childrens Services,Early Years Service,Third Party Payments,Services Rendered By Other Organisations,511,15-Apr-2011,1104-00652,9783.03,R,Asquith Court Nursery
http://statistics.data.gov.uk/doc/local-authority/00DA,Leeds City Council,Childrens Services,Early Years Service,Third Party Payments,Services Rendered By Other Organisations,511,15-Apr-2011,1104-00653,4754.50,R,Asquith Nurseries Ltd
http://statistics.data.gov.uk/doc/local-authority/00DA,Education Leeds,Education Leeds,Education Leeds,Supplies and Services,Examination Entry Fees,269,01-Apr-2011,1104-00654,1005.30,R,Assessment And Qualifications Alliance
http://statistics.data.gov.uk/doc/local-authority/00DA,Leeds City Council,Childrens Services,Youth Justice,Supplies and Services,Teaching Materials,202,01-Apr-2011,1104-00655,1012.00,R,Assessment And Qualifications Alliance
http://statistics.data.gov.uk/doc/local-authority/00DA,Leeds City Council,Central & Corporate Functions,Commercial Services Trading Services,Supplies and Services,Other Hired And Contracted Services,265,21-Apr-2011,1104-00656,658.79,R,Associated Waste Management Limited
http://statistics.data.gov.uk/doc/local-authority/00DA,Leeds City Council,Environment & Neighbourhoods,Streetscene Environmental Services,Supplies and Services,Recycling & Reuse Charges,234,05-Apr-2011,1104-00657,9628.77,R,Associated Waste Management Limited
http://statistics.data.gov.uk/doc/local-authority/00DA,Leeds City Council,Environment & Neighbourhoods,Streetscene Environmental Services,Supplies and Services,Waste Disposal Charges,236,05-Apr-2011,1104-00658,17881.99,R,Associated Waste Management Limited
http://statistics.data.gov.uk/doc/local-authority/00DA,Leeds City Council,Environment & Neighbourhoods,Streetscene Environmental Services,Supplies and Services,Waste Disposal Charges,236,05-Apr-2011,1104-00659,28803.22,R,Associated Waste Management Limited
http://statistics.data.gov.uk/doc/local-authority/00DA,Leeds City Council,Environment & Neighbourhoods,Streetscene Environmental Services,Supplies and Services,Recycling & Reuse Charges,234,01-Apr-2011,1104-00660,8414.51,R,Associated Waste Management Limited
http://statistics.data.gov.uk/doc/local-authority/00DA,Leeds City Council,Environment & Neighbourhoods,Streetscene Environmental Services,Supplies and Services,Waste Disposal Charges,236,01-Apr-2011,1104-00661,15626.94,R,Associated Waste Management Limited
http://statistics.data.gov.uk/doc/local-authority/00DA,Leeds City Council,Environment & Neighbourhoods,Streetscene Environmental Services,Supplies and Services,Waste Disposal Charges,236,01-Apr-2011,1104-00662,25170.91,R,Associated Waste Management Limited
http://statistics.data.gov.uk/doc/local-authority/00DA,Leeds City Council,Central & Corporate Functions,Commercial Services Trading Services,Supplies and Services,Other Hired And Contracted Services,265,07-Apr-2011,1104-00663,486.00,R,Associated Waste Management Limited
http://statistics.data.gov.uk/doc/local-authority/00DA,Leeds City Council,City Development,Recreation,Premises,Removal Of Workplace Waste,126,05-Apr-2011,1104-00664,422.00,R,Associated Waste Management Limited
http://statistics.data.gov.uk/doc/local-authority/00DA,Leeds City Council,Environment & Neighbourhoods,Streetscene Environmental Services,Supplies and Services,Recycling & Reuse Charges,234,08-Apr-2011,1104-00665,7936.81,R,Associated Waste Management Limited
http://statistics.data.gov.uk/doc/local-authority/00DA,Leeds City Council,Environment & Neighbourhoods,Streetscene Environmental Services,Supplies and Services,Waste Disposal Charges,236,08-Apr-2011,1104-00666,14739.79,R,Associated Waste Management Limited
http://statistics.data.gov.uk/doc/local-authority/00DA,Leeds City Council,Environment & Neighbourhoods,Streetscene Environmental Services,Supplies and Services,Waste Disposal Charges,236,08-Apr-2011,1104-00667,23741.96,R,Associated Waste Management Limited
http://statistics.data.gov.uk/doc/local-authority/00DA,Leeds City Council,City Development,Recreation,Premises,Removal Of Workplace Waste,126,12-Apr-2011,1104-00668,539.00,R,Associated Waste Management Limited
http://statistics.data.gov.uk/doc/local-authority/00DA,Leeds City Council,Environment & Neighbourhoods,Streetscene Environmental Services,Supplies and Services,Recycling & Reuse Charges,234,15-Apr-2011,1104-00669,11588.46,R,Associated Waste Management Limited
http://statistics.data.gov.uk/doc/local-authority/00DA,Leeds City Council,Environment & Neighbourhoods,Streetscene Environmental Services,Supplies and Services,Waste Disposal Charges,236,15-Apr-2011,1104-00670,21526.43,R,Associated Waste Management Limited
http://statistics.data.gov.uk/doc/local-authority/00DA,Leeds City Council,Environment & Neighbourhoods,Streetscene Environmental Services,Supplies and Services,Waste Disposal Charges,236,15-Apr-2011,1104-00671,34665.38,R,Associated Waste Management Limited
http://statistics.data.gov.uk/doc/local-authority/00DA,Leeds City Council,City Development,Recreation,Premises,Removal Of Workplace Waste,126,19-Apr-2011,1104-00672,540.84,R,Associated Waste Management Limited
http://statistics.data.gov.uk/doc/local-authority/00DA,Leeds City Council,Central & Corporate Functions,Commercial Services Trading Services,Supplies and Services,Other Hired And Contracted Services,265,19-Apr-2011,1104-00673,806.17,R,Associated Waste Management Limited
http://statistics.data.gov.uk/doc/local-authority/00DA,Leeds City Council,City Development,Recreation,Premises,Removal Of Workplace Waste,126,15-Apr-2011,1104-00674,625.71,R,Associated Waste Management Limited
http://statistics.data.gov.uk/doc/local-authority/00DA,Leeds City Council,City Development,Support Services,Premises,Removal Of Workplace Waste,126,20-Apr-2011,1104-00675,5533.96,R,Associated Waste Management Limited
http://statistics.data.gov.uk/doc/local-authority/00DA,Leeds City Council,City Development,Highways,Supplies and Services,Recycling & Reuse Charges,234,28-Apr-2011,1104-00676,532.28,R,Associated Waste Management Limited
http://statistics.data.gov.uk/doc/local-authority/00DA,Leeds City Council,Environment & Neighbourhoods,Streetscene Environmental Services,Supplies and Services,Waste Disposal Charges,236,01-Apr-2011,1104-00677,554.37,R,Associated Waste Management Limited
http://statistics.data.gov.uk/doc/local-authority/00DA,Leeds City Council,Environment & Neighbourhoods,Streetscene Environmental Services,Supplies and Services,Waste Disposal Charges,236,01-Apr-2011,1104-00678,892.94,R,Associated Waste Management Limited
http://statistics.data.gov.uk/doc/local-authority/00DA,Leeds City Council,Environment & Neighbourhoods,Streetscene Environmental Services,Supplies and Services,Recycling & Reuse Charges,234,01-Apr-2011,1104-00679,742.40,R,Associated Waste Management Limited
http://statistics.data.gov.uk/doc/local-authority/00DA,Leeds City Council,Environment & Neighbourhoods,Streetscene Environmental Services,Supplies and Services,Waste Disposal Charges,236,01-Apr-2011,1104-00680,1378.76,R,Associated Waste Management Limited
http://statistics.data.gov.uk/doc/local-authority/00DA,Leeds City Council,Environment & Neighbourhoods,Streetscene Environmental Services,Supplies and Services,Waste Disposal Charges,236,01-Apr-2011,1104-00681,2220.82,R,Associated Waste Management Limited
http://statistics.data.gov.uk/doc/local-authority/00DA,Leeds City Council,Environment & Neighbourhoods,Streetscene Environmental Services,Supplies and Services,Recycling & Reuse Charges,234,01-Apr-2011,1104-00682,573.02,R,Associated Waste Management Limited
http://statistics.data.gov.uk/doc/local-authority/00DA,Leeds City Council,Environment & Neighbourhoods,Streetscene Environmental Services,Supplies and Services,Waste Disposal Charges,236,01-Apr-2011,1104-00683,1064.19,R,Associated Waste Management Limited
http://statistics.data.gov.uk/doc/local-authority/00DA,Leeds City Council,Environment & Neighbourhoods,Streetscene Environmental Services,Supplies and Services,Waste Disposal Charges,236,01-Apr-2011,1104-00684,1714.13,R,Associated Waste Management Limited
http://statistics.data.gov.uk/doc/local-authority/00DA,Leeds City Council,Central & Corporate Functions,Commercial Services Trading Services,Supplies and Services,Other Hired And Contracted Services,265,08-Apr-2011,1104-00685,-457.50,R,Associated Waste Management Limited
http://statistics.data.gov.uk/doc/local-authority/00DA,Leeds City Council,Adult Social Care,Social Services Support Services,Third Party Payments,Payments To Voluntary Organisations,561,06-Apr-2011,1104-00686,7387.00,R,Association Of Blind Asians
http://statistics.data.gov.uk/doc/local-authority/00DA,Leeds City Council,Central & Corporate Functions,Executive Support,Employees,Training Costs,071,14-Apr-2011,1104-00687,1650.00,R,Association Of Local Goverment
http://statistics.data.gov.uk/doc/local-authority/00DA,Leeds City Council,City Development,Economic Development,Supplies and Services,City Centre Enhancement,295,20-Apr-2011,1104-00688,2500.00,R,Association Of Town Centre Management
http://statistics.data.gov.uk/doc/local-authority/00DA,East - North East Homes Leeds,East - North East,Technical Services,Employees,General Training,079,01-Apr-2011,1104-00689,695.00,R,Astra  Access Safety Training Ltd
http://statistics.data.gov.uk/doc/local-authority/00DA,Leeds City Council,Adult Social Care,Services For Older People - 65 And Over,Third Party Payments,Nursing Home,570,13-Apr-2011,1104-00690,11032.60,R,Atkinson Court
http://statistics.data.gov.uk/doc/local-authority/00DA,Leeds City Council,Adult Social Care,Services For Older People - 65 And Over,Third Party Payments,Nursing Care Emi,574,13-Apr-2011,1104-00691,8591.64,R,Atkinson Court
http://statistics.data.gov.uk/doc/local-authority/00DA,Leeds City Council,Environment & Neighbourhoods,Streetscene Environmental Services,Supplies and Services,Operational Furniture And Equipment,203,01-Apr-2011,1104-00692,610.34,R,Atkinsons Fencing Limited
http://statistics.data.gov.uk/doc/local-authority/00DA,Leeds City Council,Central & Corporate Functions,Commercial Services Trading Services,Supplies and Services,Other Hired And Contracted Services,265,21-Apr-2011,1104-00693,2313.75,R,Atkinsons Fencing Limited
http://statistics.data.gov.uk/doc/local-authority/00DA,Leeds City Council,City Development,Highways,Supplies and Services,Other Hired And Contracted Services,265,27-Apr-2011,1104-00694,1016.00,R,Atkinsons Fencing Limited
http://statistics.data.gov.uk/doc/local-authority/00DA,Leeds City Council,Central & Corporate Functions,Commercial Services Trading Services,Supplies and Services,Other Hired And Contracted Services,265,27-Apr-2011,1104-00695,1502.57,R,Atkinsons Fencing Limited
http://statistics.data.gov.uk/doc/local-authority/00DA,Leeds City Council,Central & Corporate Functions,Commercial Services Trading Services,Supplies and Services,Operational Materials,205,27-Apr-2011,1104-00696,579.98,R,Atkinsons Fencing Limited
http://statistics.data.gov.uk/doc/local-authority/00DA,Leeds City Council,Central & Corporate Functions,Commercial Services Trading Services,Supplies and Services,Other Hired And Contracted Services,265,28-Apr-2011,1104-00697,708.82,R,Atkinsons Fencing Limited
http://statistics.data.gov.uk/doc/local-authority/00DA,Leeds City Council,City Development,Libraries Arts & Heritage,Supplies and Services,Advertising,211,28-Apr-2011,1104-00698,850.00,R,Atlas (Uk) Ltd
http://statistics.data.gov.uk/doc/local-authority/00DA,Leeds City Council,Adult Social Care,Services For Older People - 65 And Over,Third Party Payments,Nursing Home,570,13-Apr-2011,1104-00699,14563.00,R,Attlee Court
http://statistics.data.gov.uk/doc/local-authority/00DA,Leeds City Council,Adult Social Care,Services For Older People - 65 And Over,Third Party Payments,Nursing Care Emi,574,13-Apr-2011,1104-00700,1161.40,R,Attlee Court
http://statistics.data.gov.uk/doc/local-authority/00DA,Leeds City Council,City Development,Libraries Arts & Heritage,Supplies and Services,Books & Audio-Visual Materials,206,28-Apr-2011,1104-00701,1195.65,R,Audiogo Ltd
http://statistics.data.gov.uk/doc/local-authority/00DA,Leeds City Council,City Development,Libraries Arts & Heritage,Supplies and Services,Books & Audio-Visual Materials,206,28-Apr-2011,1104-00702,1166.05,R,Audiogo Ltd
http://statistics.data.gov.uk/doc/local-authority/00DA,Leeds City Council,City Development,Libraries Arts & Heritage,Supplies and Services,Books & Audio-Visual Materials,206,28-Apr-2011,1104-00703,1190.75,R,Audiogo Ltd
http://statistics.data.gov.uk/doc/local-authority/00DA,Leeds City Council,City Development,Libraries Arts & Heritage,Supplies and Services,Books & Audio-Visual Materials,206,28-Apr-2011,1104-00704,503.12,R,Audiogo Ltd
http://statistics.data.gov.uk/doc/local-authority/00DA,Leeds City Council,City Development,Libraries Arts & Heritage,Supplies and Services,Books & Audio-Visual Materials,206,28-Apr-2011,1104-00705,1000.28,R,Audiogo Ltd
http://statistics.data.gov.uk/doc/local-authority/00DA,Leeds City Council,City Development,Libraries Arts & Heritage,Supplies and Services,Books & Audio-Visual Materials,206,18-Apr-2011,1104-00706,1191.20,R,Audiogo Ltd
http://statistics.data.gov.uk/doc/local-authority/00DA,Leeds City Council,City Development,Libraries Arts & Heritage,Supplies and Services,Books & Audio-Visual Materials,206,28-Apr-2011,1104-00707,1178.95,R,Audiogo Ltd
http://statistics.data.gov.uk/doc/local-authority/00DA,Leeds City Council,City Development,Libraries Arts & Heritage,Supplies and Services,Books & Audio-Visual Materials,206,28-Apr-2011,1104-00708,1205.65,R,Audiogo Ltd
http://statistics.data.gov.uk/doc/local-authority/00DA,Leeds City Council,City Development,Libraries Arts & Heritage,Supplies and Services,Books & Audio-Visual Materials,206,28-Apr-2011,1104-00709,1081.20,R,Audiogo Ltd
http://statistics.data.gov.uk/doc/local-authority/00DA,Leeds City Council as Accountable Body,Jcs For People With Learning Disabilitie,Jcs For People With Learning Disabilitie,Third Party Payments,Residential,580,13-Apr-2011,1104-00710,8337.00,R,Autism Care (Uk) Ltd
http://statistics.data.gov.uk/doc/local-authority/00DA,Education Leeds,Education Leeds,Education Leeds,Transfer Payments,Outside Placement - Fees,606,07-Apr-2011,1104-00711,3265.72,R,Autism Partnership Uk Ltd
http://statistics.data.gov.uk/doc/local-authority/00DA,Education Leeds,Education Leeds,Education Leeds,Transfer Payments,Outside Placement - Fees,606,07-Apr-2011,1104-00712,1081.38,R,Autism Partnership Uk Ltd
http://statistics.data.gov.uk/doc/local-authority/00DA,Education Leeds,Education Leeds,Education Leeds,Transfer Payments,Outside Placement - Fees,606,07-Apr-2011,1104-00713,797.88,R,Autism Partnership Uk Ltd
http://statistics.data.gov.uk/doc/local-authority/00DA,Education Leeds,Education Leeds,Education Leeds,Transfer Payments,Outside Placement - Fees,606,21-Apr-2011,1104-00714,2800.97,R,Autism Partnership Uk Ltd
http://statistics.data.gov.uk/doc/local-authority/00DA,Education Leeds,Education Leeds,Education Leeds,Transfer Payments,Outside Placement - Fees,606,21-Apr-2011,1104-00715,721.00,R,Autism Partnership Uk Ltd
http://statistics.data.gov.uk/doc/local-authority/00DA,Education Leeds,Education Leeds,Education Leeds,Transfer Payments,Outside Placement - Fees,606,21-Apr-2011,1104-00716,2020.00,R,Autism Partnership Uk Ltd
http://statistics.data.gov.uk/doc/local-authority/00DA,Education Leeds,Education Leeds,Education Leeds,Transfer Payments,Outside Placement - Fees,606,21-Apr-2011,1104-00717,1197.00,R,Autism Partnership Uk Ltd
http://statistics.data.gov.uk/doc/local-authority/00DA,Education Leeds,Education Leeds,Education Leeds,Transfer Payments,Outside Placement - Fees,606,21-Apr-2011,1104-00718,669.51,R,Autism Partnership Uk Ltd
http://statistics.data.gov.uk/doc/local-authority/00DA,Education Leeds,Education Leeds,Education Leeds,Transfer Payments,Outside Placement - Fees,606,21-Apr-2011,1104-00719,-1628.87,R,Autism Partnership Uk Ltd
http://statistics.data.gov.uk/doc/local-authority/00DA,Leeds City Council,City Development,Recreation,Supplies and Services,Food & Drink,231,27-Apr-2011,1104-00720,423.61,R,Autobar Uk Ltd
http://statistics.data.gov.uk/doc/local-authority/00DA,Leeds City Council,Adult Social Care,Services For Older People Under 65 P/Dis,Supplies and Services,Subsistence,256,21-Apr-2011,1104-00721,1630.50,R,Automated Payment Transfer Ltd
http://statistics.data.gov.uk/doc/local-authority/00DA,Leeds City Council,Environment & Neighbourhoods,South South East,Capital,Construction,3,19-Apr-2011,1104-00722,10914.75,C,Autoquench Ltd
http://statistics.data.gov.uk/doc/local-authority/00DA,Leeds City Council,City Development,Highways,Supplies and Services,Other Hired And Contracted Services,265,21-Apr-2011,1104-00723,4675.50,R,Av Calibration
http://statistics.data.gov.uk/doc/local-authority/00DA,Leeds City Council,Environment & Neighbourhoods,East North East,Capital,Other Costs,7,06-Apr-2011,1104-00724,477.76,C,Avalon
http://statistics.data.gov.uk/doc/local-authority/00DA,East - North East Homes Leeds,East - North East,Technical Services,Supplies and Services,Other Hired And Contracted Services,265,01-Apr-2011,1104-00725,7599.67,R,Avalon
http://statistics.data.gov.uk/doc/local-authority/00DA,East - North East Homes Leeds,East - North East,Housing Services,Employees,Temporary Staff-Basic,009,01-Apr-2011,1104-00726,6133.33,R,Avalon
http://statistics.data.gov.uk/doc/local-authority/00DA,Leeds City Council as Accountable Body,Jcs For People With Learning Disabilitie,Jcs For People With Learning Disabilitie,Third Party Payments,Home Care,568,15-Apr-2011,1104-00727,1332.20,R,Avalon
http://statistics.data.gov.uk/doc/local-authority/00DA,East - North East Homes Leeds,East - North East,Headquarters,Premises,Repairs To Buildings Ext Contractors,109,07-Apr-2011,1104-00728,2162.00,R,Avanta U.K Ltd
http://statistics.data.gov.uk/doc/local-authority/00DA,Leeds City Council,Environment & Neighbourhoods,East North East,Capital,Construction,3,27-Apr-2011,1104-00729,15526.00,C,Avanta U.K Ltd
http://statistics.data.gov.uk/doc/local-authority/00DA,Leeds City Council,Environment & Neighbourhoods,East North East,Capital,Construction,3,21-Apr-2011,1104-00730,2598.00,C,Avanta U.K Ltd
http://statistics.data.gov.uk/doc/local-authority/00DA,Leeds City Council,Environment & Neighbourhoods,East North East,Capital,Construction,3,27-Apr-2011,1104-00731,11390.00,C,Avanta U.K Ltd
http://statistics.data.gov.uk/doc/local-authority/00DA,Leeds City Council,Environment & Neighbourhoods,East North East,Capital,Construction,3,27-Apr-2011,1104-00732,1365.00,C,Avanta U.K Ltd
http://statistics.data.gov.uk/doc/local-authority/00DA,Leeds City Council,Environment & Neighbourhoods,East North East,Capital,Construction,3,27-Apr-2011,1104-00733,680.00,C,Avanta U.K Ltd
http://statistics.data.gov.uk/doc/local-authority/00DA,Leeds City Council,Environment & Neighbourhoods,East North East,Capital,Construction,3,27-Apr-2011,1104-00734,1550.00,C,Avanta U.K Ltd
http://statistics.data.gov.uk/doc/local-authority/00DA,Leeds City Council,Environment & Neighbourhoods,East North East,Capital,Construction,3,27-Apr-2011,1104-00735,1350.00,C,Avanta U.K Ltd
http://statistics.data.gov.uk/doc/local-authority/00DA,Leeds City Council,Environment & Neighbourhoods,East North East,Capital,Construction,3,27-Apr-2011,1104-00736,1420.00,C,Avanta U.K Ltd
http://statistics.data.gov.uk/doc/local-authority/00DA,Leeds City Council,Environment & Neighbourhoods,East North East,Capital,Construction,3,27-Apr-2011,1104-00737,925.00,C,Avanta U.K Ltd
http://statistics.data.gov.uk/doc/local-authority/00DA,Leeds City Council,Other Education Services Managed By E.L.,Active Accounts,Supplies and Services,Licences,266,01-Apr-2011,1104-00738,13250.00,R,Avco Systems Ltd
http://statistics.data.gov.uk/doc/local-authority/00DA,Leeds City Council as Accountable Body,Jcs For People With Learning Disabilitie,Jcs For People With Learning Disabilitie,Third Party Payments,Residential,580,28-Apr-2011,1104-00739,4642.20,R,Avens Ltd
http://statistics.data.gov.uk/doc/local-authority/00DA,Leeds City Council as Accountable Body,Jcs For People With Learning Disabilitie,Jcs For People With Learning Disabilitie,Third Party Payments,Residential,580,13-Apr-2011,1104-00740,4153.72,R,Avon Lodge
http://statistics.data.gov.uk/doc/local-authority/00DA,Leeds City Council,City Development,Libraries Arts & Heritage,Supplies and Services,Other Hired And Contracted Services,265,28-Apr-2011,1104-00741,2000.00,R,Aw Hainsworth & Sons Ltd
http://statistics.data.gov.uk/doc/local-authority/00DA,Leeds City Council,Adult Social Care,Services For Older People - 65 And Over,Third Party Payments,Nursing Home,570,13-Apr-2011,1104-00742,1238.80,R,Ayresome Court Nursing Home
http://statistics.data.gov.uk/doc/local-authority/00DA,Leeds City Council,Environment & Neighbourhoods,Environmental Health,Capital,Construction,3,08-Apr-2011,1104-00743,4400.00,C,B & K Passmore
http://statistics.data.gov.uk/doc/local-authority/00DA,Leeds City Council,Environment & Neighbourhoods,Environmental Health,Capital,Construction,3,08-Apr-2011,1104-00744,4400.00,C,B & K Passmore
http://statistics.data.gov.uk/doc/local-authority/00DA,Leeds City Council,Environment & Neighbourhoods,South South East,Capital,Construction,3,28-Apr-2011,1104-00745,2912.23,C,B & K Passmore
http://statistics.data.gov.uk/doc/local-authority/00DA,Leeds City Council,Environment & Neighbourhoods,Environmental Health,Capital,Construction,3,21-Apr-2011,1104-00746,4400.00,C,B & K Passmore
http://statistics.data.gov.uk/doc/local-authority/00DA,Leeds City Council,Environment & Neighbourhoods,Environmental Health,Capital,Construction,3,08-Apr-2011,1104-00747,4400.00,C,B & K Passmore
http://statistics.data.gov.uk/doc/local-authority/00DA,Leeds City Council,Environment & Neighbourhoods,Environmental Health,Capital,Construction,3,13-Apr-2011,1104-00748,4400.00,C,B & K Passmore
http://statistics.data.gov.uk/doc/local-authority/00DA,Leeds City Council,Environment & Neighbourhoods,Environmental Health,Capital,Construction,3,13-Apr-2011,1104-00749,4819.60,C,B & K Passmore
http://statistics.data.gov.uk/doc/local-authority/00DA,Leeds City Council,Environment & Neighbourhoods,Environmental Health,Capital,Construction,3,08-Apr-2011,1104-00750,7235.00,C,B & K Passmore
http://statistics.data.gov.uk/doc/local-authority/00DA,Leeds City Council,Environment & Neighbourhoods,Environmental Health,Capital,Construction,3,21-Apr-2011,1104-00751,4400.00,C,B & K Passmore
http://statistics.data.gov.uk/doc/local-authority/00DA,Leeds City Council,Environment & Neighbourhoods,Environmental Health,Capital,Construction,3,08-Apr-2011,1104-00752,4400.00,C,B & K Passmore
http://statistics.data.gov.uk/doc/local-authority/00DA,Leeds City Council,Environment & Neighbourhoods,Environmental Health,Capital,Construction,3,28-Apr-2011,1104-00753,4400.00,C,B & K Passmore
http://statistics.data.gov.uk/doc/local-authority/00DA,Leeds City Council,Environment & Neighbourhoods,Environmental Health,Capital,Construction,3,13-Apr-2011,1104-00754,4400.00,C,B & K Passmore
http://statistics.data.gov.uk/doc/local-authority/00DA,Leeds City Council,Environment & Neighbourhoods,Environmental Health,Capital,Construction,3,13-Apr-2011,1104-00755,4400.00,C,B & K Passmore
http://statistics.data.gov.uk/doc/local-authority/00DA,Leeds City Council,Environment & Neighbourhoods,Environmental Health,Capital,Construction,3,08-Apr-2011,1104-00756,4400.00,C,B & K Passmore
http://statistics.data.gov.uk/doc/local-authority/00DA,Leeds City Council,Environment & Neighbourhoods,Environmental Health,Capital,Construction,3,13-Apr-2011,1104-00757,4400.00,C,B & K Passmore
http://statistics.data.gov.uk/doc/local-authority/00DA,Leeds City Council,Environment & Neighbourhoods,Environmental Health,Capital,Construction,3,08-Apr-2011,1104-00758,624.75,C,B & K Passmore
http://statistics.data.gov.uk/doc/local-authority/00DA,Leeds City Council,Environment & Neighbourhoods,Environmental Health,Capital,Construction,3,15-Apr-2011,1104-00759,4400.00,C,B & K Passmore
http://statistics.data.gov.uk/doc/local-authority/00DA,Leeds City Council,Environment & Neighbourhoods,Environmental Health,Capital,Construction,3,21-Apr-2011,1104-00760,4400.00,C,B & K Passmore
http://statistics.data.gov.uk/doc/local-authority/00DA,Leeds City Council,Environment & Neighbourhoods,Environmental Health,Capital,Construction,3,13-Apr-2011,1104-00761,4400.00,C,B & K Passmore
http://statistics.data.gov.uk/doc/local-authority/00DA,Leeds City Council,Environment & Neighbourhoods,Environmental Health,Capital,Construction,3,08-Apr-2011,1104-00762,4400.00,C,B & K Passmore
http://statistics.data.gov.uk/doc/local-authority/00DA,Leeds City Council,Environment & Neighbourhoods,Environmental Health,Capital,Construction,3,28-Apr-2011,1104-00763,4670.00,C,B & K Passmore
http://statistics.data.gov.uk/doc/local-authority/00DA,Leeds City Council,Childrens Services,Integrated Youth Support  Service,Supplies and Services,Operational Materials,205,15-Apr-2011,1104-00764,1731.00,R,B2b Marcomms
http://statistics.data.gov.uk/doc/local-authority/00DA,Education Leeds,Education Leeds,Education Leeds,Supplies and Services,Conference Fees,253,15-Apr-2011,1104-00765,-458.00,R,Babcock 4s Ltd
http://statistics.data.gov.uk/doc/local-authority/00DA,Education Leeds,Education Leeds,Education Leeds,Supplies and Services,Conference Fees,253,21-Apr-2011,1104-00766,458.00,R,Babcock 4s Ltd
http://statistics.data.gov.uk/doc/local-authority/00DA,Education Leeds,Education Leeds,Education Leeds,Supplies and Services,Other Hired And Contracted Services,265,15-Apr-2011,1104-00767,1750.00,R,Babcock 4s Ltd
http://statistics.data.gov.uk/doc/local-authority/00DA,Leeds City Council,Other Education Services Managed By E.L.,Active Accounts,Supplies and Services,Teaching Furniture & Equipment,207,07-Apr-2011,1104-00768,1302.50,R,Bac Outdoor Leisure
http://statistics.data.gov.uk/doc/local-authority/00DA,Leeds City Council,Other Education Services Managed By E.L.,Active Accounts,Supplies and Services,Teaching Furniture & Equipment,207,28-Apr-2011,1104-00769,3769.44,R,Bac Outdoor Leisure
http://statistics.data.gov.uk/doc/local-authority/00DA,Leeds City Council,Other Education Services Managed By E.L.,Active Accounts,Supplies and Services,Teaching Furniture & Equipment,207,28-Apr-2011,1104-00770,1763.50,R,Bac Outdoor Leisure
http://statistics.data.gov.uk/doc/local-authority/00DA,Leeds City Council,Other Education Services Managed By E.L.,Active Accounts,Supplies and Services,Teaching Furniture & Equipment,207,28-Apr-2011,1104-00771,1575.00,R,Bac Outdoor Leisure
http://statistics.data.gov.uk/doc/local-authority/00DA,Leeds City Council,Other Education Services Managed By E.L.,Active Accounts,Supplies and Services,Teaching Furniture & Equipment,207,21-Apr-2011,1104-00772,840.00,R,Bac Outdoor Leisure
http://statistics.data.gov.uk/doc/local-authority/00DA,Leeds City Council,Adult Social Care,Social Services Support Services,Supplies and Services,Office Furniture & Equipment,201,13-Apr-2011,1104-00773,619.00,R,Back Care Solutions Ltd
http://statistics.data.gov.uk/doc/local-authority/00DA,Leeds City Council,City Development,Libraries Arts & Heritage,Supplies and Services,Other Hired And Contracted Services,265,07-Apr-2011,1104-00774,435.00,R,Bada Bling Limited
http://statistics.data.gov.uk/doc/local-authority/00DA,West - North West Homes Leeds,West - North West,Customer And Tenancy,Employees,Temporary Staff-Basic,009,14-Apr-2011,1104-00775,955.50,R,Badenoch & Clark Ltd
http://statistics.data.gov.uk/doc/local-authority/00DA,West - North West Homes Leeds,West - North West,Customer And Tenancy,Supplies and Services,Project Management Group,260,01-Apr-2011,1104-00776,727.65,R,Badenoch & Clark Ltd
http://statistics.data.gov.uk/doc/local-authority/00DA,West - North West Homes Leeds,West - North West,Customer And Tenancy,Employees,Temporary Staff-Basic,009,06-Apr-2011,1104-00777,526.13,R,Badenoch & Clark Ltd
http://statistics.data.gov.uk/doc/local-authority/00DA,West - North West Homes Leeds,West - North West,Customer And Tenancy,Employees,Temporary Staff-Basic,009,06-Apr-2011,1104-00778,491.63,R,Badenoch & Clark Ltd
http://statistics.data.gov.uk/doc/local-authority/00DA,West - North West Homes Leeds,West - North West,Customer And Tenancy,Employees,Temporary Staff-Basic,009,06-Apr-2011,1104-00779,485.07,R,Badenoch & Clark Ltd
http://statistics.data.gov.uk/doc/local-authority/00DA,West - North West Homes Leeds,West - North West,Customer And Tenancy,Employees,Temporary Staff-Basic,009,06-Apr-2011,1104-00780,485.07,R,Badenoch & Clark Ltd
http://statistics.data.gov.uk/doc/local-authority/00DA,West - North West Homes Leeds,West - North West,Customer And Tenancy,Employees,Temporary Staff-Basic,009,06-Apr-2011,1104-00781,485.07,R,Badenoch & Clark Ltd
http://statistics.data.gov.uk/doc/local-authority/00DA,West - North West Homes Leeds,West - North West,Customer And Tenancy,Employees,Temporary Staff-Basic,009,06-Apr-2011,1104-00782,455.57,R,Badenoch & Clark Ltd
http://statistics.data.gov.uk/doc/local-authority/00DA,West - North West Homes Leeds,West - North West,Customer And Tenancy,Employees,Temporary Staff-Basic,009,06-Apr-2011,1104-00783,612.47,R,Badenoch & Clark Ltd
http://statistics.data.gov.uk/doc/local-authority/00DA,West - North West Homes Leeds,West - North West,Customer And Tenancy,Employees,Temporary Staff-Basic,009,06-Apr-2011,1104-00784,461.76,R,Badenoch & Clark Ltd
http://statistics.data.gov.uk/doc/local-authority/00DA,West - North West Homes Leeds,West - North West,Customer And Tenancy,Employees,Temporary Staff-Basic,009,14-Apr-2011,1104-00785,955.50,R,Badenoch & Clark Ltd
http://statistics.data.gov.uk/doc/local-authority/00DA,Aire Valley Homes Leeds,Aire Valley Homes Leeds,Housing,Employees,Temporary Staff-Basic,009,06-Apr-2011,1104-00786,578.79,R,Badenoch & Clark Ltd
http://statistics.data.gov.uk/doc/local-authority/00DA,West - North West Homes Leeds,West - North West,Customer And Tenancy,Supplies and Services,Project Management Group,260,14-Apr-2011,1104-00787,904.05,R,Badenoch & Clark Ltd
http://statistics.data.gov.uk/doc/local-authority/00DA,West - North West Homes Leeds,West - North West,Customer And Tenancy,Employees,Temporary Staff-Basic,009,14-Apr-2011,1104-00788,501.46,R,Badenoch & Clark Ltd
http://statistics.data.gov.uk/doc/local-authority/00DA,West - North West Homes Leeds,West - North West,Customer And Tenancy,Employees,Temporary Staff-Basic,009,14-Apr-2011,1104-00789,485.07,R,Badenoch & Clark Ltd
http://statistics.data.gov.uk/doc/local-authority/00DA,West - North West Homes Leeds,West - North West,Customer And Tenancy,Employees,Temporary Staff-Basic,009,14-Apr-2011,1104-00790,485.07,R,Badenoch & Clark Ltd
http://statistics.data.gov.uk/doc/local-authority/00DA,West - North West Homes Leeds,West - North West,Customer And Tenancy,Employees,Temporary Staff-Basic,009,14-Apr-2011,1104-00791,485.07,R,Badenoch & Clark Ltd
http://statistics.data.gov.uk/doc/local-authority/00DA,West - North West Homes Leeds,West - North West,Customer And Tenancy,Employees,Temporary Staff-Basic,009,15-Apr-2011,1104-00792,461.76,R,Badenoch & Clark Ltd
http://statistics.data.gov.uk/doc/local-authority/00DA,West - North West Homes Leeds,West - North West,Customer And Tenancy,Employees,Temporary Staff-Basic,009,14-Apr-2011,1104-00793,458.85,R,Badenoch & Clark Ltd
http://statistics.data.gov.uk/doc/local-authority/00DA,Aire Valley Homes Leeds,Aire Valley Homes Leeds,Housing,Employees,Temporary Staff-Basic,009,14-Apr-2011,1104-00794,745.56,R,Badenoch & Clark Ltd
http://statistics.data.gov.uk/doc/local-authority/00DA,West - North West Homes Leeds,West - North West,Customer And Tenancy,Employees,Temporary Staff-Basic,009,14-Apr-2011,1104-00795,485.07,R,Badenoch & Clark Ltd
http://statistics.data.gov.uk/doc/local-authority/00DA,West - North West Homes Leeds,West - North West,Customer And Tenancy,Supplies and Services,Project Management Group,260,15-Apr-2011,1104-00796,743.36,R,Badenoch & Clark Ltd
http://statistics.data.gov.uk/doc/local-authority/00DA,West - North West Homes Leeds,West - North West,Customer And Tenancy,Supplies and Services,Project Management Group,260,15-Apr-2011,1104-00797,697.26,R,Badenoch & Clark Ltd
http://statistics.data.gov.uk/doc/local-authority/00DA,West - North West Homes Leeds,West - North West,Customer And Tenancy,Supplies and Services,Project Management Group,260,15-Apr-2011,1104-00798,920.59,R,Badenoch & Clark Ltd
http://statistics.data.gov.uk/doc/local-authority/00DA,West - North West Homes Leeds,West - North West,Customer And Tenancy,Employees,Temporary Staff-Basic,009,21-Apr-2011,1104-00799,485.07,R,Badenoch & Clark Ltd
http://statistics.data.gov.uk/doc/local-authority/00DA,West - North West Homes Leeds,West - North West,Customer And Tenancy,Employees,Temporary Staff-Basic,009,21-Apr-2011,1104-00800,485.07,R,Badenoch & Clark Ltd
http://statistics.data.gov.uk/doc/local-authority/00DA,West - North West Homes Leeds,West - North West,Customer And Tenancy,Employees,Temporary Staff-Basic,009,21-Apr-2011,1104-00801,458.85,R,Badenoch & Clark Ltd
http://statistics.data.gov.uk/doc/local-authority/00DA,West - North West Homes Leeds,West - North West,Customer And Tenancy,Employees,Temporary Staff-Basic,009,21-Apr-2011,1104-00802,1700.00,R,Badenoch & Clark Ltd
http://statistics.data.gov.uk/doc/local-authority/00DA,Aire Valley Homes Leeds,Aire Valley Homes Leeds,Housing,Employees,Temporary Staff-Basic,009,28-Apr-2011,1104-00803,745.56,R,Badenoch & Clark Ltd
http://statistics.data.gov.uk/doc/local-authority/00DA,West - North West Homes Leeds,West - North West,Customer And Tenancy,Employees,Temporary Staff-Basic,009,15-Apr-2011,1104-00804,620.86,R,Badenoch & Clark Ltd
http://statistics.data.gov.uk/doc/local-authority/00DA,West - North West Homes Leeds,West - North West,Customer And Tenancy,Supplies and Services,Project Management Group,260,28-Apr-2011,1104-00805,835.56,R,Badenoch & Clark Ltd
http://statistics.data.gov.uk/doc/local-authority/00DA,West - North West Homes Leeds,West - North West,Customer And Tenancy,Supplies and Services,Project Management Group,260,28-Apr-2011,1104-00806,558.96,R,Badenoch & Clark Ltd
http://statistics.data.gov.uk/doc/local-authority/00DA,West - North West Homes Leeds,West - North West,Customer And Tenancy,Supplies and Services,Project Management Group,260,28-Apr-2011,1104-00807,882.00,R,Badenoch & Clark Ltd
http://statistics.data.gov.uk/doc/local-authority/00DA,West - North West Homes Leeds,West - North West,Customer And Tenancy,Employees,Temporary Staff-Basic,009,21-Apr-2011,1104-00808,485.07,R,Badenoch & Clark Ltd
http://statistics.data.gov.uk/doc/local-authority/00DA,West - North West Homes Leeds,West - North West,Customer And Tenancy,Employees,Temporary Staff-Basic,009,21-Apr-2011,1104-00809,485.07,R,Badenoch & Clark Ltd
http://statistics.data.gov.uk/doc/local-authority/00DA,West - North West Homes Leeds,West - North West,Customer And Tenancy,Employees,Temporary Staff-Basic,009,21-Apr-2011,1104-00810,485.07,R,Badenoch & Clark Ltd
http://statistics.data.gov.uk/doc/local-authority/00DA,West - North West Homes Leeds,West - North West,Customer And Tenancy,Employees,Temporary Staff-Basic,009,21-Apr-2011,1104-00811,485.07,R,Badenoch & Clark Ltd
http://statistics.data.gov.uk/doc/local-authority/00DA,West - North West Homes Leeds,West - North West,Customer And Tenancy,Employees,Temporary Staff-Basic,009,21-Apr-2011,1104-00812,595.69,R,Badenoch & Clark Ltd
http://statistics.data.gov.uk/doc/local-authority/00DA,West - North West Homes Leeds,West - North West,Customer And Tenancy,Employees,Temporary Staff-Basic,009,21-Apr-2011,1104-00813,461.76,R,Badenoch & Clark Ltd
http://statistics.data.gov.uk/doc/local-authority/00DA,West - North West Homes Leeds,West - North West,Customer And Tenancy,Employees,Temporary Staff-Basic,009,21-Apr-2011,1104-00814,458.85,R,Badenoch & Clark Ltd
